Service Delivery Area(T),Service Delivery Team(T),ExpenditureGroup(T),Account(T),Supplier Name(T),Trans Date,Amount
Adult Social Care,ASC Directorate,Premises-Related Expenditure,Hire Of Rooms,MEETING POINT TRUST LTD,18/10/2022,257.50
Adult Social Care,ASC Directorate,Supplies & Services,Subscriptions,SHROPSHIRE COUNCIL,05/10/2022,"10,000.00"
Adult Social Care,ASC Prevention & Enablement,Employees,Employee Costs Recharged,SHROPSHIRE COMMUNITY HEALTH NHS TRUST,06/10/2022,"19,662.00"
Adult Social Care,ASC Prevention & Enablement,Employees,Employee Costs Recharged,SHROPSHIRE COMMUNITY HEALTH NHS TRUST,06/10/2022,"19,662.00"
Adult Social Care,ASC Prevention & Enablement,Third Party Payments,Homecare Expenditure,Brockton Care LTD,06/10/2022,"34,873.75"
Adult Social Care,ASC Prevention & Enablement,Third Party Payments,Nursing Expenditure,"NHS Shropshire, Telford and Wrekin CCG",24/10/2022,"14,880.00"
Adult Social Care,ASC Prevention & Enablement,Transport-Related Expenditure,Taxi Costs,Telford Taxi Hire Limited,07/10/2022,800.00
Adult Social Care,ASC Prevention & Enablement,Transport-Related Expenditure,Taxi Costs,Telford Taxi Hire Limited,24/10/2022,800.00
Adult Social Care,ASC Prevention & Enablement,Transport-Related Expenditure,Taxi Costs,Telford Taxi Hire Limited,21/10/2022,600.00
Adult Social Care,ASC Prevention & Enablement,Transport-Related Expenditure,Taxi Costs,Cartello Ambulance,21/10/2022,156.00
Adult Social Care,ASC Prevention & Enablement,Supplies & Services,Mobile Phones,EE LTD EQUIPMENT ,03/10/2022,426.00
Adult Social Care,ASC Prevention & Enablement,Supplies & Services,Mobile Phones,EE LTD EQUIPMENT,10/10/2022,142.00
Adult Social Care,"Commissioning, Procurement & Brokerage",Third Party Payments,Interpreters Fees,EXPRESS INTERPRETING & TRANSLATION,11/10/2022,"5,990.94"
Adult Social Care,"Commissioning, Procurement & Brokerage",Supplies & Services,Other Grants (Expenses),AGE UK SHROPSHIRE TELFORD & WREKIN,28/10/2022,"28,346.59"
Adult Social Care,"Commissioning, Procurement & Brokerage",Supplies & Services,Other Grants (Expenses),AGE UK SHROPSHIRE TELFORD & WREKIN,28/10/2022,"28,346.59"
Adult Social Care,"Commissioning, Procurement & Brokerage",Supplies & Services,Other Grants (Expenses),AGE UK SHROPSHIRE TELFORD & WREKIN,28/10/2022,"28,346.59"
Adult Social Care,"Commissioning, Procurement & Brokerage",Supplies & Services,Other Grants (Expenses),TACT,06/10/2022,"10,450.00"
Adult Social Care,"Commissioning, Procurement & Brokerage",Supplies & Services,Other Grants (Expenses),AGE UK SHROPSHIRE TELFORD & WREKIN,04/10/2022,"17,977.34"
Adult Social Care,"Commissioning, Procurement & Brokerage",Supplies & Services,Other Grants (Expenses),AGE UK SHROPSHIRE TELFORD & WREKIN,04/10/2022,"17,977.34"
Adult Social Care,"Commissioning, Procurement & Brokerage",Supplies & Services,Other Grants (Expenses),AGE UK SHROPSHIRE TELFORD & WREKIN,04/10/2022,"17,977.34"
Adult Social Care,"Commissioning, Procurement & Brokerage",Supplies & Services,Grants To Voluntary Organis,Doro Care Uk,06/10/2022,"5,217.17"
Adult Social Care,"Commissioning, Procurement & Brokerage",Supplies & Services,Other Grants (Expenses),Doro Care Uk,06/10/2022,"3,815.12"
Adult Social Care,"Commissioning, Procurement & Brokerage",Supplies & Services,Other Grants (Expenses),Doro Care Uk,06/10/2022,"2,238.20"
Adult Social Care,"Commissioning, Procurement & Brokerage",Supplies & Services,Other Grants (Expenses),SANCTUARY HOUSING ASSOCIATION,03/10/2022,610.70
Adult Social Care,"Commissioning, Procurement & Brokerage",Supplies & Services,Other Grants (Expenses),BROMFORD HOUSING ASSOCIATION LIMITED,03/10/2022,"36,666.67"
Adult Social Care,"Commissioning, Procurement & Brokerage",Supplies & Services,Other Grants (Expenses),TELFORD CHRISTIAN COUNCIL SUPPORTED HOUS,03/10/2022,"36,401.83"
Adult Social Care,"Commissioning, Procurement & Brokerage",Supplies & Services,Other Grants (Expenses),WREKIN HOUSING TRUST ,03/10/2022,"25,568.33"
Adult Social Care,"Commissioning, Procurement & Brokerage",Supplies & Services,Other Grants (Expenses),ANCHOR HOUSING TRUST,03/10/2022,133.33
Adult Social Care,"Commissioning, Procurement & Brokerage",Supplies & Services,Other Grants (Expenses),HANOVER HOUSING ASSOCIATION,03/10/2022,750.00
Adult Social Care,"Commissioning, Procurement & Brokerage",Supplies & Services,Other Grants (Expenses),OLD B HOMES,03/10/2022,433.33
Adult Social Care,Community Social Work & Adult Safeguarding,Supplies & Services,Other Grants (Expenses),VoiceAbility,11/10/2022,"6,625.00"
Adult Social Care,Community Social Work & Adult Safeguarding,Supplies & Services,Other Grants (Expenses),VoiceAbility,11/10/2022,"6,625.00"
Adult Social Care,Community Social Work & Adult Safeguarding,Supplies & Services,Legal Expenses,St Ives Chambers,19/10/2022,900.00
Adult Social Care,Community Social Work & Adult Safeguarding,Supplies & Services,Mobile Phones,EE LTD EQUIPMENT,03/10/2022,142.00
Adult Social Care,Community Social Work & Adult Safeguarding,Supplies & Services,Mobile Phones,EE LTD EQUIPMENT ,03/10/2022,426.00
Adult Social Care,Community Social Work & Adult Safeguarding,Supplies & Services,Medical Consultants Fees,REDACTED PERSONAL INFORMATION,11/10/2022,925.66
Adult Social Care,Community Social Work (Principal Social Worker),Third Party Payments,Daycare Expenditure,CONDOVER COLLEGE LTD,10/10/2022,"1,080.00"
Adult Social Care,Community Social Work (Principal Social Worker),Third Party Payments,Other Care Purchasing,Inclusive Media Solutions Limited,07/10/2022,"27,040.00"
Adult Social Care,Community Social Work (Principal Social Worker),Premises-Related Expenditure,General Rents,BOURNVILLE VILLAGE TRUST,19/10/2022,"12,764.88"
Adult Social Care,Community Social Work (Principal Social Worker),Premises-Related Expenditure,General Rents,BOURNVILLE VILLAGE TRUST,19/10/2022,"12,764.88"
Adult Social Care,Community Social Work (Principal Social Worker),Premises-Related Expenditure,General Rents,First Choice Housing Association LTD,19/10/2022,"5,158.21"
Adult Social Care,Community Social Work (Principal Social Worker),Supplies & Services,Other Grants (Expenses),SHROPSHIRE COUNCIL ,18/10/2022,"55,000.00"
Adult Social Care,Community Social Work (Principal Social Worker),Third Party Payments,Interpreters Fees,VISS Sign Language Interpreting Service,07/10/2022,115.00
Adult Social Care,My Options,Premises-Related Expenditure,Hire Of Rooms,INTERSERVE LTD ,04/10/2022,"5,738.62"
Adult Social Care,My Options,Premises-Related Expenditure,Clean Mats & Toilet Requisites,PHS GROUP,24/10/2022,125.22
Adult Social Care,My Options,Premises-Related Expenditure,Hire Of Rooms,All Saints Wellington,12/10/2022,240.00
Adult Social Care,My Options,Premises-Related Expenditure,Hire Of Rooms,All Saints Wellington,12/10/2022,210.00
Adult Social Care,My Options,Premises-Related Expenditure,Hire Of Rooms,Dawley Baptist Church,17/10/2022,200.00
Adult Social Care,My Options,Employees,Agency Supply Costs,Nurse Plus and Carer Plus (UK) Limited,04/10/2022,"3,205.15"
Adult Social Care,My Options,Employees,Agency Supply Costs,Safehands Recruitment,04/10/2022,"2,424.00"
Adult Social Care,My Options,Employees,Agency Supply Costs,Safehands Recruitment,11/10/2022,"3,110.50"
Adult Social Care,My Options,Employees,Agency Supply Costs,Nurse Plus and Carer Plus (UK) Limited,11/10/2022,"1,368.57"
Adult Social Care,My Options,Employees,Agency Supply Costs,Iconic Care Limited,18/10/2022,"1,390.75"
Adult Social Care,My Options,Employees,Agency Supply Costs,Safehands Recruitment,18/10/2022,468.00
Adult Social Care,My Options,Employees,Agency Supply Costs,Iconic Care Limited,18/10/2022,"1,899.70"
Adult Social Care,My Options,Employees,Agency Supply Costs,Iconic Care Limited,18/10/2022,715.50
Adult Social Care,My Options,Employees,Agency Supply Costs,Iconic Care Limited,18/10/2022,789.00
Adult Social Care,My Options,Employees,Agency Supply Costs,Nurse Plus and Carer Plus (UK) Limited,18/10/2022,"2,423.94"
Adult Social Care,My Options,Employees,Agency Supply Costs,Nurse Plus and Carer Plus (UK) Limited,26/10/2022,"1,652.70"
Adult Social Care,My Options,Employees,Agency Supply Costs,Safehands Recruitment,26/10/2022,"1,720.00"
Adult Social Care,My Options,Premises-Related Expenditure,Clean Mats & Toilet Requisites,BERWICK CARE EQUIPMENT LTD,04/10/2022,149.48
Adult Social Care,My Options,Premises-Related Expenditure,Clean Mats & Toilet Requisites,BERWICK CARE EQUIPMENT LTD,26/10/2022,167.49
Adult Social Care,My Options,Supplies & Services,Equipment - Hire,CARTWRIGHTS WASTE DISPOSAL SERV LTD,26/10/2022,370.00
Adult Social Care,My Options,Employees,Agency Supply Costs,Safehands Recruitment,18/10/2022,504.00
Adult Social Care,My Options,Employees,Agency Supply Costs,Safehands Recruitment,18/10/2022,437.75
Adult Social Care,My Options,Employees,Agency Supply Costs,Safehands Recruitment,18/10/2022,371.00
Adult Social Care,My Options,Employees,Agency Supply Costs,Nurse Plus and Carer Plus (UK) Limited,04/10/2022,"2,754.08"
Adult Social Care,My Options,Employees,Agency Supply Costs,Nurse Plus and Carer Plus (UK) Limited,04/10/2022,621.65
Adult Social Care,My Options,Employees,Agency Supply Costs,Nurse Plus and Carer Plus (UK) Limited,04/10/2022,528.43
Adult Social Care,My Options,Employees,Agency Supply Costs,Safehands Recruitment,04/10/2022,354.00
Adult Social Care,My Options,Employees,Agency Supply Costs,Nurse Plus and Carer Plus (UK) Limited,04/10/2022,"5,515.80"
Adult Social Care,My Options,Employees,Agency Supply Costs,Safehands Recruitment,04/10/2022,751.10
Adult Social Care,My Options,Employees,Agency Supply Costs,Safehands Recruitment,04/10/2022,335.00
Adult Social Care,My Options,Employees,Agency Supply Costs,Safehands Recruitment,04/10/2022,759.00
Adult Social Care,My Options,Employees,Agency Supply Costs,Safehands Recruitment,04/10/2022,"1,564.46"
Adult Social Care,My Options,Employees,Agency Supply Costs,Safehands Recruitment,11/10/2022,286.25
Adult Social Care,My Options,Employees,Agency Supply Costs,Nurse Plus and Carer Plus (UK) Limited,11/10/2022,150.50
Adult Social Care,My Options,Employees,Agency Supply Costs,Nurse Plus and Carer Plus (UK) Limited,11/10/2022,"1,892.28"
Adult Social Care,My Options,Employees,Agency Supply Costs,Nurse Plus and Carer Plus (UK) Limited,11/10/2022,"4,440.68"
Adult Social Care,My Options,Employees,Agency Supply Costs,Nurse Plus and Carer Plus (UK) Limited,11/10/2022,786.43
Adult Social Care,My Options,Employees,Agency Supply Costs,Safehands Recruitment,11/10/2022,536.93
Adult Social Care,My Options,Employees,Agency Supply Costs,Safehands Recruitment,11/10/2022,646.50
Adult Social Care,My Options,Employees,Agency Supply Costs,Safehands Recruitment,11/10/2022,832.50
Adult Social Care,My Options,Employees,Agency Supply Costs,Safehands Recruitment,11/10/2022,327.50
Adult Social Care,My Options,Employees,Agency Supply Costs,Safehands Recruitment,25/10/2022,"1,212.14"
Adult Social Care,My Options,Employees,Agency Supply Costs,Safehands Recruitment,25/10/2022,237.50
Adult Social Care,My Options,Employees,Agency Supply Costs,Safehands Recruitment,25/10/2022,541.50
Adult Social Care,My Options,Employees,Agency Supply Costs,Safehands Recruitment,25/10/2022,266.00
Adult Social Care,My Options,Employees,Agency Supply Costs,Safehands Recruitment,25/10/2022,380.00
Adult Social Care,My Options,Employees,Agency Supply Costs,Safehands Recruitment,25/10/2022,446.00
Adult Social Care,My Options,Employees,Agency Supply Costs,Nurse Plus and Carer Plus (UK) Limited,25/10/2022,"4,438.15"
Adult Social Care,My Options,Employees,Agency Supply Costs,Nurse Plus and Carer Plus (UK) Limited,25/10/2022,"1,749.48"
Adult Social Care,My Options,Employees,Agency Supply Costs,Nurse Plus and Carer Plus (UK) Limited,25/10/2022,"1,156.20"
Adult Social Care,My Options,Employees,Agency Supply Costs,Nurse Plus and Carer Plus (UK) Limited,25/10/2022,278.23
Adult Social Care,My Options,Employees,Agency Supply Costs,JN Recruitment,25/10/2022,552.00
Adult Social Care,My Options,Employees,Agency Supply Costs,JN Recruitment,25/10/2022,"1,237.50"
Adult Social Care,My Options,Employees,Agency Supply Costs,JN Recruitment,25/10/2022,"1,006.50"
Adult Social Care,My Options,Employees,Agency Supply Costs,JN Recruitment,25/10/2022,"1,325.50"
Adult Social Care,My Options,Employees,Agency Supply Costs,JN Recruitment,25/10/2022,786.50
Adult Social Care,My Options,Employees,Agency Supply Costs,JN Recruitment,25/10/2022,"1,353.00"
Adult Social Care,My Options,Employees,Agency Supply Costs,JN Recruitment,25/10/2022,998.26
Adult Social Care,My Options,Employees,Agency Supply Costs,Nurse Plus and Carer Plus (UK) Limited,18/10/2022,"1,896.19"
Adult Social Care,My Options,Employees,Agency Supply Costs,Nurse Plus and Carer Plus (UK) Limited,18/10/2022,563.05
Adult Social Care,My Options,Employees,Agency Supply Costs,Nurse Plus and Carer Plus (UK) Limited,18/10/2022,"4,284.44"
Adult Social Care,My Options,Employees,Agency Supply Costs,Nurse Plus and Carer Plus (UK) Limited,18/10/2022,"1,089.24"
Adult Social Care,My Options,Employees,Agency Supply Costs,Nurse Plus and Carer Plus (UK) Limited,18/10/2022,125.65
Adult Social Care,My Options,Employees,Agency Supply Costs,Safehands Recruitment,18/10/2022,133.00
Adult Social Care,My Options,Employees,Agency Supply Costs,Safehands Recruitment,18/10/2022,724.00
Adult Social Care,My Options,Premises-Related Expenditure,R&M -Buildings DLO Charge,JCE & SONS LTD,18/10/2022,342.94
Adult Social Care,My Options,Supplies & Services,Mobile Phones,EE LTD EQUIPMENT ,03/10/2022,284.00
Adult Social Care,My Options,Supplies & Services,Computer Software (Maint),Access UK Ltd,11/10/2022,644.40
Adult Social Care,My Options,Supplies & Services,Mobile Phones,EE LTD EQUIPMENT,10/10/2022,142.00
Adult Social Care,My Options,Supplies & Services,Mobile Phones,EE LTD EQUIPMENT ,10/10/2022,142.00
Adult Social Care,My Options,Supplies & Services,Adult Flexi / Day Care,REDACTED PERSONAL INFORMATION,13/10/2022,587.40
Adult Social Care,My Options,Supplies & Services,Adult Flexi / Day Care,REDACTED PERSONAL INFORMATION,13/10/2022,267.00
Adult Social Care,My Options,Supplies & Services,Adult Flexi / Day Care,REDACTED PERSONAL INFORMATION,13/10/2022,267.00
Adult Social Care,My Options,Supplies & Services,Adult Flexi / Day Care,REDACTED PERSONAL INFORMATION,13/10/2022,213.60
Adult Social Care,My Options,Supplies & Services,Respite Care,REDACTED PERSONAL INFORMATION,13/10/2022,373.80
Adult Social Care,My Options,Supplies & Services,Respite Care,REDACTED PERSONAL INFORMATION,13/10/2022,747.60
Adult Social Care,My Options,Supplies & Services,Respite Care,REDACTED PERSONAL INFORMATION,10/10/2022,373.80
Adult Social Care,My Options,Supplies & Services,Respite Care,REDACTED PERSONAL INFORMATION,13/10/2022,953.08
Adult Social Care,My Options,Supplies & Services,Respite Care,REDACTED PERSONAL INFORMATION,13/10/2022,"1,372.40"
Adult Social Care,My Options,Supplies & Services,Respite Care,REDACTED PERSONAL INFORMATION,13/10/2022,"1,559.24"
Adult Social Care,My Options,Employees,Agency Supply Costs,Safehands Recruitment,04/10/2022,"11,097.36"
Adult Social Care,My Options,Employees,Agency Supply Costs,Safehands Recruitment,04/10/2022,"10,977.25"
Adult Social Care,My Options,Employees,Agency Supply Costs,Safehands Recruitment,04/10/2022,"15,821.50"
Adult Social Care,My Options,Employees,Agency Supply Costs,Safehands Recruitment,04/10/2022,"14,879.50"
Adult Social Care,My Options,Employees,Agency Supply Costs,Safehands Recruitment,11/10/2022,"16,036.50"
Adult Social Care,My Options,Employees,Agency Supply Costs,Iconic Care Limited,18/10/2022,894.00
Adult Social Care,My Options,Employees,Agency Supply Costs,Iconic Care Limited,18/10/2022,420.00
Adult Social Care,My Options,Employees,Agency Supply Costs,Iconic Care Limited,18/10/2022,894.00
Adult Social Care,My Options,Employees,Agency Supply Costs,Iconic Care Limited,18/10/2022,"3,304.00"
Adult Social Care,My Options,Employees,Agency Supply Costs,Iconic Care Limited,18/10/2022,"3,252.00"
Adult Social Care,My Options,Employees,Agency Supply Costs,Iconic Care Limited,18/10/2022,"4,264.50"
Adult Social Care,My Options,Employees,Agency Supply Costs,Iconic Care Limited,18/10/2022,"4,397.00"
Adult Social Care,My Options,Employees,Agency Supply Costs,Safehands Recruitment,18/10/2022,"15,069.61"
Adult Social Care,My Options,Employees,Agency Supply Costs,Iconic Care Limited,18/10/2022,"13,857.09"
Adult Social Care,My Options,Employees,Agency Supply Costs,Iconic Care Limited,18/10/2022,"1,440.00"
Adult Social Care,My Options,Employees,Agency Supply Costs,Iconic Care Limited,18/10/2022,348.00
Adult Social Care,My Options,Employees,Agency Supply Costs,Iconic Care Limited,18/10/2022,"3,011.00"
Adult Social Care,My Options,Employees,Agency Supply Costs,Safehands Recruitment,26/10/2022,"10,570.56"
Adult Social Care,My Options,Premises-Related Expenditure,Hire Of Rooms,Telford Sailability,11/10/2022,120.00
Adult Social Care,My Options,Supplies & Services,Equipment - Purchase,JCE & SONS LTD,11/10/2022,534.00
Adult Social Care,My Options,Capital Expenditure,Payments to Contractor,R and Partners LLP,17/10/2022,"3,340.45"
Adult Social Care,My Options,Capital Expenditure,Payments to Contractor,R and Partners LLP,17/10/2022,"7,947.25"
Adult Social Care,Prevention & Independence - Older Adults & Disability,Employees,Agency Supply Costs,CLEANIT CLEANING SERVICES,24/10/2022,"1,480.00"
Adult Social Care,Prevention & Independence - Older Adults & Disability,Supplies & Services,Legal Expenses,POST ROOM,19/10/2022,371.00
Adult Social Care,Prevention & Independence - Older Adults & Disability,Third Party Payments,Residential Expenditure,NHS Shropshire Telford and Wrekin CCG,19/10/2022,"42,601.00"
Adult Social Care,Prevention & Independence - Older Adults & Disability,Transport-Related Expenditure,Taxi Costs,Telford Taxi Hire Limited,06/10/2022,260.00
Adult Social Care,Prevention & Independence - Older Adults & Disability,Transport-Related Expenditure,Taxi Costs,C Ambulance,24/10/2022,182.00
Adult Social Care,Prevention & Independence - Older Adults & Disability,Transport-Related Expenditure,Taxi Costs,C Ambulance,24/10/2022,130.00
Adult Social Care,Prevention & Independence - Older Adults & Disability,Transport-Related Expenditure,Taxi Costs,C Ambulance,24/10/2022,182.00
Adult Social Care,Prevention & Independence - Older Adults & Disability,Transport-Related Expenditure,Taxi Costs,C Ambulance,24/10/2022,156.00
Adult Social Care,Prevention & Independence - Older Adults & Disability,Transport-Related Expenditure,Taxi Costs,C Ambulance,24/10/2022,156.00
Adult Social Care,Prevention & Independence - Older Adults & Disability,Transport-Related Expenditure,Taxi Costs,C Ambulance,24/10/2022,234.00
Adult Social Care,Prevention & Independence - Older Adults & Disability,Transport-Related Expenditure,Taxi Costs,C Ambulance,24/10/2022,156.00
Adult Social Care,Prevention & Independence - Older Adults & Disability,Transport-Related Expenditure,Taxi Costs,C Ambulance,24/10/2022,182.00
Adult Social Care,Prevention & Independence - Older Adults & Disability,Transport-Related Expenditure,Taxi Costs,C Ambulance,24/10/2022,182.00
Adult Social Care,Prevention & Independence - Older Adults & Disability,Supplies & Services,Aids & Appliances,Medequip,11/10/2022,204.75
Adult Social Care,Prevention & Independence - Older Adults & Disability,Supplies & Services,Aids & Appliances,SW RETAIL LTD T/A IC,10/10/2022,108.94
Adult Social Care,Prevention & Independence - Older Adults & Disability,Supplies & Services,Aids & Appliances,THE WREKIN HOUSING TRUST ,11/10/2022,125.00
Adult Social Care,Prevention & Independence - Older Adults & Disability,Supplies & Services,Aids & Appliances,Medequip,04/10/2022,256.42
Adult Social Care,Prevention & Independence - Older Adults & Disability,Supplies & Services,Aids & Appliances,Medequip,17/10/2022,142.63
Adult Social Care,Prevention & Independence - Older Adults & Disability,Supplies & Services,Aids & Appliances,Easylink,04/10/2022,242.87
Adult Social Care,Prevention & Independence - Older Adults & Disability,Supplies & Services,Aids & Appliances,Medequip,04/10/2022,204.75
Adult Social Care,Prevention & Independence - Older Adults & Disability,Supplies & Services,Aids & Appliances,Medequip,04/10/2022,204.75
Adult Social Care,Prevention & Independence - Older Adults & Disability,Supplies & Services,Aids & Appliances,Easylink,11/10/2022,160.65
Adult Social Care,Prevention & Independence - Older Adults & Disability,Supplies & Services,Aids & Appliances,Medequip,28/10/2022,204.75
Adult Social Care,Prevention & Independence - Older Adults & Disability,Supplies & Services,Aids & Appliances,Possum Ltd,17/10/2022,895.00
Adult Social Care,Prevention & Independence - Older Adults & Disability,Supplies & Services,Aids & Appliances,Easylink,17/10/2022,117.18
Adult Social Care,Prevention & Independence - Older Adults & Disability,Supplies & Services,Aids & Appliances,Medequip,15/10/2022,256.42
Adult Social Care,Prevention & Independence - Older Adults & Disability,Supplies & Services,Aids & Appliances,Medequip,19/10/2022,204.75
Adult Social Care,Prevention & Independence - Older Adults & Disability,Supplies & Services,Aids & Appliances,Easylink,21/10/2022,131.36
Adult Social Care,Prevention & Independence - Older Adults & Disability,Supplies & Services,Aids & Appliances,Easylink,20/10/2022,160.65
Adult Social Care,Prevention & Independence - Older Adults & Disability,Supplies & Services,Equipment - Repair,STANNAH LIFT SERVICES LTD,31/10/2022,"1,165.55"
Adult Social Care,Prevention & Independence - Older Adults & Disability,Supplies & Services,Aids & Appliances,Accora,18/10/2022,"5,264.00"
Adult Social Care,Prevention & Independence - Older Adults & Disability,Supplies & Services,Aids & Appliances,OSPREY HEALTHCARE LTD,18/10/2022,213.00
Adult Social Care,Prevention & Independence - Older Adults & Disability,Supplies & Services,Aids & Appliances,Nottingham Rehab Ltd,06/10/2022,324.15
Adult Social Care,Prevention & Independence - Older Adults & Disability,Supplies & Services,Aids & Appliances,HOSPITAL DIRECT  LTD,10/10/2022,302.25
Adult Social Care,Prevention & Independence - Older Adults & Disability,Supplies & Services,Aids & Appliances,Direct Healthcare Group Limited,03/10/2022,470.00
Adult Social Care,Prevention & Independence - Older Adults & Disability,Supplies & Services,Equipment - Repair,STANNAH LIFT SERVICES LTD,03/10/2022,"1,110.25"
Adult Social Care,Prevention & Independence - Older Adults & Disability,Supplies & Services,Equipment - Repair,STANNAH LIFT SERVICES LTD,21/10/2022,"6,407.25"
Adult Social Care,Prevention & Independence - Older Adults & Disability,Supplies & Services,Aids & Appliances,Nottingham Rehab Ltd,19/10/2022,-324.15
Adult Social Care,Prevention & Independence - Older Adults & Disability,Supplies & Services,Equipment - Repair,STANNAH LIFT SERVICES LTD,19/10/2022,483.01
Adult Social Care,Prevention & Independence - Older Adults & Disability,Supplies & Services,Aids & Appliances,PRISM MEDICAL WESTHOLME DIVISION,05/10/2022,220.90
Adult Social Care,Prevention & Independence - Older Adults & Disability,Supplies & Services,Aids & Appliances,OSPREY SLING COMPANY LTD,18/10/2022,118.00
Adult Social Care,Prevention & Independence - Older Adults & Disability,Supplies & Services,Aids & Appliances,Nottingham Rehab Ltd,12/10/2022,569.90
Adult Social Care,Prevention & Independence - Older Adults & Disability,Supplies & Services,Aids & Appliances,OSPREY HEALTHCARE LTD,06/10/2022,215.00
Adult Social Care,Prevention & Independence - Older Adults & Disability,Supplies & Services,Aids & Appliances,OSPREY HEALTHCARE LTD,06/10/2022,473.00
Adult Social Care,Prevention & Independence - Older Adults & Disability,Supplies & Services,Aids & Appliances,OSPREY HEALTHCARE LTD,06/10/2022,136.40
Adult Social Care,Prevention & Independence - Older Adults & Disability,Supplies & Services,Aids & Appliances,OSPREY HEALTHCARE LTD,06/10/2022,"1,167.20"
Adult Social Care,Prevention & Independence - Older Adults & Disability,Supplies & Services,Equipment - Repair,Closomat Limited,06/10/2022,190.00
Adult Social Care,Prevention & Independence - Older Adults & Disability,Supplies & Services,Aids & Appliances,Mobility Smart Limited,11/10/2022,"7,650.00"
Adult Social Care,Prevention & Independence - Older Adults & Disability,Supplies & Services,Aids & Appliances,Nottingham Rehab Ltd,17/10/2022,"3,032.00"
Adult Social Care,Prevention & Independence - Older Adults & Disability,Supplies & Services,Equipment - Repair,STANNAH LIFT SERVICES LTD,31/10/2022,861.50
Adult Social Care,Prevention & Independence - Older Adults & Disability,Supplies & Services,Aids & Appliances,Nottingham Rehab Ltd,19/10/2022,227.96
Adult Social Care,Prevention & Independence - Older Adults & Disability,Supplies & Services,Aids & Appliances,OSPREY SLING COMPANY LTD,20/10/2022,118.00
Adult Social Care,Prevention & Independence - Older Adults & Disability,Supplies & Services,Equipment - Repair,Closomat Limited,13/10/2022,190.00
Adult Social Care,Prevention & Independence - Older Adults & Disability,Supplies & Services,Carriage/Delivery Charge,Accora,18/10/2022,165.00
Adult Social Care,Prevention & Independence - Older Adults & Disability,Supplies & Services,Aids & Appliances,SHROPSHIRE COMMUNITY HEALTH NHS TRUST,31/10/2022,"6,301.66"
Adult Social Care,Prevention & Independence - Older Adults & Disability,Supplies & Services,Aids & Appliances,SHROPSHIRE COMMUNITY HEALTH NHS TRUST,31/10/2022,"12,603.32"
Adult Social Care,Prevention & Independence - Older Adults & Disability,Supplies & Services,Aids & Appliances,SHROPSHIRE COMMUNITY HEALTH NHS TRUST,06/10/2022,"6,301.66"
Adult Social Care,Prevention & Independence - Older Adults & Disability,Supplies & Services,Mobile Phones,EE LTD EQUIPMENT ,10/10/2022,142.00
Adult Social Care,Prevention & Independence - Older Adults & Disability,Supplies & Services,Mobile Phones,EE LTD EQUIPMENT,10/10/2022,568.00
Adult Social Care,Prevention & Independence - Older Adults & Disability,Supplies & Services,Aids & Appliances,Care & Independence,07/10/2022,191.50
Adult Social Care,Prevention & Independence - Older Adults & Disability,Employees,Agency Supply Costs,Reed Talent Solutions Ltd,28/10/2022,"4,680.00"
Adult Social Care,Prevention & Independence - Older Adults & Disability,Employees,Agency Supply Costs,Reed Talent Solutions Ltd,24/10/2022,"4,680.00"
Adult Social Care,Prevention & Independence - Older Adults & Disability,Employees,Agency Supply Costs,Reed Talent Solutions Ltd,24/10/2022,"3,960.00"
Adult Social Care,Prevention & Independence - Older Adults & Disability,Employees,Agency Supply Costs,Reed Talent Solutions Ltd,19/10/2022,137.83
Adult Social Care,Prevention & Independence - Older Adults & Disability,Employees,Agency Supply Costs,Reed Talent Solutions Ltd,19/10/2022,143.37
Adult Social Care,Prevention & Independence - Older Adults & Disability,Employees,Agency Supply Costs,R Talent Solutions Ltd,06/10/2022,"3,600.00"
Adult Social Care,Prevention & Independence - Older Adults & Disability,Premises-Related Expenditure,Hire Of Rooms,Telford and Wrekin Interfaith Council,24/10/2022,300.00
Adult Social Care,Prevention & Independence - Older Adults & Disability,Premises-Related Expenditure,Hire Of Rooms,Telford and Wrekin Interfaith Council,24/10/2022,240.00
Adult Social Care,Prevention & Independence - Older Adults & Disability,Premises-Related Expenditure,Hire Of Rooms,Telford and Wrekin Interfaith Council,24/10/2022,180.00
Adult Social Care,Prevention & Independence - Older Adults & Disability,Supplies & Services,Mobile Phones,EE LTD EQUIPMENT ,10/10/2022,142.00
Children�s Safeguarding & Family Support,Child Protection & Family Support,Supplies & Services,Grants To Voluntary Organis,YMCA,07/10/2022,"19,876.40"
Children�s Safeguarding & Family Support,Child Protection & Family Support,Supplies & Services,Grants To Voluntary Organis,YMCA,25/10/2022,"19,876.40"
Children�s Safeguarding & Family Support,Child Protection & Family Support,Supplies & Services,Other Services,L R Social Care Solutions Ltd,19/10/2022,"1,500.00"
Children�s Safeguarding & Family Support,Child Protection & Family Support,Employees,Agency Supply Costs,Pertemps Recruitment Partnership Limited,20/10/2022,509.10
Children�s Safeguarding & Family Support,Child Protection & Family Support,Supplies & Services,Mobile Phones,EE LTD EQUIPMENT,04/10/2022,142.00
Children�s Safeguarding & Family Support,Child Protection & Family Support,Employees,Agency Supply Costs,Xyla Health & Social Services,05/10/2022,"13,532.00"
Children�s Safeguarding & Family Support,Child Protection & Family Support,Employees,Agency Supply Costs,Xyla Health & Social Services,19/10/2022,381.69
Children�s Safeguarding & Family Support,Child Protection & Family Support,Supplies & Services,Legal Expenses,Jayamohan Ltd,19/10/2022,212.85
Children�s Safeguarding & Family Support,Child Protection & Family Support,Premises-Related Expenditure,Hire Of Rooms,MEETING POINT TRUST LTD,11/10/2022,245.00
Children�s Safeguarding & Family Support,Child Protection & Family Support,Premises-Related Expenditure,Hire Of Rooms,MEETING POINT TRUST LTD,11/10/2022,250.00
Children�s Safeguarding & Family Support,Child Protection & Family Support,Employees,Agency Supply Costs,Xyla Health & Social Services,19/10/2022,"13,532.00"
Children�s Safeguarding & Family Support,Child Protection & Family Support,Employees,Agency Supply Costs,Xyla Health & Social Services,11/10/2022,"19,091.00"
Children�s Safeguarding & Family Support,Child Protection & Family Support,Employees,Agency Supply Costs,Xyla Health & Social Services,11/10/2022,"19,091.00"
Children�s Safeguarding & Family Support,Child Protection & Family Support,Supplies & Services,Mobile Phones,EE LTD EQUIPMENT ,03/10/2022,142.00
Children�s Safeguarding & Family Support,Child Protection & Family Support,Supplies & Services,Mobile Phones,EE LTD EQUIPMENT,10/10/2022,142.00
Children�s Safeguarding & Family Support,Child Protection & Family Support,Supplies & Services,Mobile Phones,EE LTD EQUIPMENT ,03/10/2022,142.00
Children�s Safeguarding & Family Support,Child Protection & Family Support,Supplies & Services,Mobile Phones,EE LTD EQUIPMENT,03/10/2022,142.00
Children�s Safeguarding & Family Support,Child Protection & Family Support,Employees,Staff Training,Strengthening Practice,12/10/2022,"1,650.00"
Children�s Safeguarding & Family Support,Child Protection & Family Support,Employees,Staff Training,INSIGHT Wellbeing Services Ltd,07/10/2022,550.00
Children�s Safeguarding & Family Support,Child Protection & Family Support,Supplies & Services,Mobile Phones,EE LTD EQUIPMENT ,03/10/2022,142.00
Children�s Safeguarding & Family Support,Child Protection & Family Support,Supplies & Services,Mobile Phones,EE LTD EQUIPMENT,10/10/2022,142.00
Children�s Safeguarding & Family Support,Child Protection & Family Support,Supplies & Services,Mobile Phones,EE LTD EQUIPMENT ,10/10/2022,142.00
Children�s Safeguarding & Family Support,Child Protection & Family Support,Employees,Agency Supply Costs,Xyla Health & Social Services,11/10/2022,"19,091.00"
Children�s Safeguarding & Family Support,Child Protection & Family Support,Employees,Staff Training,Strengthening Practice,20/10/2022,"1,200.00"
Children�s Safeguarding & Family Support,Child Protection & Family Support,Third Party Payments,Joint Financing,Adoption Focus,12/10/2022,"33,871.00"
Children�s Safeguarding & Family Support,Family Connect & Childrens Centres,Supplies & Services,Mobile Phones,EE LTD EQUIPMENT ,03/10/2022,142.00
Children�s Safeguarding & Family Support,Family Connect & Childrens Centres,Premises-Related Expenditure,R&M -Building Other,TAYLORS MECHANICAL H & P SERVICES LTD,24/10/2022,288.92
Children�s Safeguarding & Family Support,Family Connect & Childrens Centres,Premises-Related Expenditure,Hire Of Rooms,HOLLINSWOOD & RANDLAY PARISH COUNCIL,24/10/2022,156.00
Children�s Safeguarding & Family Support,Family Connect & Childrens Centres,Supplies & Services,Public Participation,REDACTED PERSONAL INFORMATION,24/10/2022,120.06
Children�s Safeguarding & Family Support,Family Connect & Childrens Centres,Supplies & Services,Bulk Refuse Contracts Hire,GREEN SKIPS LTD,24/10/2022,180.00
Children�s Safeguarding & Family Support,Family Connect & Childrens Centres,Supplies & Services,Mobile Phones,EE LTD EQUIPMENT ,04/10/2022,568.00
Children�s Safeguarding & Family Support,Family Connect & Childrens Centres,Supplies & Services,Mobile Phones,EE LTD EQUIPMENT ,03/10/2022,426.00
Children�s Safeguarding & Family Support,Family Connect & Childrens Centres,Supplies & Services,Mobile Phones,EE LTD EQUIPMENT ,10/10/2022,142.00
Children�s Safeguarding & Family Support,"Family Placements, Children in Care, Leaving Care & Emergency Duty Team",Employees,Agency Supply Costs,Neighbourly Helpers Ltd,12/10/2022,234.51
Children�s Safeguarding & Family Support,"Family Placements, Children in Care, Leaving Care & Emergency Duty Team",Supplies & Services,Mobile Phones,EE LTD EQUIPMENT ,03/10/2022,426.00
Children�s Safeguarding & Family Support,"Family Placements, Children in Care, Leaving Care & Emergency Duty Team",Supplies & Services,Form F Assessments,ES-PBS Services,21/10/2022,"1,000.00"
Children�s Safeguarding & Family Support,"Family Placements, Children in Care, Leaving Care & Emergency Duty Team",Transport-Related Expenditure,Transport,Telford Taxi Hire Limited,04/10/2022,"3,400.00"
Children�s Safeguarding & Family Support,"Family Placements, Children in Care, Leaving Care & Emergency Duty Team",Supplies & Services,Equipment - Repair,ARJO UK LTD,03/10/2022,181.82
Children�s Safeguarding & Family Support,"Family Placements, Children in Care, Leaving Care & Emergency Duty Team",Supplies & Services,Equipment - Repair,STANNAH LIFT SERVICES LTD,03/10/2022,866.25
Children�s Safeguarding & Family Support,"Family Placements, Children in Care, Leaving Care & Emergency Duty Team",Supplies & Services,Equipment - Repair,Closomat Limited,03/10/2022,190.00
Children�s Safeguarding & Family Support,"Family Placements, Children in Care, Leaving Care & Emergency Duty Team",Supplies & Services,Aids & Appliances,G & S S LTD,13/10/2022,"1,236.00"
Children�s Safeguarding & Family Support,"Family Placements, Children in Care, Leaving Care & Emergency Duty Team",Supplies & Services,Aids & Appliances,Tough Furniture Ltd,11/10/2022,"1,076.00"
Children�s Safeguarding & Family Support,"Family Placements, Children in Care, Leaving Care & Emergency Duty Team",Supplies & Services,Aids & Appliances,Tough Furniture Ltd,06/10/2022,656.00
Children�s Safeguarding & Family Support,"Family Placements, Children in Care, Leaving Care & Emergency Duty Team",Supplies & Services,Aids & Appliances,OSPREY SLING COMPANY LTD,04/10/2022,271.00
Children�s Safeguarding & Family Support,"Family Placements, Children in Care, Leaving Care & Emergency Duty Team",Supplies & Services,Aids & Appliances,Tough Furniture Ltd,11/10/2022,859.00
Children�s Safeguarding & Family Support,"Family Placements, Children in Care, Leaving Care & Emergency Duty Team",Supplies & Services,Aids & Appliances,Tough Furniture Ltd,11/10/2022,828.00
Children�s Safeguarding & Family Support,"Family Placements, Children in Care, Leaving Care & Emergency Duty Team",Supplies & Services,Equipment - Repair,STANNAH LIFT SERVICES LTD,31/10/2022,273.75
Children�s Safeguarding & Family Support,"Family Placements, Children in Care, Leaving Care & Emergency Duty Team",Supplies & Services,Equipment - Repair,STANNAH LIFT SERVICES LTD,21/10/2022,293.75
Children�s Safeguarding & Family Support,"Family Placements, Children in Care, Leaving Care & Emergency Duty Team",Supplies & Services,Aids & Appliances,Tough Furniture Ltd,27/10/2022,537.00
Children�s Safeguarding & Family Support,"Family Placements, Children in Care, Leaving Care & Emergency Duty Team",Supplies & Services,Aids & Appliances,G & S S LTD,27/10/2022,"1,238.00"
Children�s Safeguarding & Family Support,"Family Placements, Children in Care, Leaving Care & Emergency Duty Team",Supplies & Services,Aids & Appliances,BES Healthcare Ltd,27/10/2022,982.45
Children�s Safeguarding & Family Support,"Family Placements, Children in Care, Leaving Care & Emergency Duty Team",Supplies & Services,Aids & Appliances,Tough Furniture Ltd,27/10/2022,336.00
Children�s Safeguarding & Family Support,"Family Placements, Children in Care, Leaving Care & Emergency Duty Team",Supplies & Services,Aids & Appliances,M A S Associates,11/10/2022,300.00
Children�s Safeguarding & Family Support,"Family Placements, Children in Care, Leaving Care & Emergency Duty Team",Supplies & Services,Aids & Appliances,Jiraffe,20/10/2022,"1,811.00"
Children�s Safeguarding & Family Support,"Family Placements, Children in Care, Leaving Care & Emergency Duty Team",Supplies & Services,Aids & Appliances,Jiraffe,20/10/2022,"2,088.00"
Children�s Safeguarding & Family Support,"Family Placements, Children in Care, Leaving Care & Emergency Duty Team",Supplies & Services,Aids & Appliances,Specialised Orthotic Services Ltd,12/10/2022,"1,724.55"
Children�s Safeguarding & Family Support,"Family Placements, Children in Care, Leaving Care & Emergency Duty Team",Premises-Related Expenditure,Hire Of Rooms,MEETING POINT TRUST LTD,30/10/2022,220.00
Children�s Safeguarding & Family Support,"Family Placements, Children in Care, Leaving Care & Emergency Duty Team",Supplies & Services,Other Grants (Expenses),"NHS Shropshire, Telford and Wrekin CCG",25/10/2022,"28,334.00"
Children�s Safeguarding & Family Support,"Family Placements, Children in Care, Leaving Care & Emergency Duty Team",Supplies & Services,Other Grants (Expenses),"NHS Shropshire, Telford and Wrekin CCG",25/10/2022,"40,000.00"
Children�s Safeguarding & Family Support,"Family Placements, Children in Care, Leaving Care & Emergency Duty Team",Transport-Related Expenditure,Transport,Telford Taxi Hire Limited,04/10/2022,"5,200.00"
Children�s Safeguarding & Family Support,"Family Placements, Children in Care, Leaving Care & Emergency Duty Team",Supplies & Services,Mobile Phones,EE LTD EQUIPMENT,10/10/2022,142.00
Children�s Safeguarding & Family Support,"Family Placements, Children in Care, Leaving Care & Emergency Duty Team",Supplies & Services,Mobile Phones,EE LTD EQUIPMENT,10/10/2022,142.00
Children�s Safeguarding & Family Support,"Family Placements, Children in Care, Leaving Care & Emergency Duty Team",Employees,Staff Training,Leaving Care Training & Consultancy Service,12/10/2022,788.12
Children�s Safeguarding & Family Support,"Family Placements, Children in Care, Leaving Care & Emergency Duty Team",Employees,Staff Training,Leaving Care Training & Consultancy Service,12/10/2022,"1,151.87"
Children�s Safeguarding & Family Support,"Family Placements, Children in Care, Leaving Care & Emergency Duty Team",Employees,Staff Training,Leaving Care Training & Consultancy Service,12/10/2022,788.12
Children�s Safeguarding & Family Support,"Family Placements, Children in Care, Leaving Care & Emergency Duty Team",Supplies & Services,Provisions,MEETING POINT TRUST LTD,10/10/2022,900.00
Children�s Safeguarding & Family Support,"Family Placements, Children in Care, Leaving Care & Emergency Duty Team",Supplies & Services,Educational Visits,A-STAR TRANSPORT MIDLANDS LTD,19/10/2022,720.00
Children�s Safeguarding & Family Support,"Family Placements, Children in Care, Leaving Care & Emergency Duty Team",Supplies & Services,Furniture - Purchase,AST FLOORCOVERINGS LTD,26/10/2022,770.53
Children�s Safeguarding & Family Support,"Family Placements, Children in Care, Leaving Care & Emergency Duty Team",Supplies & Services,Form F Assessments,PC Assessments Ltd,05/10/2022,214.04
Children�s Safeguarding & Family Support,"Family Placements, Children in Care, Leaving Care & Emergency Duty Team",Supplies & Services,Form F Assessments,PC Assessments Ltd,05/10/2022,"2,259.20"
Children�s Safeguarding & Family Support,"Family Placements, Children in Care, Leaving Care & Emergency Duty Team",Premises-Related Expenditure,Hire Of Rooms,Mercure Telford Centre Hotel,05/10/2022,"4,560.00"
Children�s Safeguarding & Family Support,"Family Placements, Children in Care, Leaving Care & Emergency Duty Team",Premises-Related Expenditure,Hire Of Rooms,Dawley Baptist Church,18/10/2022,250.00
Children�s Safeguarding & Family Support,"Family Placements, Children in Care, Leaving Care & Emergency Duty Team",Supplies & Services,Materials,Telford Balloons,17/10/2022,345.00
Children�s Safeguarding & Family Support,"Family Placements, Children in Care, Leaving Care & Emergency Duty Team",Supplies & Services,Form F Assessments,Kite Fostering Consultancy Ltd,05/10/2022,"4,082.80"
Children�s Safeguarding & Family Support,"Family Placements, Children in Care, Leaving Care & Emergency Duty Team",Supplies & Services,Advertising,Bauer Radio Ltd,17/10/2022,848.16
Children�s Safeguarding & Family Support,"Family Placements, Children in Care, Leaving Care & Emergency Duty Team",Supplies & Services,Advertising,Bauer Radio Ltd,17/10/2022,820.80
Children�s Safeguarding & Family Support,"Family Placements, Children in Care, Leaving Care & Emergency Duty Team",Supplies & Services,Advertising,Bauer Radio Ltd,17/10/2022,"2,276.09"
Children�s Safeguarding & Family Support,"Family Placements, Children in Care, Leaving Care & Emergency Duty Team",Supplies & Services,Advertising,Newsquest Media Group,17/10/2022,"2,800.00"
Children�s Safeguarding & Family Support,"Family Placements, Children in Care, Leaving Care & Emergency Duty Team",Third Party Payments,Private Contractors,Shared Services Connected Limited,19/10/2022,"5,833.00"
Children�s Safeguarding & Family Support,"Family Placements, Children in Care, Leaving Care & Emergency Duty Team",Third Party Payments,Private Contractors,Shared Services Connected Limited,19/10/2022,"4,298.00"
Children�s Safeguarding & Family Support,"Family Placements, Children in Care, Leaving Care & Emergency Duty Team",Third Party Payments,Private Contractors,Shared Services Connected Limited,19/10/2022,"4,298.00"
Children�s Safeguarding & Family Support,"Family Placements, Children in Care, Leaving Care & Emergency Duty Team",Third Party Payments,Private Contractors,Shared Services Connected Limited,19/10/2022,"10,262.00"
Children�s Safeguarding & Family Support,Safeguarding & Community Social Work,Supplies & Services,Mobile Phones,EE LTD EQUIPMENT,10/10/2022,142.00
Children�s Safeguarding & Family Support,Safeguarding & Community Social Work,Supplies & Services,Mobile Phones,EE LTD EQUIPMENT,10/10/2022,426.00
Children�s Safeguarding & Family Support,Safeguarding Advisory,Supplies & Services,Mobile Phones,EE LTD EQUIPMENT,03/10/2022,142.00
Children�s Safeguarding & Family Support,Safeguarding Advisory,Supplies & Services,Mobile Phones,EE LTD EQUIPMENT,10/10/2022,710.00
Children�s Safeguarding & Family Support,Safeguarding Advisory,Supplies & Services,Mobile Phones,EE LTD EQUIPMENT,10/10/2022,142.00
Children�s Safeguarding & Family Support,Safeguarding Advisory,Supplies & Services,Public Transport Subsidy,MEETING POINT TRUST LTD,20/10/2022,310.00
"Communities, Customer & Commercial Services",Community Services,Supplies & Services,Grants To Voluntary Organis,The Methodist Church Dawley,28/10/2022,"3,500.00"
"Communities, Customer & Commercial Services",Community Services,Supplies & Services,Fees,INSTITUTE OF ENVIRONMENTAL MANAGEMENT & ASSESSMENT ,06/10/2022,123.90
"Communities, Customer & Commercial Services",Community Services,Supplies & Services,Equipment - Purchase,Symmetrikit,27/10/2022,"1,764.00"
"Communities, Customer & Commercial Services",Community Services,Supplies & Services,Grants To Voluntary Organis,Chit Chat Club,28/10/2022,600.00
"Communities, Customer & Commercial Services",Community Services,Supplies & Services,Grants To Voluntary Organis,MADELEY PARISH COUNCIL ,18/10/2022,"2,299.20"
"Communities, Customer & Commercial Services",Community Services,Supplies & Services,Grants To Voluntary Organis,MADELEY PARISH COUNCIL ,18/10/2022,"1,896.32"
"Communities, Customer & Commercial Services",Community Services,Supplies & Services,Grants To Voluntary Organis,ERCALL MAGNA PARISH COUNCIL,10/10/2022,"1,200.00"
"Communities, Customer & Commercial Services",Community Services,Supplies & Services,Grants To Voluntary Organis,ERCALL MAGNA PARISH COUNCIL,10/10/2022,300.00
"Communities, Customer & Commercial Services",Community Services,Supplies & Services,Grants To Voluntary Organis,Challenging Perceptions CIC,10/10/2022,"1,900.00"
"Communities, Customer & Commercial Services",Community Services,Supplies & Services,Grants To Voluntary Organis,GREAT DAWLEY PARISH COUNCIL,17/10/2022,"13,500.00"
"Communities, Customer & Commercial Services",Community Services,Supplies & Services,Grants To Voluntary Organis,Edgmond Village Hall,17/10/2022,"1,000.00"
"Communities, Customer & Commercial Services",Community Services,Supplies & Services,Grants To Voluntary Organis,STIRCHLEY & BROOKSIDE PARISH COUNCIL,17/10/2022,200.00
"Communities, Customer & Commercial Services",Community Services,Supplies & Services,Grants To Voluntary Organis,HOME-START TELFORD & WREKIN,17/10/2022,"1,500.00"
"Communities, Customer & Commercial Services",Community Services,Supplies & Services,Grants To Voluntary Organis,STIRCHLEY & BROOKSIDE PARISH COUNCIL ,17/10/2022,600.00
"Communities, Customer & Commercial Services",Community Services,Supplies & Services,Grants To Voluntary Organis,BOURNVILLE VILLAGE TRUST,28/10/2022,586.00
"Communities, Customer & Commercial Services",Community Services,Supplies & Services,Grants To Voluntary Organis,Sutton Hill Community Trust,31/10/2022,500.00
"Communities, Customer & Commercial Services",Community Services,Supplies & Services,Grants To Voluntary Organis,DONNINGTON & MUXTON PARISH COUNCIL,19/10/2022,"1,000.00"
"Communities, Customer & Commercial Services",Community Services,Supplies & Services,Grants To Voluntary Organis,Telford Crisis Support,19/10/2022,500.00
"Communities, Customer & Commercial Services",Community Services,Supplies & Services,Grants To Voluntary Organis,KYNNERSLEY PARISH COUNCIL ,12/10/2022,200.00
"Communities, Customer & Commercial Services",Community Services,Supplies & Services,Grants To Voluntary Organis,EDGMOND PARISH COUNCIL ,07/10/2022,"3,000.00"
"Communities, Customer & Commercial Services",Community Services,Supplies & Services,Grants To Voluntary Organis,PARK LANE CENTRE,26/10/2022,"10,000.00"
"Communities, Customer & Commercial Services",Community Services,Supplies & Services,Grants To Voluntary Organis,Sutton Hill Community Trust,07/10/2022,"9,992.80"
"Communities, Customer & Commercial Services",Community Services,Premises-Related Expenditure,Electricity,West Mercia Energy ,25/10/2022,562.81
"Communities, Customer & Commercial Services",Community Services,Capital Expenditure,Payments to Contractor,DLM Ltd,05/10/2022,"68,350.00"
"Communities, Customer & Commercial Services",Culture & Events,Supplies & Services,Mobile Phones,EE LTD EQUIPMENT,10/10/2022,142.00
"Communities, Customer & Commercial Services",Culture & Events,Supplies & Services,Marketing & Publicity,The Curiuous Way,20/10/2022,650.00
"Communities, Customer & Commercial Services",Culture & Events,Supplies & Services,Service Contracts,FREELANCE BUSINESS ASSOCIATES,20/10/2022,480.00
"Communities, Customer & Commercial Services",Culture & Events,Supplies & Services,Mobile Phones,EE LTD EQUIPMENT,10/10/2022,142.00
"Communities, Customer & Commercial Services",Culture & Events,Supplies & Services,Advertising,Colston Media Ltd,13/10/2022,150.00
"Communities, Customer & Commercial Services",Culture & Events,Supplies & Services,Promotion Expenses,Spektrix Limited,25/10/2022,"2,464.75"
"Communities, Customer & Commercial Services",Culture & Events,Supplies & Services,Promotion Expenses,crowdEngage Limited,25/10/2022,210.00
"Communities, Customer & Commercial Services",Culture & Events,Supplies & Services,Promotion Expenses,crowdEngage Limited,25/10/2022,210.00
"Communities, Customer & Commercial Services",Culture & Events,Supplies & Services,Advertising,WHATS ON MAGAZINES LTD,19/10/2022,275.00
"Communities, Customer & Commercial Services",Culture & Events,Supplies & Services,Advertising,Colston Media Ltd,28/10/2022,200.00
"Communities, Customer & Commercial Services",Culture & Events,Supplies & Services,Promotion Expenses,M C MARKETING LTD,13/10/2022,725.00
"Communities, Customer & Commercial Services",Culture & Events,Supplies & Services,Promotion Expenses,M C MARKETING LTD,13/10/2022,"1,460.00"
"Communities, Customer & Commercial Services",Culture & Events,Supplies & Services,Performing Rights Fees,PPL PRS Ltd,06/10/2022,"6,509.18"
"Communities, Customer & Commercial Services",Culture & Events,Supplies & Services,Advertising,RARING TO GO,05/10/2022,230.00
"Communities, Customer & Commercial Services",Culture & Events,Supplies & Services,Artistes Fees,The Arts Centre Telford,28/10/2022,605.00
"Communities, Customer & Commercial Services",Culture & Events,Supplies & Services,Artistes Fees,Fiery Light PPS Ltd,28/10/2022,"15,156.35"
"Communities, Customer & Commercial Services",Culture & Events,Supplies & Services,Artistes Fees,Heartbreak Ents Ltd,10/10/2022,860.30
"Communities, Customer & Commercial Services",Culture & Events,Supplies & Services,Artistes Fees,Anstice Community Trust,07/10/2022,576.00
"Communities, Customer & Commercial Services",Culture & Events,Supplies & Services,Artistes Fees,Ellis Live Ltd,07/10/2022,"8,407.88"
"Communities, Customer & Commercial Services",Culture & Events,Supplies & Services,Artistes Fees,Barry Collings Entertainments,21/10/2022,"2,910.80"
"Communities, Customer & Commercial Services",Culture & Events,Supplies & Services,Promotion Expenses,Ticketplan Limited,06/10/2022,354.96
"Communities, Customer & Commercial Services",Culture & Events,Supplies & Services,Audit Services,DMC STOCKTAKING,07/10/2022,160.00
"Communities, Customer & Commercial Services",Culture & Events,Supplies & Services,Audit Services,DMC STOCKTAKING,07/10/2022,160.00
"Communities, Customer & Commercial Services",Culture & Events,Supplies & Services,Prepared Food,H CATERING SERVICES LTD,21/10/2022,267.75
"Communities, Customer & Commercial Services",Culture & Events,Supplies & Services,Wet Resale Provision,MOLSON COORS BREWING COMPANY UK LTD,26/10/2022,104.91
"Communities, Customer & Commercial Services",Culture & Events,Supplies & Services,Wet Resale Provision,MOLSON COORS BREWING COMPANY UK LTD,26/10/2022,120.20
"Communities, Customer & Commercial Services",Culture & Events,Supplies & Services,Wet Resale Provision,MOLSON COORS BREWING COMPANY UK LTD,26/10/2022,106.85
"Communities, Customer & Commercial Services",Culture & Events,Supplies & Services,Wet Resale Provision,MOLSON COORS BREWING COMPANY UK LTD,20/10/2022,480.80
"Communities, Customer & Commercial Services",Culture & Events,Supplies & Services,Wet Resale Provision,MOLSON COORS BREWING COMPANY UK LTD,27/10/2022,100.50
"Communities, Customer & Commercial Services",Culture & Events,Supplies & Services,Wet Resale Provision,MOLSON COORS BREWING COMPANY UK LTD,26/10/2022,240.40
"Communities, Customer & Commercial Services",Culture & Events,Supplies & Services,Wet Resale Provision,MOLSON COORS BREWING COMPANY UK LTD,27/10/2022,176.48
"Communities, Customer & Commercial Services",Culture & Events,Supplies & Services,Wet Resale Provision,MOLSON COORS BREWING COMPANY UK LTD,27/10/2022,178.97
"Communities, Customer & Commercial Services",Culture & Events,Supplies & Services,Wet Resale Provision,MOLSON COORS BREWING COMPANY UK LTD,27/10/2022,106.74
"Communities, Customer & Commercial Services",Culture & Events,Supplies & Services,Wet Resale Provision,MOLSON COORS BREWING COMPANY UK LTD,27/10/2022,113.46
"Communities, Customer & Commercial Services",Culture & Events,Supplies & Services,Wet Resale Provision,MOLSON COORS BREWING COMPANY UK LTD,27/10/2022,108.90
"Communities, Customer & Commercial Services",Culture & Events,Supplies & Services,Wet Resale Provision,MOLSON COORS BREWING COMPANY UK LTD,27/10/2022,111.88
"Communities, Customer & Commercial Services",Culture & Events,Supplies & Services,Wet Resale Provision,MOLSON COORS BREWING COMPANY UK LTD,27/10/2022,377.01
"Communities, Customer & Commercial Services",Culture & Events,Supplies & Services,Wet Resale Provision,MOLSON COORS BREWING COMPANY UK LTD,11/10/2022,299.88
"Communities, Customer & Commercial Services",Culture & Events,Supplies & Services,Wet Resale Provision,MOLSON COORS BREWING COMPANY UK LTD,11/10/2022,152.02
"Communities, Customer & Commercial Services",Culture & Events,Supplies & Services,Wet Resale Provision,MOLSON COORS BREWING COMPANY UK LTD,11/10/2022,251.34
"Communities, Customer & Commercial Services",Culture & Events,Supplies & Services,Wet Resale Provision,MOLSON COORS BREWING COMPANY UK LTD,11/10/2022,314.73
"Communities, Customer & Commercial Services",Culture & Events,Supplies & Services,Wet Resale Provision,MOLSON COORS BREWING COMPANY UK LTD,11/10/2022,106.85
"Communities, Customer & Commercial Services",Culture & Events,Supplies & Services,Wet Resale Provision,MOLSON COORS BREWING COMPANY UK LTD,11/10/2022,453.75
"Communities, Customer & Commercial Services",Culture & Events,Supplies & Services,Wet Resale Provision,MOLSON COORS BREWING COMPANY UK LTD,11/10/2022,212.73
"Communities, Customer & Commercial Services",Culture & Events,Supplies & Services,Audit Services,DMC STOCKTAKING,07/10/2022,160.00
"Communities, Customer & Commercial Services",Culture & Events,Supplies & Services,Confectionery & Snacks,Eden Farm Hulleys,13/10/2022,495.88
"Communities, Customer & Commercial Services",Culture & Events,Supplies & Services,Artistes Fees,Celestial Labs Ltd,03/10/2022,"59,200.00"
"Communities, Customer & Commercial Services",Culture & Events,Supplies & Services,Equipment - Hire,LITE (Lighting and Illumination Technology Experience Limited,20/10/2022,"14,340.80"
"Communities, Customer & Commercial Services",Culture & Events,Supplies & Services,Artistes Fees,City Dressing,20/10/2022,"10,537.04"
"Communities, Customer & Commercial Services",Culture & Events,Supplies & Services,Artistes Fees,Kalillo Drumming,20/10/2022,"1,000.00"
"Communities, Customer & Commercial Services",Culture & Events,Supplies & Services,First Aid,MW MEDICS LTD,20/10/2022,"1,350.00"
"Communities, Customer & Commercial Services",Culture & Events,Supplies & Services,Equipment - Hire,AQUAID BIRMINGHAM CENTRAL,20/10/2022,175.32
"Communities, Customer & Commercial Services",Culture & Events,Supplies & Services,Equipment - Hire,AQUAID BIRMINGHAM CENTRAL,20/10/2022,108.00
"Communities, Customer & Commercial Services",Culture & Events,Supplies & Services,Artistes Fees,RLN Music,20/10/2022,"2,041.35"
"Communities, Customer & Commercial Services",Culture & Events,Supplies & Services,Subsistence,BEST WESTERN VALLEY HOTEL,17/10/2022,427.50
"Communities, Customer & Commercial Services",Culture & Events,Supplies & Services,Mobile Phones,EE LTD EQUIPMENT,10/10/2022,142.00
"Communities, Customer & Commercial Services",Culture & Events,Supplies & Services,Equipment - Hire,PG Skips Ltd,28/10/2022,620.00
"Communities, Customer & Commercial Services",Culture & Events,Supplies & Services,Artistes Fees,The Codsall Hive,11/10/2022,595.00
"Communities, Customer & Commercial Services",Culture & Events,Supplies & Services,Equipment - Hire,J.E.F Scaffolding Ltd,05/10/2022,"2,165.00"
"Communities, Customer & Commercial Services",Culture & Events,Supplies & Services,Equipment - Hire,Midlands Events Ltd,20/10/2022,"1,000.00"
"Communities, Customer & Commercial Services",Culture & Events,Supplies & Services,Equipment - Hire,AQUAID BIRMINGHAM CENTRAL,24/10/2022,170.66
"Communities, Customer & Commercial Services",Culture & Events,Supplies & Services,Artistes Fees,ShowStoppers,28/10/2022,"3,645.00"
"Communities, Customer & Commercial Services",Culture & Events,Supplies & Services,Artistes Fees,ShowStoppers,28/10/2022,"10,285.00"
"Communities, Customer & Commercial Services",Culture & Events,Supplies & Services,Equipment - Hire,Illuminate Audio Visual Effects,19/10/2022,"5,287.98"
"Communities, Customer & Commercial Services",Culture & Events,Supplies & Services,Advertising,Secret Severn Art Trail,19/10/2022,400.00
"Communities, Customer & Commercial Services",Culture & Events,Supplies & Services,Equipment - Hire,AQUAID BIRMINGHAM CENTRAL,21/10/2022,792.64
"Communities, Customer & Commercial Services",Culture & Events,Supplies & Services,Artistes Fees,Fools Paradise Ltd,26/10/2022,"1,432.00"
"Communities, Customer & Commercial Services",Culture & Events,Supplies & Services,Artistes Fees,Fools Paradise Ltd,26/10/2022,"1,230.00"
"Communities, Customer & Commercial Services",Culture & Events,Supplies & Services,Artistes Fees,Fools Paradise Ltd,26/10/2022,810.00
"Communities, Customer & Commercial Services",Customer Relationships & Welfare Services,Supplies & Services,Other Grants (Expenses),Discretionary Household Support,03/10/2022,157.00
"Communities, Customer & Commercial Services",Customer Relationships & Welfare Services,Supplies & Services,Other Grants (Expenses),Discretionary Household Support,03/10/2022,800.00
"Communities, Customer & Commercial Services",Customer Relationships & Welfare Services,Supplies & Services,Other Grants (Expenses),Discretionary Household Support,03/10/2022,265.00
"Communities, Customer & Commercial Services",Customer Relationships & Welfare Services,Supplies & Services,Other Grants (Expenses),Hawk Incentives Ltd ,06/10/2022,"142,156.80"
"Communities, Customer & Commercial Services",Customer Relationships & Welfare Services,Supplies & Services,Other Grants (Expenses),Hawk Incentives Ltd ,06/10/2022,"19,744.00"
"Communities, Customer & Commercial Services",Customer Relationships & Welfare Services,Supplies & Services,Other Grants (Expenses),Discretionary Household Support,11/10/2022,400.00
"Communities, Customer & Commercial Services",Customer Relationships & Welfare Services,Supplies & Services,Other Grants (Expenses),Discretionary Household Support,17/10/2022,450.00
"Communities, Customer & Commercial Services",Customer Relationships & Welfare Services,Supplies & Services,Other Grants (Expenses),Discretionary Household Support,17/10/2022,500.00
"Communities, Customer & Commercial Services",Customer Relationships & Welfare Services,Supplies & Services,Other Grants (Expenses),Discretionary Household Support,19/10/2022,500.00
"Communities, Customer & Commercial Services",Customer Relationships & Welfare Services,Supplies & Services,Other Grants (Expenses),Discretionary Household Support,19/10/2022,170.00
"Communities, Customer & Commercial Services",Customer Relationships & Welfare Services,Supplies & Services,Other Grants (Expenses),Discretionary Household Support,19/10/2022,400.00
"Communities, Customer & Commercial Services",Customer Relationships & Welfare Services,Supplies & Services,Other Grants (Expenses),Discretionary Household Support,19/10/2022,450.00
"Communities, Customer & Commercial Services",Customer Relationships & Welfare Services,Supplies & Services,Other Grants (Expenses),Discretionary Household Support,19/10/2022,133.00
"Communities, Customer & Commercial Services",Customer Relationships & Welfare Services,Supplies & Services,Other Grants (Expenses),Discretionary Household Support,19/10/2022,500.00
"Communities, Customer & Commercial Services",Customer Relationships & Welfare Services,Supplies & Services,Other Grants (Expenses),Discretionary Household Support,27/10/2022,500.00
"Communities, Customer & Commercial Services",Customer Relationships & Welfare Services,Transfer Payments,Crisis Assistance Awards,PayPoint Network Limited,28/10/2022,120.00
"Communities, Customer & Commercial Services",Customer Relationships & Welfare Services,Transfer Payments,Crisis Assistance Awards,PayPoint Network Limited,10/10/2022,777.00
"Communities, Customer & Commercial Services",Customer Relationships & Welfare Services,Transfer Payments,Crisis Assistance Awards,PayPoint Network Limited,18/10/2022,500.00
"Communities, Customer & Commercial Services",Customer Relationships & Welfare Services,Transfer Payments,Crisis Assistance Awards,PayPoint Network Limited,18/10/2022,777.00
"Communities, Customer & Commercial Services",Customer Relationships & Welfare Services,Transfer Payments,Crisis Assistance Awards,PayPoint Network Limited,24/10/2022,400.00
"Communities, Customer & Commercial Services",Customer Relationships & Welfare Services,Transfer Payments,Crisis Assistance Awards,PayPoint Network Limited,24/10/2022,870.00
"Communities, Customer & Commercial Services",Customer Relationships & Welfare Services,Supplies & Services,Printing - Other,Financial Data Management plc,06/10/2022,165.96
"Communities, Customer & Commercial Services",Customer Relationships & Welfare Services,Supplies & Services,Postages,Financial Data Management plc,06/10/2022,145.36
"Communities, Customer & Commercial Services",Customer Relationships & Welfare Services,Supplies & Services,Conference Expenses,IRRV,04/10/2022,245.00
"Communities, Customer & Commercial Services",Customer Relationships & Welfare Services,Supplies & Services,Permit Production - Blue Badge,APS Group,05/10/2022,"1,035.74"
"Communities, Customer & Commercial Services",Customer Relationships & Welfare Services,Supplies & Services,Blue Badge Assessments,Ascenti,04/10/2022,180.00
"Communities, Customer & Commercial Services",Customer Relationships & Welfare Services,Supplies & Services,Bus Pass Production,Euclid Limited,04/10/2022,947.70
"Communities, Customer & Commercial Services",Customer Relationships & Welfare Services,Supplies & Services,Bus Pass Production,Euclid Limited,25/10/2022,829.44
"Communities, Customer & Commercial Services",Customer Relationships & Welfare Services,Supplies & Services,Permit Production - Blue Badge,Valtech Limited,12/10/2022,468.72
"Communities, Customer & Commercial Services",Customer Relationships & Welfare Services,Transfer Payments,Crisis Assistance Awards,Kings of the Road,26/10/2022,275.00
"Communities, Customer & Commercial Services",Customer Relationships & Welfare Services,Transfer Payments,Crisis Assistance Awards,Kings of the Road,26/10/2022,925.00
"Communities, Customer & Commercial Services",Customer Relationships & Welfare Services,Transfer Payments,Crisis Assistance Awards,Kings of the Road,26/10/2022,395.00
"Communities, Customer & Commercial Services",Customer Relationships & Welfare Services,Transfer Payments,Crisis Assistance Awards,Kings of the Road,26/10/2022,595.00
"Communities, Customer & Commercial Services",Customer Relationships & Welfare Services,Transfer Payments,Crisis Assistance Awards,Kings of the Road,18/10/2022,395.00
"Communities, Customer & Commercial Services",Customer Relationships & Welfare Services,Transfer Payments,Crisis Assistance Awards,Kings of the Road,18/10/2022,395.00
"Communities, Customer & Commercial Services",Customer Relationships & Welfare Services,Transfer Payments,Crisis Assistance Awards,Kings of the Road,18/10/2022,475.00
"Communities, Customer & Commercial Services",Customer Relationships & Welfare Services,Transfer Payments,Crisis Assistance Awards,Kings of the Road,07/10/2022,595.00
"Communities, Customer & Commercial Services",Customer Relationships & Welfare Services,Premises-Related Expenditure,Grounds Maintenance - Other,OASIS PLANTS LIMITED,04/10/2022,448.04
"Communities, Customer & Commercial Services",Customer Relationships & Welfare Services,Supplies & Services,Conference Expenses,LOCAL REGISTRATION SERVICES ASSOCIATION,03/10/2022,435.00
"Communities, Customer & Commercial Services",Customer Relationships & Welfare Services,Supplies & Services,Comp Software (Purch / Hire),Stopford Information System Limited,12/10/2022,"1,800.00"
"Communities, Customer & Commercial Services",ICT,Supplies & Services,Comp Software (Purch / Hire),Park Place Technologies,24/10/2022,225.60
"Communities, Customer & Commercial Services",ICT,Supplies & Services,Comp Software (Purch / Hire),Park Place Technologies,24/10/2022,225.60
"Communities, Customer & Commercial Services",ICT,Supplies & Services,Comp Software (Purch / Hire),Park Place Technologies,24/10/2022,172.44
"Communities, Customer & Commercial Services",ICT,Supplies & Services,Telecomms,Airband Community Internet,12/10/2022,300.00
"Communities, Customer & Commercial Services",ICT,Supplies & Services,Telecomms,Airband Community Internet,12/10/2022,295.00
"Communities, Customer & Commercial Services",ICT,Supplies & Services,Telecomms,Airband Community Internet,12/10/2022,125.00
"Communities, Customer & Commercial Services",ICT,Supplies & Services,Text Messages,PROCESS FLOWS UK LTD,17/10/2022,319.56
"Communities, Customer & Commercial Services",ICT,Supplies & Services,Telephones,Trustmarque Solutions Limited,06/10/2022,"2,777.61"
"Communities, Customer & Commercial Services",ICT,Supplies & Services,Mobile Phones,EE LTD EQUIPMENT,10/10/2022,284.00
"Communities, Customer & Commercial Services",ICT,Supplies & Services,Mobile Phones,EE LTD EQUIPMENT,10/10/2022,142.00
"Communities, Customer & Commercial Services",ICT,Supplies & Services,Mobile Phones,EE LTD EQUIPMENT,10/10/2022,142.00
"Communities, Customer & Commercial Services",ICT,Supplies & Services,Mobile Phones,EE LTD AIRTIME ,12/10/2022,"11,838.43"
"Communities, Customer & Commercial Services",ICT,Supplies & Services,Comp Software (Purch / Hire),Salamandersoft Limited,17/10/2022,103.00
"Communities, Customer & Commercial Services",ICT,Supplies & Services,Comp Software (Purch / Hire),Salamandersoft Limited,17/10/2022,103.00
"Communities, Customer & Commercial Services",ICT,Supplies & Services,Comp Software (Purch / Hire),RM EDUCATION PLC,31/10/2022,200.00
"Communities, Customer & Commercial Services",ICT,Supplies & Services,Comp Software (Purch / Hire),RM EDUCATION PLC,27/10/2022,200.00
"Communities, Customer & Commercial Services",ICT,Supplies & Services,Comp Software (Purch / Hire),RM EDUCATION PLC,27/10/2022,200.00
"Communities, Customer & Commercial Services",ICT,Supplies & Services,Comp Software (Purch / Hire),RM EDUCATION PLC,27/10/2022,200.00
"Communities, Customer & Commercial Services",ICT,Supplies & Services,Comp Software (Purch / Hire),RM EDUCATION PLC,27/10/2022,200.00
"Communities, Customer & Commercial Services",ICT,Supplies & Services,Comp Software (Purch / Hire),RM EDUCATION PLC,27/10/2022,200.00
"Communities, Customer & Commercial Services",ICT,Supplies & Services,Comp Software (Purch / Hire),RM EDUCATION PLC,27/10/2022,200.00
"Communities, Customer & Commercial Services",ICT,Supplies & Services,Comp Software (Purch / Hire),RM EDUCATION PLC,27/10/2022,200.00
"Communities, Customer & Commercial Services",ICT,Supplies & Services,Comp Software (Purch / Hire),RM EDUCATION PLC,27/10/2022,200.00
"Communities, Customer & Commercial Services",ICT,Supplies & Services,Comp Software (Purch / Hire),RM EDUCATION PLC,27/10/2022,200.00
"Communities, Customer & Commercial Services",ICT,Supplies & Services,Comp Software (Purch / Hire),RM EDUCATION PLC,27/10/2022,200.00
"Communities, Customer & Commercial Services",ICT,Supplies & Services,Comp Software (Purch / Hire),RM EDUCATION PLC,27/10/2022,200.00
"Communities, Customer & Commercial Services",ICT,Supplies & Services,Comp Software (Purch / Hire),RM EDUCATION PLC,27/10/2022,200.00
"Communities, Customer & Commercial Services",ICT,Supplies & Services,Comp Software (Purch / Hire),RM EDUCATION PLC,27/10/2022,200.00
"Communities, Customer & Commercial Services",ICT,Supplies & Services,Comp Software (Purch / Hire),RM EDUCATION PLC,27/10/2022,200.00
"Communities, Customer & Commercial Services",ICT,Supplies & Services,Comp Software (Purch / Hire),RM EDUCATION PLC,27/10/2022,200.00
"Communities, Customer & Commercial Services",ICT,Supplies & Services,Comp Software (Purch / Hire),RM EDUCATION PLC,27/10/2022,200.00
"Communities, Customer & Commercial Services",ICT,Supplies & Services,Comp Software (Purch / Hire),RM EDUCATION PLC,27/10/2022,200.00
"Communities, Customer & Commercial Services",ICT,Premises-Related Expenditure,R&M -Building Other,Charlton Academy,18/10/2022,"4,635.13"
"Communities, Customer & Commercial Services",ICT,Premises-Related Expenditure,Service Contracts,AVK/SEG (UK) Ltd,24/10/2022,-257.75
"Communities, Customer & Commercial Services",ICT,Premises-Related Expenditure,Service Contracts,AVK/SEG (UK) Ltd,24/10/2022,-215.25
"Communities, Customer & Commercial Services",ICT,Premises-Related Expenditure,Service Contracts,AVK/SEG (UK) Ltd,24/10/2022,"-1,291.50"
"Communities, Customer & Commercial Services",ICT,Premises-Related Expenditure,Service Contracts,AVK/SEG (UK) Ltd,24/10/2022,"-1,546.50"
"Communities, Customer & Commercial Services",ICT,Supplies & Services,External Computer Use,ESTEEM SYSTEMS Ltd,18/10/2022,"15,789.08"
"Communities, Customer & Commercial Services",ICT,Supplies & Services,Comp Software (Purch / Hire),Zellis UK Ltd,03/10/2022,"1,200.00"
"Communities, Customer & Commercial Services",ICT,Supplies & Services,Comp Software (Purch / Hire),PHOENIX SOFTWARE LTD,06/10/2022,"5,305.94"
"Communities, Customer & Commercial Services",ICT,Supplies & Services,Comp Software (Purch / Hire),PHOENIX SOFTWARE LTD,06/10/2022,"5,038.25"
"Communities, Customer & Commercial Services",ICT,Supplies & Services,Telecomms,Trustmarque Solutions Limited,05/10/2022,"301,410.31"
"Communities, Customer & Commercial Services",ICT,Supplies & Services,Comp Software (Purch / Hire),PHOENIX SOFTWARE LTD,06/10/2022,"7,417.37"
"Communities, Customer & Commercial Services",ICT,Supplies & Services,Telecomms,VIRGIN MEDIA BUSINESS ,12/10/2022,"4,267.00"
"Communities, Customer & Commercial Services",ICT,Supplies & Services,Telecomms,VIRGIN MEDIA BUSINESS,24/10/2022,"3,485.41"
"Communities, Customer & Commercial Services",ICT,Supplies & Services,Telecomms,VODAFONE LTD ,24/10/2022,"1,694.00"
"Communities, Customer & Commercial Services",ICT,Supplies & Services,Telecomms,CAPITA IT SERVICES LIMITED,31/10/2022,-787.50
"Communities, Customer & Commercial Services",ICT,Supplies & Services,Comp Software (Purch / Hire),Safe Apps Limited,31/10/2022,"46,800.00"
"Communities, Customer & Commercial Services",ICT,Supplies & Services,Comp Software (Purch / Hire),PHOENIX SOFTWARE LTD,31/10/2022,"6,253.57"
"Communities, Customer & Commercial Services",ICT,Supplies & Services,Comp Software (Purch / Hire),PHOENIX SOFTWARE LTD,18/10/2022,203.40
"Communities, Customer & Commercial Services",ICT,Supplies & Services,Comp Hardware (Purch / Hire),CCS MEDIA LIMITED,20/10/2022,870.00
"Communities, Customer & Commercial Services",ICT,Supplies & Services,Comp Hardware (Purch / Hire),STONELEIGH CONSULTANCY LTD,26/10/2022,"2,082.60"
"Communities, Customer & Commercial Services",ICT,Supplies & Services,Comp Software (Purch / Hire),PHOENIX SOFTWARE LTD,13/10/2022,152.28
"Communities, Customer & Commercial Services",ICT,Supplies & Services,Comp Software (Purch / Hire),XMA LIMITED,18/10/2022,"30,862.00"
"Communities, Customer & Commercial Services",ICT,Supplies & Services,Comp Software (Purch / Hire),XMA LIMITED,18/10/2022,"24,999.63"
"Communities, Customer & Commercial Services",ICT,Supplies & Services,Comp Software (Purch / Hire),ScholarPack,17/10/2022,"3,825.00"
"Communities, Customer & Commercial Services",ICT,Supplies & Services,Comp Software (Purch / Hire),ScholarPack,17/10/2022,"3,354.00"
"Communities, Customer & Commercial Services",ICT,Capital Expenditure,Payments to Contractor,Bramble Hub Limited,20/10/2022,"17,999.99"
"Communities, Customer & Commercial Services",ICT,Capital Expenditure,Computer Hardware,CCS MEDIA LIMITED,13/10/2022,146.81
"Communities, Customer & Commercial Services",ICT,Capital Expenditure,Payments to Contractor,ESTEEM SYSTEMS Ltd,19/10/2022,"4,286.61"
"Communities, Customer & Commercial Services",ICT,Capital Expenditure,Payments to Contractor,PHOENIX SOFTWARE LTD,19/10/2022,"13,235.00"
"Communities, Customer & Commercial Services",ICT,Capital Expenditure,Computer Hardware,CCS MEDIA LIMITED,31/10/2022,"3,150.00"
"Communities, Customer & Commercial Services",ICT,Capital Expenditure,Computer Hardware,CAPITA IT SERVICES LIMITED,31/10/2022,"2,941.18"
"Communities, Customer & Commercial Services",ICT,Capital Expenditure,Payments to Contractor,CAPITA BUSINESS SERVICES LTD ,24/10/2022,"2,050.00"
"Communities, Customer & Commercial Services",ICT,Capital Expenditure,Payments to Contractor,PHOENIX SOFTWARE LTD,24/10/2022,"10,305.00"
"Communities, Customer & Commercial Services",ICT,Capital Expenditure,Computer Hardware,CCS MEDIA LIMITED,31/10/2022,425.00
"Communities, Customer & Commercial Services",ICT,Capital Expenditure,Computer Hardware,CCS MEDIA LIMITED,27/10/2022,"1,477.49"
"Communities, Customer & Commercial Services",ICT,Capital Expenditure,Computer Hardware,CCS MEDIA LIMITED,27/10/2022,338.00
"Communities, Customer & Commercial Services",ICT,Capital Expenditure,Computer Hardware,CCS MEDIA LIMITED,27/10/2022,156.00
"Communities, Customer & Commercial Services",ICT,Capital Expenditure,Computer Hardware,CCS MEDIA LIMITED,27/10/2022,"1,503.12"
"Communities, Customer & Commercial Services",ICT,Capital Expenditure,Computer Hardware,CCS MEDIA LIMITED,27/10/2022,"8,513.74"
"Communities, Customer & Commercial Services",ICT,Capital Expenditure,Payments to Contractor,PHOENIX SOFTWARE LTD,24/10/2022,"1,760.00"
"Communities, Customer & Commercial Services",ICT,Capital Expenditure,Payments to Contractor,FarrPoint Ltd,06/10/2022,450.00
"Communities, Customer & Commercial Services",ICT,Capital Expenditure,Computer Software,Man and Machine,20/10/2022,"1,741.93"
"Communities, Customer & Commercial Services",ICT,Capital Expenditure,Computer Software,Bramble Hub Limited,18/10/2022,"2,221.55"
"Communities, Customer & Commercial Services",ICT,Capital Expenditure,Computer Software,IDOX SOFTWARE LTD,18/10/2022,"9,374.99"
"Communities, Customer & Commercial Services",ICT,Capital Expenditure,Computer Software,Bramble Hub Limited,18/10/2022,"2,221.55"
"Communities, Customer & Commercial Services",Sport & Leisure,Premises-Related Expenditure,Electricity,EON next,07/10/2022,382.39
"Communities, Customer & Commercial Services",Sport & Leisure,Supplies & Services,Mobile Phones,EE LTD EQUIPMENT ,03/10/2022,142.00
"Communities, Customer & Commercial Services",Sport & Leisure,Supplies & Services,Subscriptions,APSE (MANCHESTER),26/10/2022,725.80
"Communities, Customer & Commercial Services",Sport & Leisure,Supplies & Services,Advertising,THE MIDLAND NEWS ASSOCIATION LTD,07/10/2022,604.13
"Communities, Customer & Commercial Services",Sport & Leisure,Supplies & Services,Provisions,J DAIRIES,18/10/2022,571.55
"Communities, Customer & Commercial Services",Sport & Leisure,Supplies & Services,Provisions,J DAIRIES,18/10/2022,"1,092.97"
"Communities, Customer & Commercial Services",Sport & Leisure,Supplies & Services,Provisions,J DAIRIES,31/10/2022,693.75
"Communities, Customer & Commercial Services",Sport & Leisure,Supplies & Services,Provisions,J DAIRIES,31/10/2022,"1,337.38"
"Communities, Customer & Commercial Services",Sport & Leisure,Supplies & Services,Provisions,BIKOLD,17/10/2022,102.63
"Communities, Customer & Commercial Services",Sport & Leisure,Supplies & Services,Provisions,BIKOLD,07/10/2022,110.70
"Communities, Customer & Commercial Services",Sport & Leisure,Employees,Agency Supply Costs,TOTAL CATERING SOLUTONS RECRUITMENT LTD,26/10/2022,128.00
"Communities, Customer & Commercial Services",Sport & Leisure,Employees,Agency Supply Costs,TOTAL CATERING SOLUTONS RECRUITMENT LTD,26/10/2022,192.00
"Communities, Customer & Commercial Services",Sport & Leisure,Employees,Agency Supply Costs,TOTAL CATERING SOLUTONS RECRUITMENT LTD,26/10/2022,256.00
"Communities, Customer & Commercial Services",Sport & Leisure,Employees,Agency Supply Costs,TOTAL CATERING SOLUTONS RECRUITMENT LTD,26/10/2022,200.00
"Communities, Customer & Commercial Services",Sport & Leisure,Employees,Agency Supply Costs,TOTAL CATERING SOLUTONS RECRUITMENT LTD,26/10/2022,192.00
"Communities, Customer & Commercial Services",Sport & Leisure,Employees,Agency Supply Costs,TOTAL CATERING SOLUTONS RECRUITMENT LTD,20/10/2022,320.00
"Communities, Customer & Commercial Services",Sport & Leisure,Employees,Agency Supply Costs,TOTAL CATERING SOLUTONS RECRUITMENT LTD,20/10/2022,288.00
"Communities, Customer & Commercial Services",Sport & Leisure,Employees,Agency Supply Costs,TOTAL CATERING SOLUTONS RECRUITMENT LTD,20/10/2022,320.00
"Communities, Customer & Commercial Services",Sport & Leisure,Employees,Agency Supply Costs,TOTAL CATERING SOLUTONS RECRUITMENT LTD,20/10/2022,320.00
"Communities, Customer & Commercial Services",Sport & Leisure,Employees,Agency Supply Costs,TOTAL CATERING SOLUTONS RECRUITMENT LTD,31/10/2022,192.00
"Communities, Customer & Commercial Services",Sport & Leisure,Employees,Agency Supply Costs,TOTAL CATERING SOLUTONS RECRUITMENT LTD,31/10/2022,256.00
"Communities, Customer & Commercial Services",Sport & Leisure,Employees,Ops Holding Account,TOTAL CATERING SOLUTONS RECRUITMENT LTD,31/10/2022,128.00
"Communities, Customer & Commercial Services",Sport & Leisure,Employees,Agency Supply Costs,TOTAL CATERING SOLUTONS RECRUITMENT LTD,31/10/2022,264.00
"Communities, Customer & Commercial Services",Sport & Leisure,Premises-Related Expenditure,Clean Mats & Toilet Requisites,Border Janitorial Supplies Limited,26/10/2022,125.31
"Communities, Customer & Commercial Services",Sport & Leisure,Premises-Related Expenditure,Clean Mats & Toilet Requisites,Border Janitorial Supplies Limited,26/10/2022,224.40
"Communities, Customer & Commercial Services",Sport & Leisure,Premises-Related Expenditure,Clean Mats & Toilet Requisites,Border Janitorial Supplies Limited,26/10/2022,180.11
"Communities, Customer & Commercial Services",Sport & Leisure,Premises-Related Expenditure,Clean Mats & Toilet Requisites,Border Janitorial Supplies Limited,26/10/2022,118.29
"Communities, Customer & Commercial Services",Sport & Leisure,Premises-Related Expenditure,Clean Mats & Toilet Requisites,Border Janitorial Supplies Limited,26/10/2022,264.82
"Communities, Customer & Commercial Services",Sport & Leisure,Premises-Related Expenditure,Clean Mats & Toilet Requisites,Border Janitorial Supplies Limited,26/10/2022,119.44
"Communities, Customer & Commercial Services",Sport & Leisure,Premises-Related Expenditure,Clean Mats & Toilet Requisites,Border Janitorial Supplies Limited,26/10/2022,120.68
"Communities, Customer & Commercial Services",Sport & Leisure,Premises-Related Expenditure,Clean Mats & Toilet Requisites,Border Janitorial Supplies Limited,18/10/2022,286.29
"Communities, Customer & Commercial Services",Sport & Leisure,Premises-Related Expenditure,Clean Mats & Toilet Requisites,Border Janitorial Supplies Limited,20/10/2022,131.26
"Communities, Customer & Commercial Services",Sport & Leisure,Premises-Related Expenditure,Clean Mats & Toilet Requisites,Border Janitorial Supplies Limited,20/10/2022,154.31
"Communities, Customer & Commercial Services",Sport & Leisure,Premises-Related Expenditure,Clean Mats & Toilet Requisites,Border Janitorial Supplies Limited,31/10/2022,110.70
"Communities, Customer & Commercial Services",Sport & Leisure,Premises-Related Expenditure,Clean Mats & Toilet Requisites,Border Janitorial Supplies Limited,31/10/2022,303.20
"Communities, Customer & Commercial Services",Sport & Leisure,Premises-Related Expenditure,Clean Mats & Toilet Requisites,Border Janitorial Supplies Limited,31/10/2022,101.31
"Communities, Customer & Commercial Services",Sport & Leisure,Premises-Related Expenditure,Clean Mats & Toilet Requisites,Border Janitorial Supplies Limited,31/10/2022,132.28
"Communities, Customer & Commercial Services",Sport & Leisure,Premises-Related Expenditure,Clean Mats & Toilet Requisites,Border Janitorial Supplies Limited,31/10/2022,151.28
"Communities, Customer & Commercial Services",Sport & Leisure,Premises-Related Expenditure,Clean Mats & Toilet Requisites,Border Janitorial Supplies Limited,31/10/2022,284.16
"Communities, Customer & Commercial Services",Sport & Leisure,Premises-Related Expenditure,Clean Mats & Toilet Requisites,Border Janitorial Supplies Limited,19/10/2022,127.72
"Communities, Customer & Commercial Services",Sport & Leisure,Premises-Related Expenditure,Clean Mats & Toilet Requisites,Border Janitorial Supplies Limited,19/10/2022,105.09
"Communities, Customer & Commercial Services",Sport & Leisure,Supplies & Services,Crockery/Hardware/Light Equip,E N CATERING EQUIPMENT AND SERVICES  LTD,31/10/2022,148.44
"Communities, Customer & Commercial Services",Sport & Leisure,Supplies & Services,Provisions,BIKOLD,07/10/2022,208.44
"Communities, Customer & Commercial Services",Sport & Leisure,Supplies & Services,Provisions,BIKOLD,07/10/2022,526.76
"Communities, Customer & Commercial Services",Sport & Leisure,Supplies & Services,Provisions,BIKOLD,07/10/2022,159.39
"Communities, Customer & Commercial Services",Sport & Leisure,Supplies & Services,Provisions,BIKOLD,07/10/2022,176.60
"Communities, Customer & Commercial Services",Sport & Leisure,Supplies & Services,Provisions,BIKOLD,07/10/2022,307.69
"Communities, Customer & Commercial Services",Sport & Leisure,Supplies & Services,Provisions,BIKOLD,07/10/2022,330.69
"Communities, Customer & Commercial Services",Sport & Leisure,Supplies & Services,Provisions,BIKOLD,07/10/2022,344.49
"Communities, Customer & Commercial Services",Sport & Leisure,Supplies & Services,Provisions,BIKOLD,07/10/2022,285.23
"Communities, Customer & Commercial Services",Sport & Leisure,Supplies & Services,Provisions,BIKOLD,07/10/2022,253.00
"Communities, Customer & Commercial Services",Sport & Leisure,Supplies & Services,Provisions,BIKOLD,07/10/2022,238.70
"Communities, Customer & Commercial Services",Sport & Leisure,Supplies & Services,Provisions,BIKOLD,07/10/2022,264.41
"Communities, Customer & Commercial Services",Sport & Leisure,Supplies & Services,Provisions,BIKOLD,07/10/2022,135.83
"Communities, Customer & Commercial Services",Sport & Leisure,Supplies & Services,Provisions,BIKOLD,07/10/2022,110.19
"Communities, Customer & Commercial Services",Sport & Leisure,Supplies & Services,Provisions,BIKOLD,07/10/2022,114.26
"Communities, Customer & Commercial Services",Sport & Leisure,Supplies & Services,Provisions,BIKOLD,07/10/2022,477.26
"Communities, Customer & Commercial Services",Sport & Leisure,Supplies & Services,Provisions,BIKOLD,07/10/2022,195.16
"Communities, Customer & Commercial Services",Sport & Leisure,Supplies & Services,Provisions,BIKOLD,07/10/2022,328.12
"Communities, Customer & Commercial Services",Sport & Leisure,Supplies & Services,Provisions,BIKOLD,07/10/2022,380.61
"Communities, Customer & Commercial Services",Sport & Leisure,Supplies & Services,Provisions,BIKOLD,07/10/2022,108.22
"Communities, Customer & Commercial Services",Sport & Leisure,Supplies & Services,Provisions,BIKOLD,07/10/2022,373.56
"Communities, Customer & Commercial Services",Sport & Leisure,Supplies & Services,Provisions,BIKOLD,07/10/2022,319.83
"Communities, Customer & Commercial Services",Sport & Leisure,Supplies & Services,Provisions,BIKOLD,07/10/2022,112.20
"Communities, Customer & Commercial Services",Sport & Leisure,Supplies & Services,Provisions,BIKOLD,07/10/2022,266.63
"Communities, Customer & Commercial Services",Sport & Leisure,Supplies & Services,Provisions,BIKOLD,07/10/2022,333.93
"Communities, Customer & Commercial Services",Sport & Leisure,Supplies & Services,Provisions,BIKOLD,07/10/2022,124.22
"Communities, Customer & Commercial Services",Sport & Leisure,Supplies & Services,Provisions,BIKOLD,07/10/2022,438.39
"Communities, Customer & Commercial Services",Sport & Leisure,Supplies & Services,Provisions,BIKOLD,07/10/2022,184.17
"Communities, Customer & Commercial Services",Sport & Leisure,Supplies & Services,Provisions,BIKOLD,07/10/2022,152.76
"Communities, Customer & Commercial Services",Sport & Leisure,Supplies & Services,Provisions,BIKOLD,07/10/2022,125.60
"Communities, Customer & Commercial Services",Sport & Leisure,Supplies & Services,Provisions,BIKOLD,07/10/2022,467.84
"Communities, Customer & Commercial Services",Sport & Leisure,Supplies & Services,Provisions,BIKOLD,07/10/2022,210.08
"Communities, Customer & Commercial Services",Sport & Leisure,Supplies & Services,Provisions,BIKOLD,07/10/2022,257.93
"Communities, Customer & Commercial Services",Sport & Leisure,Supplies & Services,Provisions,BIKOLD,07/10/2022,137.72
"Communities, Customer & Commercial Services",Sport & Leisure,Supplies & Services,Provisions,BIKOLD,07/10/2022,369.24
"Communities, Customer & Commercial Services",Sport & Leisure,Supplies & Services,Provisions,BIKOLD,07/10/2022,266.17
"Communities, Customer & Commercial Services",Sport & Leisure,Supplies & Services,Provisions,BIKOLD,07/10/2022,125.31
"Communities, Customer & Commercial Services",Sport & Leisure,Supplies & Services,Provisions,BIKOLD,07/10/2022,380.14
"Communities, Customer & Commercial Services",Sport & Leisure,Supplies & Services,Provisions,BIKOLD,07/10/2022,158.51
"Communities, Customer & Commercial Services",Sport & Leisure,Supplies & Services,Provisions,BIKOLD,07/10/2022,132.00
"Communities, Customer & Commercial Services",Sport & Leisure,Supplies & Services,Provisions,BIKOLD,07/10/2022,131.09
"Communities, Customer & Commercial Services",Sport & Leisure,Supplies & Services,Provisions,BIKOLD,07/10/2022,220.74
"Communities, Customer & Commercial Services",Sport & Leisure,Supplies & Services,Provisions,BIKOLD,07/10/2022,669.20
"Communities, Customer & Commercial Services",Sport & Leisure,Supplies & Services,Provisions,BIKOLD,07/10/2022,344.82
"Communities, Customer & Commercial Services",Sport & Leisure,Supplies & Services,Provisions,BIKOLD,07/10/2022,138.55
"Communities, Customer & Commercial Services",Sport & Leisure,Supplies & Services,Provisions,BIKOLD,07/10/2022,172.89
"Communities, Customer & Commercial Services",Sport & Leisure,Supplies & Services,Provisions,BIKOLD,07/10/2022,-128.63
"Communities, Customer & Commercial Services",Sport & Leisure,Supplies & Services,Provisions,BIKOLD,07/10/2022,-307.69
"Communities, Customer & Commercial Services",Sport & Leisure,Supplies & Services,Provisions,BIKOLD,07/10/2022,448.86
"Communities, Customer & Commercial Services",Sport & Leisure,Supplies & Services,Provisions,BIKOLD,07/10/2022,314.41
"Communities, Customer & Commercial Services",Sport & Leisure,Supplies & Services,Provisions,BIKOLD,07/10/2022,327.60
"Communities, Customer & Commercial Services",Sport & Leisure,Supplies & Services,Provisions,BIKOLD,07/10/2022,202.04
"Communities, Customer & Commercial Services",Sport & Leisure,Supplies & Services,Provisions,BIKOLD,07/10/2022,127.17
"Communities, Customer & Commercial Services",Sport & Leisure,Supplies & Services,Provisions,BIKOLD,07/10/2022,242.47
"Communities, Customer & Commercial Services",Sport & Leisure,Supplies & Services,Provisions,BIKOLD,07/10/2022,125.38
"Communities, Customer & Commercial Services",Sport & Leisure,Supplies & Services,Provisions,BIKOLD,07/10/2022,155.52
"Communities, Customer & Commercial Services",Sport & Leisure,Supplies & Services,Provisions,BIKOLD,07/10/2022,165.92
"Communities, Customer & Commercial Services",Sport & Leisure,Supplies & Services,Provisions,BIKOLD,07/10/2022,190.58
"Communities, Customer & Commercial Services",Sport & Leisure,Supplies & Services,Provisions,BIKOLD,07/10/2022,182.19
"Communities, Customer & Commercial Services",Sport & Leisure,Supplies & Services,Provisions,BIKOLD,07/10/2022,149.83
"Communities, Customer & Commercial Services",Sport & Leisure,Supplies & Services,Provisions,BIKOLD,07/10/2022,105.62
"Communities, Customer & Commercial Services",Sport & Leisure,Supplies & Services,Provisions,BIKOLD,07/10/2022,145.94
"Communities, Customer & Commercial Services",Sport & Leisure,Supplies & Services,Provisions,BIKOLD,07/10/2022,146.95
"Communities, Customer & Commercial Services",Sport & Leisure,Supplies & Services,Provisions,BIKOLD,07/10/2022,308.27
"Communities, Customer & Commercial Services",Sport & Leisure,Supplies & Services,Provisions,BIKOLD,07/10/2022,295.94
"Communities, Customer & Commercial Services",Sport & Leisure,Supplies & Services,Provisions,BIKOLD,07/10/2022,292.30
"Communities, Customer & Commercial Services",Sport & Leisure,Supplies & Services,Provisions,BIKOLD,17/10/2022,193.73
"Communities, Customer & Commercial Services",Sport & Leisure,Supplies & Services,Provisions,BIKOLD,17/10/2022,318.89
"Communities, Customer & Commercial Services",Sport & Leisure,Supplies & Services,Provisions,BIKOLD,17/10/2022,328.31
"Communities, Customer & Commercial Services",Sport & Leisure,Supplies & Services,Provisions,BIKOLD,07/10/2022,277.89
"Communities, Customer & Commercial Services",Sport & Leisure,Supplies & Services,Provisions,BIKOLD,07/10/2022,417.23
"Communities, Customer & Commercial Services",Sport & Leisure,Supplies & Services,Provisions,BIKOLD,07/10/2022,308.94
"Communities, Customer & Commercial Services",Sport & Leisure,Supplies & Services,Provisions,BIKOLD,17/10/2022,169.54
"Communities, Customer & Commercial Services",Sport & Leisure,Supplies & Services,Provisions,BIKOLD,17/10/2022,111.01
"Communities, Customer & Commercial Services",Sport & Leisure,Supplies & Services,Provisions,BIKOLD,17/10/2022,114.94
"Communities, Customer & Commercial Services",Sport & Leisure,Supplies & Services,Provisions,BIKOLD,17/10/2022,251.09
"Communities, Customer & Commercial Services",Sport & Leisure,Supplies & Services,Provisions,BIKOLD,07/10/2022,132.23
"Communities, Customer & Commercial Services",Sport & Leisure,Supplies & Services,Provisions,BIKOLD,07/10/2022,113.15
"Communities, Customer & Commercial Services",Sport & Leisure,Supplies & Services,Provisions,BIKOLD,07/10/2022,199.79
"Communities, Customer & Commercial Services",Sport & Leisure,Supplies & Services,Provisions,BIKOLD,17/10/2022,155.82
"Communities, Customer & Commercial Services",Sport & Leisure,Supplies & Services,Provisions,BIKOLD,17/10/2022,114.94
"Communities, Customer & Commercial Services",Sport & Leisure,Supplies & Services,Provisions,BIKOLD,17/10/2022,223.86
"Communities, Customer & Commercial Services",Sport & Leisure,Supplies & Services,Provisions,BIKOLD,17/10/2022,207.82
"Communities, Customer & Commercial Services",Sport & Leisure,Supplies & Services,Provisions,BIKOLD,07/10/2022,468.79
"Communities, Customer & Commercial Services",Sport & Leisure,Supplies & Services,Provisions,BIKOLD,07/10/2022,155.42
"Communities, Customer & Commercial Services",Sport & Leisure,Supplies & Services,Provisions,BIKOLD,07/10/2022,266.08
"Communities, Customer & Commercial Services",Sport & Leisure,Supplies & Services,Provisions,BIKOLD,07/10/2022,325.11
"Communities, Customer & Commercial Services",Sport & Leisure,Supplies & Services,Provisions,BIKOLD,07/10/2022,120.69
"Communities, Customer & Commercial Services",Sport & Leisure,Supplies & Services,Provisions,BIKOLD,07/10/2022,165.37
"Communities, Customer & Commercial Services",Sport & Leisure,Supplies & Services,Provisions,BIKOLD,07/10/2022,163.39
"Communities, Customer & Commercial Services",Sport & Leisure,Supplies & Services,Provisions,BIKOLD,07/10/2022,140.65
"Communities, Customer & Commercial Services",Sport & Leisure,Supplies & Services,Provisions,BIKOLD,07/10/2022,313.44
"Communities, Customer & Commercial Services",Sport & Leisure,Supplies & Services,Provisions,BIKOLD,07/10/2022,383.28
"Communities, Customer & Commercial Services",Sport & Leisure,Supplies & Services,Provisions,BIKOLD,17/10/2022,302.46
"Communities, Customer & Commercial Services",Sport & Leisure,Supplies & Services,Provisions,BIKOLD,07/10/2022,106.56
"Communities, Customer & Commercial Services",Sport & Leisure,Supplies & Services,Provisions,BIKOLD,07/10/2022,193.73
"Communities, Customer & Commercial Services",Sport & Leisure,Supplies & Services,Provisions,BIKOLD,07/10/2022,154.47
"Communities, Customer & Commercial Services",Sport & Leisure,Supplies & Services,Provisions,BIKOLD,07/10/2022,114.13
"Communities, Customer & Commercial Services",Sport & Leisure,Supplies & Services,Provisions,BIKOLD,07/10/2022,177.81
"Communities, Customer & Commercial Services",Sport & Leisure,Supplies & Services,Provisions,BIKOLD,07/10/2022,128.28
"Communities, Customer & Commercial Services",Sport & Leisure,Supplies & Services,Provisions,BIKOLD,07/10/2022,119.94
"Communities, Customer & Commercial Services",Sport & Leisure,Supplies & Services,Provisions,BIKOLD,07/10/2022,189.20
"Communities, Customer & Commercial Services",Sport & Leisure,Supplies & Services,Provisions,BIKOLD,07/10/2022,103.54
"Communities, Customer & Commercial Services",Sport & Leisure,Supplies & Services,Provisions,BIKOLD,07/10/2022,349.45
"Communities, Customer & Commercial Services",Sport & Leisure,Supplies & Services,Provisions,BIKOLD,17/10/2022,131.64
"Communities, Customer & Commercial Services",Sport & Leisure,Supplies & Services,Provisions,BIKOLD,17/10/2022,226.79
"Communities, Customer & Commercial Services",Sport & Leisure,Supplies & Services,Provisions,BIKOLD,17/10/2022,331.70
"Communities, Customer & Commercial Services",Sport & Leisure,Supplies & Services,Provisions,BIKOLD,17/10/2022,217.34
"Communities, Customer & Commercial Services",Sport & Leisure,Supplies & Services,Provisions,BIKOLD,17/10/2022,104.46
"Communities, Customer & Commercial Services",Sport & Leisure,Supplies & Services,Provisions,BIKOLD,17/10/2022,144.15
"Communities, Customer & Commercial Services",Sport & Leisure,Supplies & Services,Provisions,BIKOLD,17/10/2022,570.10
"Communities, Customer & Commercial Services",Sport & Leisure,Supplies & Services,Provisions,BIKOLD,17/10/2022,108.22
"Communities, Customer & Commercial Services",Sport & Leisure,Supplies & Services,Provisions,BIKOLD,17/10/2022,416.64
"Communities, Customer & Commercial Services",Sport & Leisure,Supplies & Services,Provisions,BIKOLD,17/10/2022,110.34
"Communities, Customer & Commercial Services",Sport & Leisure,Supplies & Services,Provisions,BIKOLD,17/10/2022,346.97
"Communities, Customer & Commercial Services",Sport & Leisure,Supplies & Services,Provisions,BIKOLD,17/10/2022,426.53
"Communities, Customer & Commercial Services",Sport & Leisure,Supplies & Services,Provisions,BIKOLD,17/10/2022,123.58
"Communities, Customer & Commercial Services",Sport & Leisure,Supplies & Services,Provisions,BIKOLD,17/10/2022,146.31
"Communities, Customer & Commercial Services",Sport & Leisure,Supplies & Services,Provisions,BIKOLD,17/10/2022,249.54
"Communities, Customer & Commercial Services",Sport & Leisure,Supplies & Services,Provisions,BIKOLD,17/10/2022,182.56
"Communities, Customer & Commercial Services",Sport & Leisure,Supplies & Services,Provisions,BIKOLD,17/10/2022,280.53
"Communities, Customer & Commercial Services",Sport & Leisure,Supplies & Services,Provisions,BIKOLD,17/10/2022,205.69
"Communities, Customer & Commercial Services",Sport & Leisure,Supplies & Services,Provisions,BIKOLD,17/10/2022,101.06
"Communities, Customer & Commercial Services",Sport & Leisure,Supplies & Services,Provisions,BIKOLD,17/10/2022,148.62
"Communities, Customer & Commercial Services",Sport & Leisure,Supplies & Services,Provisions,BIKOLD,17/10/2022,222.90
"Communities, Customer & Commercial Services",Sport & Leisure,Supplies & Services,Provisions,BIKOLD,17/10/2022,141.31
"Communities, Customer & Commercial Services",Sport & Leisure,Supplies & Services,Provisions,BIKOLD,17/10/2022,130.41
"Communities, Customer & Commercial Services",Sport & Leisure,Supplies & Services,Provisions,BIKOLD,17/10/2022,260.79
"Communities, Customer & Commercial Services",Sport & Leisure,Supplies & Services,Provisions,BIKOLD,17/10/2022,529.73
"Communities, Customer & Commercial Services",Sport & Leisure,Supplies & Services,Provisions,BIKOLD,17/10/2022,169.65
"Communities, Customer & Commercial Services",Sport & Leisure,Supplies & Services,Provisions,BIKOLD,17/10/2022,451.20
"Communities, Customer & Commercial Services",Sport & Leisure,Supplies & Services,Provisions,BIKOLD,17/10/2022,121.28
"Communities, Customer & Commercial Services",Sport & Leisure,Supplies & Services,Provisions,BIKOLD,17/10/2022,268.20
"Communities, Customer & Commercial Services",Sport & Leisure,Supplies & Services,Provisions,BIKOLD,17/10/2022,233.24
"Communities, Customer & Commercial Services",Sport & Leisure,Supplies & Services,Provisions,BIKOLD,07/10/2022,104.60
"Communities, Customer & Commercial Services",Sport & Leisure,Supplies & Services,Provisions,BIKOLD,07/10/2022,108.61
"Communities, Customer & Commercial Services",Sport & Leisure,Supplies & Services,Provisions,BIKOLD,07/10/2022,144.42
"Communities, Customer & Commercial Services",Sport & Leisure,Supplies & Services,Provisions,BIKOLD,07/10/2022,159.51
"Communities, Customer & Commercial Services",Sport & Leisure,Supplies & Services,Provisions,BIKOLD,07/10/2022,229.87
"Communities, Customer & Commercial Services",Sport & Leisure,Supplies & Services,Provisions,BIKOLD,07/10/2022,140.97
"Communities, Customer & Commercial Services",Sport & Leisure,Supplies & Services,Provisions,BIKOLD,07/10/2022,266.31
"Communities, Customer & Commercial Services",Sport & Leisure,Supplies & Services,Provisions,BIKOLD,07/10/2022,346.23
"Communities, Customer & Commercial Services",Sport & Leisure,Supplies & Services,Provisions,BIKOLD,07/10/2022,302.56
"Communities, Customer & Commercial Services",Sport & Leisure,Supplies & Services,Provisions,BIKOLD,07/10/2022,452.03
"Communities, Customer & Commercial Services",Sport & Leisure,Supplies & Services,Provisions,R & COMPANY,24/10/2022,101.54
"Communities, Customer & Commercial Services",Sport & Leisure,Supplies & Services,Provisions,R & COMPANY,24/10/2022,108.61
"Communities, Customer & Commercial Services",Sport & Leisure,Supplies & Services,Provisions,J S Catering Butchers,24/10/2022,120.15
"Communities, Customer & Commercial Services",Sport & Leisure,Supplies & Services,Provisions,J S Catering Butchers,24/10/2022,233.95
"Communities, Customer & Commercial Services",Sport & Leisure,Supplies & Services,Provisions,J S Catering Butchers,24/10/2022,112.00
"Communities, Customer & Commercial Services",Sport & Leisure,Supplies & Services,Provisions,J S Catering Butchers,24/10/2022,255.16
"Communities, Customer & Commercial Services",Sport & Leisure,Supplies & Services,Provisions,J S Catering Butchers,24/10/2022,110.83
"Communities, Customer & Commercial Services",Sport & Leisure,Supplies & Services,Provisions,J S Catering Butchers,24/10/2022,242.62
"Communities, Customer & Commercial Services",Sport & Leisure,Supplies & Services,Provisions,J S Catering Butchers,24/10/2022,196.16
"Communities, Customer & Commercial Services",Sport & Leisure,Supplies & Services,Provisions,J S Catering Butchers,24/10/2022,113.18
"Communities, Customer & Commercial Services",Sport & Leisure,Supplies & Services,Provisions,ROWLANDS & COMPANY,24/10/2022,160.93
"Communities, Customer & Commercial Services",Sport & Leisure,Supplies & Services,Provisions,BIKOLD,17/10/2022,388.87
"Communities, Customer & Commercial Services",Sport & Leisure,Supplies & Services,Provisions,BIKOLD,17/10/2022,212.09
"Communities, Customer & Commercial Services",Sport & Leisure,Supplies & Services,Provisions,BIKOLD,17/10/2022,137.36
"Communities, Customer & Commercial Services",Sport & Leisure,Supplies & Services,Provisions,BIKOLD,17/10/2022,244.73
"Communities, Customer & Commercial Services",Sport & Leisure,Supplies & Services,Provisions,BIKOLD,17/10/2022,116.08
"Communities, Customer & Commercial Services",Sport & Leisure,Supplies & Services,Provisions,BIKOLD,17/10/2022,103.21
"Communities, Customer & Commercial Services",Sport & Leisure,Supplies & Services,Provisions,BIKOLD,17/10/2022,285.84
"Communities, Customer & Commercial Services",Sport & Leisure,Supplies & Services,Provisions,BIKOLD,17/10/2022,225.56
"Communities, Customer & Commercial Services",Sport & Leisure,Supplies & Services,Provisions,BIKOLD,17/10/2022,209.94
"Communities, Customer & Commercial Services",Sport & Leisure,Supplies & Services,Provisions,BIKOLD,17/10/2022,163.15
"Communities, Customer & Commercial Services",Sport & Leisure,Supplies & Services,Provisions,BIKOLD,17/10/2022,355.75
"Communities, Customer & Commercial Services",Sport & Leisure,Supplies & Services,Provisions,BIKOLD,17/10/2022,276.96
"Communities, Customer & Commercial Services",Sport & Leisure,Supplies & Services,Provisions,BIKOLD,17/10/2022,249.42
"Communities, Customer & Commercial Services",Sport & Leisure,Supplies & Services,Provisions,BIKOLD,17/10/2022,259.10
"Communities, Customer & Commercial Services",Sport & Leisure,Supplies & Services,Provisions,BIKOLD,17/10/2022,228.09
"Communities, Customer & Commercial Services",Sport & Leisure,Supplies & Services,Provisions,BIKOLD,17/10/2022,262.84
"Communities, Customer & Commercial Services",Sport & Leisure,Supplies & Services,Provisions,BIKOLD,17/10/2022,582.10
"Communities, Customer & Commercial Services",Sport & Leisure,Supplies & Services,Provisions,BIKOLD,17/10/2022,210.47
"Communities, Customer & Commercial Services",Sport & Leisure,Supplies & Services,Provisions,BIKOLD,17/10/2022,167.94
"Communities, Customer & Commercial Services",Sport & Leisure,Supplies & Services,Provisions,BIKOLD,17/10/2022,193.31
"Communities, Customer & Commercial Services",Sport & Leisure,Supplies & Services,Provisions,BIKOLD,17/10/2022,148.31
"Communities, Customer & Commercial Services",Sport & Leisure,Supplies & Services,Provisions,BIKOLD,17/10/2022,189.20
"Communities, Customer & Commercial Services",Sport & Leisure,Supplies & Services,Provisions,BIKOLD,17/10/2022,316.17
"Communities, Customer & Commercial Services",Sport & Leisure,Supplies & Services,Provisions,BIKOLD,17/10/2022,142.51
"Communities, Customer & Commercial Services",Sport & Leisure,Supplies & Services,Provisions,BIKOLD,17/10/2022,111.51
"Communities, Customer & Commercial Services",Sport & Leisure,Supplies & Services,Provisions,BIKOLD,17/10/2022,217.45
"Communities, Customer & Commercial Services",Sport & Leisure,Supplies & Services,Provisions,BIKOLD,17/10/2022,150.74
"Communities, Customer & Commercial Services",Sport & Leisure,Supplies & Services,Provisions,BIKOLD,17/10/2022,314.06
"Communities, Customer & Commercial Services",Sport & Leisure,Supplies & Services,Provisions,BIKOLD,17/10/2022,200.55
"Communities, Customer & Commercial Services",Sport & Leisure,Supplies & Services,Provisions,BIKOLD,17/10/2022,202.06
"Communities, Customer & Commercial Services",Sport & Leisure,Supplies & Services,Provisions,BIKOLD,17/10/2022,105.92
"Communities, Customer & Commercial Services",Sport & Leisure,Supplies & Services,Provisions,BIKOLD,17/10/2022,307.80
"Communities, Customer & Commercial Services",Sport & Leisure,Supplies & Services,Provisions,BIKOLD,17/10/2022,139.55
"Communities, Customer & Commercial Services",Sport & Leisure,Supplies & Services,Provisions,BIKOLD,17/10/2022,261.21
"Communities, Customer & Commercial Services",Sport & Leisure,Supplies & Services,Provisions,BIKOLD,17/10/2022,247.06
"Communities, Customer & Commercial Services",Sport & Leisure,Supplies & Services,Provisions,BIKOLD,17/10/2022,177.53
"Communities, Customer & Commercial Services",Sport & Leisure,Supplies & Services,Provisions,BIKOLD,17/10/2022,191.78
"Communities, Customer & Commercial Services",Sport & Leisure,Supplies & Services,Provisions,BIKOLD,17/10/2022,576.50
"Communities, Customer & Commercial Services",Sport & Leisure,Supplies & Services,Provisions,BIKOLD,17/10/2022,133.84
"Communities, Customer & Commercial Services",Sport & Leisure,Supplies & Services,Provisions,BIKOLD,17/10/2022,191.61
"Communities, Customer & Commercial Services",Sport & Leisure,Supplies & Services,Provisions,BIKOLD,17/10/2022,374.50
"Communities, Customer & Commercial Services",Sport & Leisure,Supplies & Services,Provisions,BIKOLD,17/10/2022,106.16
"Communities, Customer & Commercial Services",Sport & Leisure,Supplies & Services,Provisions,BIKOLD,17/10/2022,112.22
"Communities, Customer & Commercial Services",Sport & Leisure,Supplies & Services,Provisions,BIKOLD,17/10/2022,105.09
"Communities, Customer & Commercial Services",Sport & Leisure,Supplies & Services,Provisions,BIKOLD,17/10/2022,212.75
"Communities, Customer & Commercial Services",Sport & Leisure,Supplies & Services,Provisions,BIKOLD,17/10/2022,363.46
"Communities, Customer & Commercial Services",Sport & Leisure,Supplies & Services,Provisions,BIKOLD,17/10/2022,238.76
"Communities, Customer & Commercial Services",Sport & Leisure,Supplies & Services,Provisions,R & COMPANY,24/10/2022,204.09
"Communities, Customer & Commercial Services",Sport & Leisure,Supplies & Services,Provisions,R & COMPANY,24/10/2022,138.97
"Communities, Customer & Commercial Services",Sport & Leisure,Supplies & Services,Provisions,R & COMPANY,24/10/2022,-424.00
"Communities, Customer & Commercial Services",Sport & Leisure,Supplies & Services,Provisions,R & COMPANY,24/10/2022,123.49
"Communities, Customer & Commercial Services",Sport & Leisure,Supplies & Services,Provisions,BIKOLD,17/10/2022,139.08
"Communities, Customer & Commercial Services",Sport & Leisure,Supplies & Services,Provisions,BIKOLD,17/10/2022,470.32
"Communities, Customer & Commercial Services",Sport & Leisure,Supplies & Services,Provisions,BIKOLD,17/10/2022,919.24
"Communities, Customer & Commercial Services",Sport & Leisure,Supplies & Services,Provisions,BIKOLD,17/10/2022,415.49
"Communities, Customer & Commercial Services",Sport & Leisure,Supplies & Services,Provisions,BIKOLD,17/10/2022,180.93
"Communities, Customer & Commercial Services",Sport & Leisure,Supplies & Services,Provisions,BIKOLD,17/10/2022,162.47
"Communities, Customer & Commercial Services",Sport & Leisure,Supplies & Services,Provisions,BIKOLD,17/10/2022,105.71
"Communities, Customer & Commercial Services",Sport & Leisure,Supplies & Services,Provisions,R & COMPANY,24/10/2022,131.58
"Communities, Customer & Commercial Services",Sport & Leisure,Supplies & Services,Provisions,R & COMPANY,24/10/2022,196.02
"Communities, Customer & Commercial Services",Sport & Leisure,Supplies & Services,Provisions,R & COMPANY,24/10/2022,119.60
"Communities, Customer & Commercial Services",Sport & Leisure,Supplies & Services,Provisions,R & COMPANY,24/10/2022,173.99
"Communities, Customer & Commercial Services",Sport & Leisure,Supplies & Services,Provisions,R & COMPANY,24/10/2022,148.99
"Communities, Customer & Commercial Services",Sport & Leisure,Supplies & Services,Provisions,R & COMPANY,24/10/2022,107.72
"Communities, Customer & Commercial Services",Sport & Leisure,Supplies & Services,Provisions,R & COMPANY,24/10/2022,106.48
"Communities, Customer & Commercial Services",Sport & Leisure,Supplies & Services,Provisions,J S Catering Butchers,24/10/2022,112.00
"Communities, Customer & Commercial Services",Sport & Leisure,Supplies & Services,Provisions,J S Catering Butchers,24/10/2022,144.00
"Communities, Customer & Commercial Services",Sport & Leisure,Supplies & Services,Provisions,J S Catering Butchers,24/10/2022,198.59
"Communities, Customer & Commercial Services",Sport & Leisure,Supplies & Services,Provisions,J S Catering Butchers,24/10/2022,147.20
"Communities, Customer & Commercial Services",Sport & Leisure,Supplies & Services,Provisions,J S Catering Butchers,24/10/2022,108.00
"Communities, Customer & Commercial Services",Sport & Leisure,Supplies & Services,Provisions,J S Catering Butchers,24/10/2022,282.25
"Communities, Customer & Commercial Services",Sport & Leisure,Supplies & Services,Provisions,J S Catering Butchers,24/10/2022,116.78
"Communities, Customer & Commercial Services",Sport & Leisure,Supplies & Services,Provisions,J S Catering Butchers,24/10/2022,105.83
"Communities, Customer & Commercial Services",Sport & Leisure,Supplies & Services,Provisions,J S Catering Butchers,24/10/2022,223.83
"Communities, Customer & Commercial Services",Sport & Leisure,Supplies & Services,Provisions,J S Catering Butchers,24/10/2022,110.10
"Communities, Customer & Commercial Services",Sport & Leisure,Supplies & Services,Provisions,R & COMPANY,25/10/2022,102.01
"Communities, Customer & Commercial Services",Sport & Leisure,Supplies & Services,Provisions,R & COMPANY,25/10/2022,107.66
"Communities, Customer & Commercial Services",Sport & Leisure,Supplies & Services,Provisions,R & COMPANY,25/10/2022,124.74
"Communities, Customer & Commercial Services",Sport & Leisure,Supplies & Services,Provisions,R & COMPANY,25/10/2022,127.01
"Communities, Customer & Commercial Services",Sport & Leisure,Supplies & Services,Provisions,R & COMPANY,25/10/2022,133.11
"Communities, Customer & Commercial Services",Sport & Leisure,Supplies & Services,Provisions,R & COMPANY,25/10/2022,128.18
"Communities, Customer & Commercial Services",Sport & Leisure,Supplies & Services,Provisions,R & COMPANY,25/10/2022,229.95
"Communities, Customer & Commercial Services",Sport & Leisure,Supplies & Services,Provisions,R & COMPANY,25/10/2022,100.17
"Communities, Customer & Commercial Services",Sport & Leisure,Supplies & Services,Provisions,R & COMPANY,25/10/2022,152.06
"Communities, Customer & Commercial Services",Sport & Leisure,Supplies & Services,Provisions,R & COMPANY,25/10/2022,120.93
"Communities, Customer & Commercial Services",Sport & Leisure,Supplies & Services,Provisions,J S Catering Butchers,31/10/2022,269.70
"Communities, Customer & Commercial Services",Sport & Leisure,Supplies & Services,Provisions,J S Catering Butchers,31/10/2022,259.95
"Communities, Customer & Commercial Services",Sport & Leisure,Supplies & Services,Provisions,J S Catering Butchers,31/10/2022,137.03
"Communities, Customer & Commercial Services",Sport & Leisure,Supplies & Services,Provisions,J S Catering Butchers,31/10/2022,101.24
"Communities, Customer & Commercial Services",Sport & Leisure,Supplies & Services,Provisions,J S Catering Butchers,31/10/2022,136.34
"Communities, Customer & Commercial Services",Sport & Leisure,Supplies & Services,Provisions,J S Catering Butchers,31/10/2022,123.60
"Communities, Customer & Commercial Services",Sport & Leisure,Supplies & Services,Provisions,J S Catering Butchers,31/10/2022,145.90
"Communities, Customer & Commercial Services",Sport & Leisure,Supplies & Services,Provisions,J S Catering Butchers,31/10/2022,128.02
"Communities, Customer & Commercial Services",Sport & Leisure,Supplies & Services,Provisions,J S Catering Butchers,31/10/2022,145.90
"Communities, Customer & Commercial Services",Sport & Leisure,Supplies & Services,Provisions,J S Catering Butchers,31/10/2022,243.00
"Communities, Customer & Commercial Services",Sport & Leisure,Supplies & Services,Provisions,BIKOLD,28/10/2022,187.62
"Communities, Customer & Commercial Services",Sport & Leisure,Supplies & Services,Provisions,BIKOLD,28/10/2022,156.10
"Communities, Customer & Commercial Services",Sport & Leisure,Supplies & Services,Provisions,BIKOLD,28/10/2022,142.47
"Communities, Customer & Commercial Services",Sport & Leisure,Supplies & Services,Provisions,BIKOLD,28/10/2022,164.20
"Communities, Customer & Commercial Services",Sport & Leisure,Supplies & Services,Provisions,BIKOLD,28/10/2022,113.80
"Communities, Customer & Commercial Services",Sport & Leisure,Supplies & Services,Provisions,BIKOLD,28/10/2022,256.19
"Communities, Customer & Commercial Services",Sport & Leisure,Supplies & Services,Provisions,BIKOLD,28/10/2022,264.25
"Communities, Customer & Commercial Services",Sport & Leisure,Supplies & Services,Provisions,BIKOLD,28/10/2022,203.84
"Communities, Customer & Commercial Services",Sport & Leisure,Supplies & Services,Provisions,BIKOLD,28/10/2022,262.75
"Communities, Customer & Commercial Services",Sport & Leisure,Supplies & Services,Provisions,BIKOLD,28/10/2022,103.86
"Communities, Customer & Commercial Services",Sport & Leisure,Supplies & Services,Provisions,BIKOLD,28/10/2022,149.87
"Communities, Customer & Commercial Services",Sport & Leisure,Supplies & Services,Provisions,BIKOLD,28/10/2022,120.46
"Communities, Customer & Commercial Services",Sport & Leisure,Supplies & Services,Provisions,BIKOLD,28/10/2022,294.10
"Communities, Customer & Commercial Services",Sport & Leisure,Supplies & Services,Provisions,BIKOLD,28/10/2022,144.77
"Communities, Customer & Commercial Services",Sport & Leisure,Supplies & Services,Provisions,BIKOLD,28/10/2022,232.03
"Communities, Customer & Commercial Services",Sport & Leisure,Supplies & Services,Provisions,BIKOLD,28/10/2022,173.27
"Communities, Customer & Commercial Services",Sport & Leisure,Supplies & Services,Provisions,BIKOLD,28/10/2022,270.11
"Communities, Customer & Commercial Services",Sport & Leisure,Supplies & Services,Provisions,BIKOLD,28/10/2022,163.08
"Communities, Customer & Commercial Services",Sport & Leisure,Supplies & Services,Provisions,BIKOLD,28/10/2022,135.46
"Communities, Customer & Commercial Services",Sport & Leisure,Supplies & Services,Provisions,BIKOLD,28/10/2022,120.88
"Communities, Customer & Commercial Services",Sport & Leisure,Supplies & Services,Provisions,BIKOLD,28/10/2022,202.99
"Communities, Customer & Commercial Services",Sport & Leisure,Supplies & Services,Provisions,BIKOLD,28/10/2022,226.38
"Communities, Customer & Commercial Services",Sport & Leisure,Supplies & Services,Provisions,BIKOLD,28/10/2022,104.61
"Communities, Customer & Commercial Services",Sport & Leisure,Supplies & Services,Provisions,BIKOLD,28/10/2022,193.32
"Communities, Customer & Commercial Services",Sport & Leisure,Supplies & Services,Provisions,BIKOLD,28/10/2022,169.78
"Communities, Customer & Commercial Services",Sport & Leisure,Supplies & Services,Provisions,BIKOLD,28/10/2022,217.10
"Communities, Customer & Commercial Services",Sport & Leisure,Supplies & Services,Provisions,BIKOLD,28/10/2022,135.91
"Communities, Customer & Commercial Services",Sport & Leisure,Supplies & Services,Provisions,BIKOLD,28/10/2022,510.39
"Communities, Customer & Commercial Services",Sport & Leisure,Supplies & Services,Provisions,BIKOLD,28/10/2022,410.81
"Communities, Customer & Commercial Services",Sport & Leisure,Supplies & Services,Provisions,BIKOLD,28/10/2022,106.61
"Communities, Customer & Commercial Services",Sport & Leisure,Supplies & Services,Provisions,BIKOLD,28/10/2022,310.96
"Communities, Customer & Commercial Services",Sport & Leisure,Supplies & Services,Provisions,BIKOLD,28/10/2022,311.88
"Communities, Customer & Commercial Services",Sport & Leisure,Supplies & Services,Provisions,BIKOLD,28/10/2022,109.81
"Communities, Customer & Commercial Services",Sport & Leisure,Supplies & Services,Provisions,BIKOLD,28/10/2022,545.68
"Communities, Customer & Commercial Services",Sport & Leisure,Supplies & Services,Provisions,BIKOLD,28/10/2022,242.38
"Communities, Customer & Commercial Services",Sport & Leisure,Supplies & Services,Provisions,BIKOLD,28/10/2022,137.61
"Communities, Customer & Commercial Services",Sport & Leisure,Supplies & Services,Provisions,BIKOLD,28/10/2022,287.91
"Communities, Customer & Commercial Services",Sport & Leisure,Supplies & Services,Provisions,BIKOLD,28/10/2022,267.06
"Communities, Customer & Commercial Services",Sport & Leisure,Supplies & Services,Provisions,BIKOLD,28/10/2022,258.25
"Communities, Customer & Commercial Services",Sport & Leisure,Supplies & Services,Provisions,BIKOLD,28/10/2022,144.70
"Communities, Customer & Commercial Services",Sport & Leisure,Supplies & Services,Provisions,BIKOLD,28/10/2022,121.22
"Communities, Customer & Commercial Services",Sport & Leisure,Supplies & Services,Provisions,BIKOLD,28/10/2022,369.26
"Communities, Customer & Commercial Services",Sport & Leisure,Supplies & Services,Provisions,BIKOLD,28/10/2022,652.47
"Communities, Customer & Commercial Services",Sport & Leisure,Supplies & Services,Provisions,BIKOLD,28/10/2022,170.74
"Communities, Customer & Commercial Services",Sport & Leisure,Supplies & Services,Provisions,BIKOLD,28/10/2022,121.04
"Communities, Customer & Commercial Services",Sport & Leisure,Supplies & Services,Provisions,BIKOLD,28/10/2022,175.35
"Communities, Customer & Commercial Services",Sport & Leisure,Supplies & Services,Provisions,BIKOLD,28/10/2022,679.59
"Communities, Customer & Commercial Services",Sport & Leisure,Supplies & Services,Provisions,BIKOLD,28/10/2022,218.19
"Communities, Customer & Commercial Services",Sport & Leisure,Supplies & Services,Provisions,BIKOLD,28/10/2022,167.36
"Communities, Customer & Commercial Services",Sport & Leisure,Supplies & Services,Provisions,BIKOLD,28/10/2022,303.85
"Communities, Customer & Commercial Services",Sport & Leisure,Supplies & Services,Provisions,BIKOLD,28/10/2022,118.38
"Communities, Customer & Commercial Services",Sport & Leisure,Supplies & Services,Provisions,BIKOLD,28/10/2022,146.58
"Communities, Customer & Commercial Services",Sport & Leisure,Supplies & Services,Provisions,BIKOLD,28/10/2022,113.97
"Communities, Customer & Commercial Services",Sport & Leisure,Supplies & Services,Provisions,BIKOLD,28/10/2022,183.20
"Communities, Customer & Commercial Services",Sport & Leisure,Supplies & Services,Provisions,BIKOLD,28/10/2022,168.06
"Communities, Customer & Commercial Services",Sport & Leisure,Supplies & Services,Provisions,BIKOLD,28/10/2022,430.07
"Communities, Customer & Commercial Services",Sport & Leisure,Supplies & Services,Provisions,BIKOLD,28/10/2022,263.05
"Communities, Customer & Commercial Services",Sport & Leisure,Supplies & Services,Provisions,BIKOLD,28/10/2022,110.48
"Communities, Customer & Commercial Services",Sport & Leisure,Supplies & Services,Provisions,BIKOLD,28/10/2022,147.66
"Communities, Customer & Commercial Services",Sport & Leisure,Supplies & Services,Provisions,BIKOLD,28/10/2022,330.83
"Communities, Customer & Commercial Services",Sport & Leisure,Supplies & Services,Provisions,BIKOLD,28/10/2022,208.50
"Communities, Customer & Commercial Services",Sport & Leisure,Supplies & Services,Provisions,BIKOLD,28/10/2022,107.49
"Communities, Customer & Commercial Services",Sport & Leisure,Supplies & Services,Provisions,BIKOLD,28/10/2022,155.78
"Communities, Customer & Commercial Services",Sport & Leisure,Supplies & Services,Provisions,BIKOLD,28/10/2022,379.64
"Communities, Customer & Commercial Services",Sport & Leisure,Supplies & Services,Provisions,BIKOLD,28/10/2022,114.84
"Communities, Customer & Commercial Services",Sport & Leisure,Supplies & Services,Provisions,BIKOLD,28/10/2022,262.05
"Communities, Customer & Commercial Services",Sport & Leisure,Supplies & Services,Provisions,BIKOLD,28/10/2022,127.36
"Communities, Customer & Commercial Services",Sport & Leisure,Supplies & Services,Provisions,BIKOLD,28/10/2022,222.78
"Communities, Customer & Commercial Services",Sport & Leisure,Supplies & Services,Provisions,BIKOLD,28/10/2022,351.14
"Communities, Customer & Commercial Services",Sport & Leisure,Supplies & Services,Provisions,BIKOLD,28/10/2022,140.28
"Communities, Customer & Commercial Services",Sport & Leisure,Supplies & Services,Provisions,BIKOLD,28/10/2022,160.54
"Communities, Customer & Commercial Services",Sport & Leisure,Supplies & Services,Provisions,BIKOLD,28/10/2022,297.61
"Communities, Customer & Commercial Services",Sport & Leisure,Supplies & Services,Provisions,BIKOLD,28/10/2022,124.87
"Communities, Customer & Commercial Services",Sport & Leisure,Supplies & Services,Provisions,BIKOLD,28/10/2022,138.67
"Communities, Customer & Commercial Services",Sport & Leisure,Supplies & Services,Provisions,BIKOLD,28/10/2022,333.57
"Communities, Customer & Commercial Services",Sport & Leisure,Supplies & Services,Provisions,BIKOLD,28/10/2022,130.73
"Communities, Customer & Commercial Services",Sport & Leisure,Supplies & Services,Provisions,BIKOLD,28/10/2022,677.37
"Communities, Customer & Commercial Services",Sport & Leisure,Supplies & Services,Provisions,BIKOLD,28/10/2022,222.04
"Communities, Customer & Commercial Services",Sport & Leisure,Supplies & Services,Provisions,BIKOLD,28/10/2022,368.55
"Communities, Customer & Commercial Services",Sport & Leisure,Supplies & Services,Provisions,BIKOLD,28/10/2022,229.88
"Communities, Customer & Commercial Services",Sport & Leisure,Supplies & Services,Provisions,BIKOLD,28/10/2022,239.62
"Communities, Customer & Commercial Services",Sport & Leisure,Supplies & Services,Provisions,BIKOLD,28/10/2022,344.54
"Communities, Customer & Commercial Services",Sport & Leisure,Supplies & Services,Provisions,BIKOLD,28/10/2022,152.15
"Communities, Customer & Commercial Services",Sport & Leisure,Supplies & Services,Provisions,BIKOLD,28/10/2022,195.34
"Communities, Customer & Commercial Services",Sport & Leisure,Supplies & Services,Provisions,BIKOLD,28/10/2022,108.49
"Communities, Customer & Commercial Services",Sport & Leisure,Supplies & Services,Provisions,BIKOLD,28/10/2022,103.33
"Communities, Customer & Commercial Services",Sport & Leisure,Supplies & Services,Provisions,BIKOLD,28/10/2022,116.27
"Communities, Customer & Commercial Services",Sport & Leisure,Supplies & Services,Provisions,BIKOLD,28/10/2022,141.40
"Communities, Customer & Commercial Services",Sport & Leisure,Supplies & Services,Provisions,BIKOLD,28/10/2022,470.72
"Communities, Customer & Commercial Services",Sport & Leisure,Supplies & Services,Provisions,BIKOLD,28/10/2022,131.86
"Communities, Customer & Commercial Services",Sport & Leisure,Supplies & Services,Provisions,BIKOLD,28/10/2022,160.07
"Communities, Customer & Commercial Services",Sport & Leisure,Supplies & Services,Provisions,BIKOLD,28/10/2022,187.51
"Communities, Customer & Commercial Services",Sport & Leisure,Supplies & Services,Provisions,BIKOLD,28/10/2022,203.59
"Communities, Customer & Commercial Services",Sport & Leisure,Supplies & Services,Provisions,BIKOLD,28/10/2022,103.70
"Communities, Customer & Commercial Services",Sport & Leisure,Supplies & Services,Provisions,BIKOLD,28/10/2022,101.54
"Communities, Customer & Commercial Services",Sport & Leisure,Supplies & Services,Provisions,BIKOLD,28/10/2022,440.16
"Communities, Customer & Commercial Services",Sport & Leisure,Supplies & Services,Provisions,BIKOLD,28/10/2022,178.36
"Communities, Customer & Commercial Services",Sport & Leisure,Premises-Related Expenditure,Clean Mats & Toilet Requisites,Border Janitorial Supplies Limited,31/10/2022,116.31
"Communities, Customer & Commercial Services",Sport & Leisure,Supplies & Services,Crockery/Hardware/Light Equip,PLANGLOW LTD,26/10/2022,316.39
"Communities, Customer & Commercial Services",Sport & Leisure,Supplies & Services,Crockery/Hardware/Light Equip,Vegware,31/10/2022,331.27
"Communities, Customer & Commercial Services",Sport & Leisure,Supplies & Services,Crockery/Hardware/Light Equip,E N CATERING EQUIPMENT AND SERVICES  LTD,31/10/2022,438.00
"Communities, Customer & Commercial Services",Sport & Leisure,Supplies & Services,Crockery/Hardware/Light Equip,PLANGLOW LTD,31/10/2022,506.22
"Communities, Customer & Commercial Services",Sport & Leisure,Supplies & Services,Provisions,On A Roll,26/10/2022,601.34
"Communities, Customer & Commercial Services",Sport & Leisure,Supplies & Services,Provisions,On A Roll,26/10/2022,122.50
"Communities, Customer & Commercial Services",Sport & Leisure,Supplies & Services,Provisions,T FOOD SERVICE LTD,26/10/2022,340.35
"Communities, Customer & Commercial Services",Sport & Leisure,Supplies & Services,Provisions,T FOOD SERVICE LTD,26/10/2022,246.50
"Communities, Customer & Commercial Services",Sport & Leisure,Supplies & Services,Provisions,PASTA KING LIMITED,26/10/2022,164.80
"Communities, Customer & Commercial Services",Sport & Leisure,Supplies & Services,Provisions,T FOOD SERVICE LTD,26/10/2022,399.80
"Communities, Customer & Commercial Services",Sport & Leisure,Supplies & Services,Provisions,T FOOD SERVICE LTD,26/10/2022,470.40
"Communities, Customer & Commercial Services",Sport & Leisure,Supplies & Services,Provisions,T FOOD SERVICE LTD,26/10/2022,191.55
"Communities, Customer & Commercial Services",Sport & Leisure,Supplies & Services,Provisions,T FOOD SERVICE LTD,26/10/2022,286.60
"Communities, Customer & Commercial Services",Sport & Leisure,Supplies & Services,Provisions,T FOOD SERVICE LTD,26/10/2022,172.30
"Communities, Customer & Commercial Services",Sport & Leisure,Supplies & Services,Provisions,PASTA KING LIMITED,26/10/2022,461.44
"Communities, Customer & Commercial Services",Sport & Leisure,Supplies & Services,Provisions,PASTA KING LIMITED,26/10/2022,230.72
"Communities, Customer & Commercial Services",Sport & Leisure,Supplies & Services,Provisions,T FOOD SERVICE LTD,26/10/2022,891.75
"Communities, Customer & Commercial Services",Sport & Leisure,Supplies & Services,Provisions,BIKOLD,07/10/2022,238.89
"Communities, Customer & Commercial Services",Sport & Leisure,Supplies & Services,Provisions,BIKOLD,07/10/2022,172.16
"Communities, Customer & Commercial Services",Sport & Leisure,Supplies & Services,Provisions,BIKOLD,07/10/2022,165.32
"Communities, Customer & Commercial Services",Sport & Leisure,Supplies & Services,Provisions,BIKOLD,07/10/2022,728.76
"Communities, Customer & Commercial Services",Sport & Leisure,Supplies & Services,Provisions,BIKOLD,07/10/2022,172.02
"Communities, Customer & Commercial Services",Sport & Leisure,Supplies & Services,Provisions,BIKOLD,07/10/2022,166.05
"Communities, Customer & Commercial Services",Sport & Leisure,Supplies & Services,Provisions,BIKOLD,07/10/2022,310.24
"Communities, Customer & Commercial Services",Sport & Leisure,Supplies & Services,Provisions,BIKOLD,07/10/2022,179.83
"Communities, Customer & Commercial Services",Sport & Leisure,Supplies & Services,Provisions,BIKOLD,07/10/2022,379.04
"Communities, Customer & Commercial Services",Sport & Leisure,Supplies & Services,Provisions,BIKOLD,07/10/2022,268.76
"Communities, Customer & Commercial Services",Sport & Leisure,Supplies & Services,Provisions,BIKOLD,07/10/2022,-268.76
"Communities, Customer & Commercial Services",Sport & Leisure,Supplies & Services,Provisions,BIKOLD,07/10/2022,627.44
"Communities, Customer & Commercial Services",Sport & Leisure,Supplies & Services,Provisions,BIKOLD,07/10/2022,427.62
"Communities, Customer & Commercial Services",Sport & Leisure,Supplies & Services,Provisions,BIKOLD,07/10/2022,201.50
"Communities, Customer & Commercial Services",Sport & Leisure,Supplies & Services,Provisions,BIKOLD,07/10/2022,341.57
"Communities, Customer & Commercial Services",Sport & Leisure,Supplies & Services,Provisions,BIKOLD,07/10/2022,802.98
"Communities, Customer & Commercial Services",Sport & Leisure,Supplies & Services,Provisions,BIKOLD,07/10/2022,"1,115.40"
"Communities, Customer & Commercial Services",Sport & Leisure,Supplies & Services,Provisions,BIKOLD,07/10/2022,815.56
"Communities, Customer & Commercial Services",Sport & Leisure,Supplies & Services,Provisions,BIKOLD,07/10/2022,721.83
"Communities, Customer & Commercial Services",Sport & Leisure,Supplies & Services,Provisions,BIKOLD,07/10/2022,212.24
"Communities, Customer & Commercial Services",Sport & Leisure,Supplies & Services,Provisions,BIKOLD,07/10/2022,111.65
"Communities, Customer & Commercial Services",Sport & Leisure,Supplies & Services,Provisions,BIKOLD,07/10/2022,"1,571.68"
"Communities, Customer & Commercial Services",Sport & Leisure,Supplies & Services,Provisions,BIKOLD,07/10/2022,663.60
"Communities, Customer & Commercial Services",Sport & Leisure,Supplies & Services,Provisions,BIKOLD,07/10/2022,142.84
"Communities, Customer & Commercial Services",Sport & Leisure,Supplies & Services,Provisions,BIKOLD,07/10/2022,177.23
"Communities, Customer & Commercial Services",Sport & Leisure,Supplies & Services,Provisions,T FOOD SERVICE LTD,18/10/2022,286.42
"Communities, Customer & Commercial Services",Sport & Leisure,Supplies & Services,Provisions,T FOOD SERVICE LTD,18/10/2022,"1,606.05"
"Communities, Customer & Commercial Services",Sport & Leisure,Supplies & Services,Provisions,T FOOD SERVICE LTD,18/10/2022,873.90
"Communities, Customer & Commercial Services",Sport & Leisure,Supplies & Services,Provisions,T FOOD SERVICE LTD,18/10/2022,218.58
"Communities, Customer & Commercial Services",Sport & Leisure,Supplies & Services,Provisions,T FOOD SERVICE LTD,18/10/2022,341.56
"Communities, Customer & Commercial Services",Sport & Leisure,Supplies & Services,Provisions,T FOOD SERVICE LTD,18/10/2022,172.30
"Communities, Customer & Commercial Services",Sport & Leisure,Supplies & Services,Provisions,BIKOLD,17/10/2022,582.08
"Communities, Customer & Commercial Services",Sport & Leisure,Supplies & Services,Provisions,BIKOLD,17/10/2022,226.08
"Communities, Customer & Commercial Services",Sport & Leisure,Supplies & Services,Provisions,BIKOLD,17/10/2022,183.36
"Communities, Customer & Commercial Services",Sport & Leisure,Supplies & Services,Provisions,BIKOLD,17/10/2022,384.77
"Communities, Customer & Commercial Services",Sport & Leisure,Supplies & Services,Provisions,BIKOLD,17/10/2022,"1,075.56"
"Communities, Customer & Commercial Services",Sport & Leisure,Supplies & Services,Provisions,BIKOLD,17/10/2022,139.08
"Communities, Customer & Commercial Services",Sport & Leisure,Supplies & Services,Provisions,BIKOLD,17/10/2022,697.50
"Communities, Customer & Commercial Services",Sport & Leisure,Supplies & Services,Provisions,BIKOLD,17/10/2022,167.84
"Communities, Customer & Commercial Services",Sport & Leisure,Supplies & Services,Provisions,BIKOLD,17/10/2022,253.86
"Communities, Customer & Commercial Services",Sport & Leisure,Supplies & Services,Provisions,BIKOLD,17/10/2022,128.10
"Communities, Customer & Commercial Services",Sport & Leisure,Supplies & Services,Provisions,BIKOLD,17/10/2022,707.66
"Communities, Customer & Commercial Services",Sport & Leisure,Supplies & Services,Provisions,BIKOLD,17/10/2022,115.88
"Communities, Customer & Commercial Services",Sport & Leisure,Supplies & Services,Provisions,BIKOLD,17/10/2022,311.48
"Communities, Customer & Commercial Services",Sport & Leisure,Supplies & Services,Provisions,BIKOLD,17/10/2022,149.92
"Communities, Customer & Commercial Services",Sport & Leisure,Supplies & Services,Provisions,BIKOLD,17/10/2022,259.33
"Communities, Customer & Commercial Services",Sport & Leisure,Supplies & Services,Provisions,BIKOLD,17/10/2022,457.24
"Communities, Customer & Commercial Services",Sport & Leisure,Supplies & Services,Provisions,BIKOLD,17/10/2022,643.70
"Communities, Customer & Commercial Services",Sport & Leisure,Supplies & Services,Provisions,BIKOLD,17/10/2022,118.06
"Communities, Customer & Commercial Services",Sport & Leisure,Supplies & Services,Provisions,BIKOLD,17/10/2022,187.36
"Communities, Customer & Commercial Services",Sport & Leisure,Supplies & Services,Provisions,BIKOLD,17/10/2022,210.92
"Communities, Customer & Commercial Services",Sport & Leisure,Supplies & Services,Provisions,BIKOLD,17/10/2022,363.96
"Communities, Customer & Commercial Services",Sport & Leisure,Supplies & Services,Provisions,BIKOLD,07/10/2022,363.41
"Communities, Customer & Commercial Services",Sport & Leisure,Supplies & Services,Provisions,R & COMPANY,24/10/2022,149.53
"Communities, Customer & Commercial Services",Sport & Leisure,Supplies & Services,Provisions,R & COMPANY,24/10/2022,129.16
"Communities, Customer & Commercial Services",Sport & Leisure,Supplies & Services,Provisions,J S Catering Butchers,24/10/2022,235.93
"Communities, Customer & Commercial Services",Sport & Leisure,Supplies & Services,Provisions,J S Catering Butchers,24/10/2022,122.15
"Communities, Customer & Commercial Services",Sport & Leisure,Supplies & Services,Provisions,J S Catering Butchers,24/10/2022,204.67
"Communities, Customer & Commercial Services",Sport & Leisure,Supplies & Services,Provisions,Handmade Speciality Products Ltd,31/10/2022,161.94
"Communities, Customer & Commercial Services",Sport & Leisure,Supplies & Services,Provisions,On A Roll,31/10/2022,443.46
"Communities, Customer & Commercial Services",Sport & Leisure,Supplies & Services,Provisions,On A Roll,31/10/2022,572.09
"Communities, Customer & Commercial Services",Sport & Leisure,Supplies & Services,Provisions,On A Roll,31/10/2022,212.62
"Communities, Customer & Commercial Services",Sport & Leisure,Supplies & Services,Provisions,On A Roll,31/10/2022,241.01
"Communities, Customer & Commercial Services",Sport & Leisure,Supplies & Services,Provisions,On A Roll,31/10/2022,212.62
"Communities, Customer & Commercial Services",Sport & Leisure,Supplies & Services,Provisions,On A Roll,31/10/2022,177.76
"Communities, Customer & Commercial Services",Sport & Leisure,Supplies & Services,Provisions,TROPICAL ICE,31/10/2022,395.00
"Communities, Customer & Commercial Services",Sport & Leisure,Supplies & Services,Provisions,T FOOD SERVICE LTD,31/10/2022,377.10
"Communities, Customer & Commercial Services",Sport & Leisure,Supplies & Services,Provisions,T FOOD SERVICE LTD,31/10/2022,"1,257.75"
"Communities, Customer & Commercial Services",Sport & Leisure,Supplies & Services,Provisions,T FOOD SERVICE LTD,31/10/2022,794.90
"Communities, Customer & Commercial Services",Sport & Leisure,Supplies & Services,Provisions,PASTA KING UK LIMITED,31/10/2022,230.72
"Communities, Customer & Commercial Services",Sport & Leisure,Supplies & Services,Provisions,TROPICAL ICE,31/10/2022,199.50
"Communities, Customer & Commercial Services",Sport & Leisure,Supplies & Services,Provisions,T FOOD SERVICE LTD,31/10/2022,121.10
"Communities, Customer & Commercial Services",Sport & Leisure,Supplies & Services,Provisions,J S Catering Butchers,31/10/2022,165.43
"Communities, Customer & Commercial Services",Sport & Leisure,Supplies & Services,Provisions,On A Roll,19/10/2022,178.36
"Communities, Customer & Commercial Services",Sport & Leisure,Supplies & Services,Provisions,T FOOD SERVICE LTD,19/10/2022,172.30
"Communities, Customer & Commercial Services",Sport & Leisure,Supplies & Services,Provisions,On A Roll,19/10/2022,195.64
"Communities, Customer & Commercial Services",Sport & Leisure,Supplies & Services,Provisions,On A Roll,19/10/2022,922.24
"Communities, Customer & Commercial Services",Sport & Leisure,Supplies & Services,Provisions,BIKOLD,28/10/2022,-183.36
"Communities, Customer & Commercial Services",Sport & Leisure,Supplies & Services,Provisions,BIKOLD,28/10/2022,327.07
"Communities, Customer & Commercial Services",Sport & Leisure,Supplies & Services,Provisions,BIKOLD,28/10/2022,221.63
"Communities, Customer & Commercial Services",Sport & Leisure,Supplies & Services,Provisions,BIKOLD,28/10/2022,250.48
"Communities, Customer & Commercial Services",Sport & Leisure,Supplies & Services,Provisions,BIKOLD,28/10/2022,"1,611.51"
"Communities, Customer & Commercial Services",Sport & Leisure,Supplies & Services,Provisions,BIKOLD,28/10/2022,728.06
"Communities, Customer & Commercial Services",Sport & Leisure,Supplies & Services,Provisions,BIKOLD,28/10/2022,472.25
"Communities, Customer & Commercial Services",Sport & Leisure,Supplies & Services,Provisions,BIKOLD,28/10/2022,200.56
"Communities, Customer & Commercial Services",Sport & Leisure,Supplies & Services,Provisions,BIKOLD,28/10/2022,587.56
"Communities, Customer & Commercial Services",Sport & Leisure,Supplies & Services,Provisions,BIKOLD,28/10/2022,223.61
"Communities, Customer & Commercial Services",Sport & Leisure,Supplies & Services,Provisions,BIKOLD,28/10/2022,169.71
"Communities, Customer & Commercial Services",Sport & Leisure,Supplies & Services,Provisions,BIKOLD,28/10/2022,410.27
"Communities, Customer & Commercial Services",Sport & Leisure,Supplies & Services,Provisions,BIKOLD,28/10/2022,335.21
"Communities, Customer & Commercial Services",Sport & Leisure,Supplies & Services,Provisions,BIKOLD,28/10/2022,115.50
"Communities, Customer & Commercial Services",Sport & Leisure,Supplies & Services,Provisions,BIKOLD,28/10/2022,421.01
"Communities, Customer & Commercial Services",Sport & Leisure,Supplies & Services,Provisions,BIKOLD,28/10/2022,205.29
"Communities, Customer & Commercial Services",Sport & Leisure,Supplies & Services,Provisions,BIKOLD,28/10/2022,307.06
"Communities, Customer & Commercial Services",Sport & Leisure,Supplies & Services,Provisions,BIKOLD,28/10/2022,239.59
"Communities, Customer & Commercial Services",Sport & Leisure,Supplies & Services,Provisions,BIKOLD,28/10/2022,527.07
"Communities, Customer & Commercial Services",Sport & Leisure,Supplies & Services,Provisions,BIKOLD,28/10/2022,315.40
"Communities, Customer & Commercial Services",Sport & Leisure,Supplies & Services,Protective Clothing,MYWORKWEAR,05/10/2022,376.27
"Communities, Customer & Commercial Services",Sport & Leisure,Premises-Related Expenditure,Clean Mats & Toilet Requisites,Border Janitorial Supplies Limited,07/10/2022,220.45
"Communities, Customer & Commercial Services",Sport & Leisure,Premises-Related Expenditure,Clean Mats & Toilet Requisites,Border Janitorial Supplies Limited,05/10/2022,277.57
"Communities, Customer & Commercial Services",Sport & Leisure,Premises-Related Expenditure,Clean Mats & Toilet Requisites,Border Janitorial Supplies Limited,05/10/2022,319.74
"Communities, Customer & Commercial Services",Sport & Leisure,Premises-Related Expenditure,Clean Mats & Toilet Requisites,Border Janitorial Supplies Limited,14/10/2022,149.22
"Communities, Customer & Commercial Services",Sport & Leisure,Premises-Related Expenditure,Clean Mats & Toilet Requisites,Border Janitorial Supplies Limited,14/10/2022,189.60
"Communities, Customer & Commercial Services",Sport & Leisure,Premises-Related Expenditure,Clean Mats & Toilet Requisites,Border Janitorial Supplies Limited,05/10/2022,374.04
"Communities, Customer & Commercial Services",Sport & Leisure,Premises-Related Expenditure,Clean Mats & Toilet Requisites,Border Janitorial Supplies Limited,05/10/2022,222.89
"Communities, Customer & Commercial Services",Sport & Leisure,Premises-Related Expenditure,Clean Mats & Toilet Requisites,Border Janitorial Supplies Limited,05/10/2022,179.47
"Communities, Customer & Commercial Services",Sport & Leisure,Premises-Related Expenditure,Clean Mats & Toilet Requisites,Border Janitorial Supplies Limited,05/10/2022,289.75
"Communities, Customer & Commercial Services",Sport & Leisure,Premises-Related Expenditure,Clean Mats & Toilet Requisites,Border Janitorial Supplies Limited,05/10/2022,119.18
"Communities, Customer & Commercial Services",Sport & Leisure,Premises-Related Expenditure,Clean Mats & Toilet Requisites,Border Janitorial Supplies Limited,05/10/2022,127.40
"Communities, Customer & Commercial Services",Sport & Leisure,Premises-Related Expenditure,Clean Mats & Toilet Requisites,Border Janitorial Supplies Limited,05/10/2022,106.75
"Communities, Customer & Commercial Services",Sport & Leisure,Premises-Related Expenditure,Clean Mats & Toilet Requisites,Border Janitorial Supplies Limited,07/10/2022,195.47
"Communities, Customer & Commercial Services",Sport & Leisure,Premises-Related Expenditure,Clean Mats & Toilet Requisites,Border Janitorial Supplies Limited,05/10/2022,318.15
"Communities, Customer & Commercial Services",Sport & Leisure,Premises-Related Expenditure,Clean Mats & Toilet Requisites,Border Janitorial Supplies Limited,05/10/2022,221.97
"Communities, Customer & Commercial Services",Sport & Leisure,Premises-Related Expenditure,Clean Mats & Toilet Requisites,Border Janitorial Supplies Limited,05/10/2022,188.88
"Communities, Customer & Commercial Services",Sport & Leisure,Premises-Related Expenditure,Clean Mats & Toilet Requisites,Border Janitorial Supplies Limited,14/10/2022,133.90
"Communities, Customer & Commercial Services",Sport & Leisure,Premises-Related Expenditure,Clean Mats & Toilet Requisites,Border Janitorial Supplies Limited,26/10/2022,"4,918.00"
"Communities, Customer & Commercial Services",Sport & Leisure,Premises-Related Expenditure,Clean Mats & Toilet Requisites,Border Janitorial Supplies Limited,26/10/2022,182.85
"Communities, Customer & Commercial Services",Sport & Leisure,Premises-Related Expenditure,Clean Mats & Toilet Requisites,Border Janitorial Supplies Limited,26/10/2022,150.88
"Communities, Customer & Commercial Services",Sport & Leisure,Premises-Related Expenditure,Clean Mats & Toilet Requisites,Border Janitorial Supplies Limited,14/10/2022,543.46
"Communities, Customer & Commercial Services",Sport & Leisure,Supplies & Services,Subscriptions,APSE (MANCHESTER),26/10/2022,725.80
"Communities, Customer & Commercial Services",Sport & Leisure,Premises-Related Expenditure,Clean Mats & Toilet Requisites,Border Janitorial Supplies Limited,07/10/2022,137.81
"Communities, Customer & Commercial Services",Sport & Leisure,Premises-Related Expenditure,Clean Mats & Toilet Requisites,Border Janitorial Supplies Limited,07/10/2022,143.10
"Communities, Customer & Commercial Services",Sport & Leisure,Premises-Related Expenditure,Clean Mats & Toilet Requisites,Border Janitorial Supplies Limited,07/10/2022,111.50
"Communities, Customer & Commercial Services",Sport & Leisure,Premises-Related Expenditure,Clean Mats & Toilet Requisites,Border Janitorial Supplies Limited,05/10/2022,191.53
"Communities, Customer & Commercial Services",Sport & Leisure,Premises-Related Expenditure,Clean Mats & Toilet Requisites,Border Janitorial Supplies Limited,05/10/2022,360.18
"Communities, Customer & Commercial Services",Sport & Leisure,Premises-Related Expenditure,Clean Mats & Toilet Requisites,Border Janitorial Supplies Limited,05/10/2022,202.18
"Communities, Customer & Commercial Services",Sport & Leisure,Premises-Related Expenditure,Clean Mats & Toilet Requisites,Border Janitorial Supplies Limited,05/10/2022,139.30
"Communities, Customer & Commercial Services",Sport & Leisure,Premises-Related Expenditure,Clean Mats & Toilet Requisites,Border Janitorial Supplies Limited,05/10/2022,379.10
"Communities, Customer & Commercial Services",Sport & Leisure,Premises-Related Expenditure,Clean Mats & Toilet Requisites,Border Janitorial Supplies Limited,05/10/2022,327.92
"Communities, Customer & Commercial Services",Sport & Leisure,Premises-Related Expenditure,Clean Mats & Toilet Requisites,Border Janitorial Supplies Limited,05/10/2022,202.99
"Communities, Customer & Commercial Services",Sport & Leisure,Premises-Related Expenditure,Clean Mats & Toilet Requisites,Border Janitorial Supplies Limited,14/10/2022,194.09
"Communities, Customer & Commercial Services",Sport & Leisure,Premises-Related Expenditure,Clean Mats & Toilet Requisites,Border Janitorial Supplies Limited,14/10/2022,114.48
"Communities, Customer & Commercial Services",Sport & Leisure,Premises-Related Expenditure,Clean Mats & Toilet Requisites,Border Janitorial Supplies Limited,12/10/2022,137.60
"Communities, Customer & Commercial Services",Sport & Leisure,Premises-Related Expenditure,Clean Mats & Toilet Requisites,Border Janitorial Supplies Limited,26/10/2022,285.84
"Communities, Customer & Commercial Services",Sport & Leisure,Premises-Related Expenditure,Clean Mats & Toilet Requisites,Border Janitorial Supplies Limited,26/10/2022,299.30
"Communities, Customer & Commercial Services",Sport & Leisure,Premises-Related Expenditure,Clean Mats & Toilet Requisites,Border Janitorial Supplies Limited,26/10/2022,412.01
"Communities, Customer & Commercial Services",Sport & Leisure,Premises-Related Expenditure,R&M -Building Other,B INDUSTRIAL SERVICES,18/10/2022,176.37
"Communities, Customer & Commercial Services",Sport & Leisure,Premises-Related Expenditure,R&M -Building Other,COOL SERVICES LTD,18/10/2022,102.15
"Communities, Customer & Commercial Services",Sport & Leisure,Premises-Related Expenditure,R&M -Building Other,JCE & SONS LTD,18/10/2022,152.00
"Communities, Customer & Commercial Services",Sport & Leisure,Supplies & Services,Provisions,On A Roll,26/10/2022,159.93
"Communities, Customer & Commercial Services",Sport & Leisure,Supplies & Services,Crockery/Hardware/Light Equip,CALTEL CATERING & LAUNDRY EQUIPMENT LLP,26/10/2022,192.76
"Communities, Customer & Commercial Services",Sport & Leisure,Supplies & Services,Provisions,BIKOLD,07/10/2022,107.85
"Communities, Customer & Commercial Services",Sport & Leisure,Supplies & Services,Provisions,BIKOLD,07/10/2022,331.76
"Communities, Customer & Commercial Services",Sport & Leisure,Supplies & Services,Provisions,BIKOLD,07/10/2022,143.16
"Communities, Customer & Commercial Services",Sport & Leisure,Supplies & Services,Provisions,BIKOLD,07/10/2022,104.80
"Communities, Customer & Commercial Services",Sport & Leisure,Supplies & Services,Provisions,BIKOLD,17/10/2022,111.33
"Communities, Customer & Commercial Services",Sport & Leisure,Supplies & Services,Provisions,BIKOLD,17/10/2022,183.63
"Communities, Customer & Commercial Services",Sport & Leisure,Supplies & Services,Provisions,BIKOLD,17/10/2022,176.53
"Communities, Customer & Commercial Services",Sport & Leisure,Supplies & Services,Crockery/Hardware/Light Equip,Vegware,07/10/2022,354.00
"Communities, Customer & Commercial Services",Sport & Leisure,Supplies & Services,Provisions,On A Roll,31/10/2022,494.47
"Communities, Customer & Commercial Services",Sport & Leisure,Supplies & Services,Provisions,On A Roll,31/10/2022,374.45
"Communities, Customer & Commercial Services",Sport & Leisure,Supplies & Services,Provisions,On A Roll,19/10/2022,241.45
"Communities, Customer & Commercial Services",Sport & Leisure,Supplies & Services,Provisions,DO NOT USE FOR ORDERING- DIRECT BILLING ONLY,28/10/2022,150.23
"Communities, Customer & Commercial Services",Sport & Leisure,Supplies & Services,Provisions,DO NOT USE FOR ORDERING- DIRECT BILLING ONLY,28/10/2022,306.89
"Communities, Customer & Commercial Services",Sport & Leisure,Supplies & Services,Other Materials,Prosep filter systems ltd,12/10/2022,906.00
"Communities, Customer & Commercial Services",Sport & Leisure,Supplies & Services,Stationery,METRIC GROUP LTD,13/10/2022,239.22
"Communities, Customer & Commercial Services",Sport & Leisure,Supplies & Services,Other Materials,A&N Signs,11/10/2022,"1,550.00"
"Communities, Customer & Commercial Services",Sport & Leisure,Supplies & Services,Other Materials,Waterplay Solutions Limited,12/10/2022,745.00
"Communities, Customer & Commercial Services",Sport & Leisure,Supplies & Services,Subscriptions,APSE ,26/10/2022,725.80
"Communities, Customer & Commercial Services",Sport & Leisure,Supplies & Services,Sub Contractors,BUSINESS WATCH GUARDING LIMITED,20/10/2022,519.52
"Communities, Customer & Commercial Services",Sport & Leisure,Supplies & Services,Sub Contractors,JCE & SONS LTD,20/10/2022,110.98
"Communities, Customer & Commercial Services",Sport & Leisure,Supplies & Services,Sub Contractors,GRANVILLE CONSTRUCTION & MAINTENANCE LTD,11/10/2022,166.01
"Communities, Customer & Commercial Services",Sport & Leisure,Supplies & Services,Sub Contractors,JCE & SONS LTD,12/10/2022,378.79
"Communities, Customer & Commercial Services",Sport & Leisure,Supplies & Services,Sub Contractors,BUSINESS WATCH GUARDING LIMITED,19/10/2022,256.20
"Communities, Customer & Commercial Services",Sport & Leisure,Supplies & Services,Sub Contractors,Security Wise Ltd,26/10/2022,342.00
"Communities, Customer & Commercial Services",Sport & Leisure,Supplies & Services,Chemicals/Cleaning Products,PROVAC CLEANING SUPPLIES LTD,18/10/2022,551.80
"Communities, Customer & Commercial Services",Sport & Leisure,Supplies & Services,Items For Resale,SWIM ENGLAND TRADING LIMITED,18/10/2022,367.50
"Communities, Customer & Commercial Services",Sport & Leisure,Supplies & Services,Items For Resale,Splash About International Limited,05/10/2022,"1,478.48"
"Communities, Customer & Commercial Services",Sport & Leisure,Supplies & Services,Equipment - Purchase,Bosta UK Ltd,15/10/2022,210.00
"Communities, Customer & Commercial Services",Sport & Leisure,Supplies & Services,Items For Resale,Splash About International Limited,15/10/2022,"1,171.40"
"Communities, Customer & Commercial Services",Sport & Leisure,Supplies & Services,Chemicals/Cleaning Products,BRENNTAG UK LIMITED,26/10/2022,"1,392.00"
"Communities, Customer & Commercial Services",Sport & Leisure,Premises-Related Expenditure,R&M - Mechanical,TECHNOGYM UK LTD,11/10/2022,459.31
"Communities, Customer & Commercial Services",Sport & Leisure,Supplies & Services,Sport Equip - Purchase,TECHNOGYM UK LTD,11/10/2022,963.87
"Communities, Customer & Commercial Services",Sport & Leisure,Supplies & Services,Com focused ext sch activities,TELFORD CHINWOO,07/10/2022,420.00
"Communities, Customer & Commercial Services",Sport & Leisure,Supplies & Services,Financial Services,DEBIT FINANCE COLLECTIONS,07/10/2022,147.92
"Communities, Customer & Commercial Services",Sport & Leisure,Supplies & Services,Financial Services,DEBIT FINANCE COLLECTIONS,24/10/2022,160.00
"Communities, Customer & Commercial Services",Sport & Leisure,Supplies & Services,Financial Services,DEBIT FINANCE COLLECTIONS,07/10/2022,304.52
"Communities, Customer & Commercial Services",Sport & Leisure,Supplies & Services,Financial Services,DEBIT FINANCE COLLECTIONS,24/10/2022,287.68
"Communities, Customer & Commercial Services",Sport & Leisure,Premises-Related Expenditure,Grounds Maint - Sports Pitches,Technical Surfaces Ltd,20/10/2022,950.00
"Communities, Customer & Commercial Services",Sport & Leisure,Employees,Course Fees,CORPORATE TOGS LTD,06/10/2022,189.40
"Communities, Customer & Commercial Services",Sport & Leisure,Supplies & Services,Equipment - Purchase,J P L LTD,18/10/2022,179.70
"Communities, Customer & Commercial Services",Sport & Leisure,Supplies & Services,Items For Resale,Splash About International Limited,06/10/2022,125.95
"Communities, Customer & Commercial Services",Sport & Leisure,Supplies & Services,Equipment - Purchase,J P  LTD,06/10/2022,122.10
"Communities, Customer & Commercial Services",Sport & Leisure,Supplies & Services,Carriage/Delivery Charge,BRENNTAG UK LIMITED,10/10/2022,103.00
"Communities, Customer & Commercial Services",Sport & Leisure,Supplies & Services,Chemicals/Cleaning Products,BRENNTAG UK LIMITED,10/10/2022,421.80
"Communities, Customer & Commercial Services",Sport & Leisure,Supplies & Services,Equipment - Purchase,Telford Aqua SC,10/10/2022,"1,009.20"
"Communities, Customer & Commercial Services",Sport & Leisure,Supplies & Services,Chemicals/Cleaning Products,BRENNTAG UK LIMITED,05/10/2022,572.75
"Communities, Customer & Commercial Services",Sport & Leisure,Supplies & Services,Chemicals/Cleaning Products,BRENNTAG UK LIMITED,05/10/2022,514.80
"Communities, Customer & Commercial Services",Sport & Leisure,Supplies & Services,Chemicals/Cleaning Products,BRENNTAG UK LIMITED,15/10/2022,255.00
"Communities, Customer & Commercial Services",Sport & Leisure,Supplies & Services,Chemicals/Cleaning Products,J P L LTD,26/10/2022,147.01
"Communities, Customer & Commercial Services",Sport & Leisure,Supplies & Services,Chemicals/Cleaning Products,J P L LTD,31/10/2022,105.24
"Communities, Customer & Commercial Services",Sport & Leisure,Supplies & Services,Items For Resale,SWIM ENGLAND TRADING LIMITED ,26/10/2022,777.00
"Communities, Customer & Commercial Services",Sport & Leisure,Supplies & Services,Financial Services,DEBIT FINANCE COLLECTIONS ,07/10/2022,331.88
"Communities, Customer & Commercial Services",Sport & Leisure,Supplies & Services,Financial Services,DEBIT FINANCE COLLECTIONS ,24/10/2022,320.72
"Communities, Customer & Commercial Services",Sport & Leisure,Supplies & Services,Equipment - Purchase,PULSE FITNESS LIMITED,27/10/2022,288.00
"Communities, Customer & Commercial Services",Sport & Leisure,Supplies & Services,Equipment - Purchase,PULSE FITNESS LIMITED,27/10/2022,159.00
"Communities, Customer & Commercial Services",Sport & Leisure,Supplies & Services,Financial Services,DEBIT FINANCE COLLECTIONS,07/10/2022,157.68
"Communities, Customer & Commercial Services",Sport & Leisure,Supplies & Services,Financial Services,DEBIT FINANCE COLLECTIONS,24/10/2022,176.56
"Communities, Customer & Commercial Services",Sport & Leisure,Supplies & Services,Equipment - Purchase,We Do Tennis CIC,31/10/2022,211.61
"Communities, Customer & Commercial Services",Sport & Leisure,Supplies & Services,Advertising,The Curiuous Way,19/10/2022,550.00
"Communities, Customer & Commercial Services",Sport & Leisure,Supplies & Services,Subscriptions,APSE ,26/10/2022,725.80
"Communities, Customer & Commercial Services",Sport & Leisure,Supplies & Services,Flex Charges,Bramble Hub Limited,28/10/2022,"68,888.94"
"Communities, Customer & Commercial Services",Sport & Leisure,Supplies & Services,Advertising,THE MIDLAND NEWS ASSOCIATION LTD,20/10/2022,"1,300.01"
"Communities, Customer & Commercial Services",Sport & Leisure,Supplies & Services,Registration / Licence Fees,Cascade3D,14/10/2022,981.00
"Communities, Customer & Commercial Services",Sport & Leisure,Supplies & Services,Mobile Phones,EE LTD EQUIPMENT ,10/10/2022,142.00
"Communities, Customer & Commercial Services",Sport & Leisure,Supplies & Services,Research Surveys,Community First Partnership LTD,31/10/2022,"5,125.00"
"Communities, Customer & Commercial Services",Sport & Leisure,Supplies & Services,Flex Charges,Verifone UK Limited,19/10/2022,297.50
"Communities, Customer & Commercial Services",Sport & Leisure,Supplies & Services,Equipment - Purchase,HARROD UK LTD,10/10/2022,244.17
"Communities, Customer & Commercial Services",Sport & Leisure,Supplies & Services,Sport Equip - Purchase,HARROD UK LTD,10/10/2022,129.72
"Communities, Customer & Commercial Services",Sport & Leisure,Supplies & Services,Financial Services,DEBIT FINANCE COLLECTIONS ,07/10/2022,224.66
"Communities, Customer & Commercial Services",Sport & Leisure,Supplies & Services,Financial Services,DEBIT FINANCE COLLECTIONS ,24/10/2022,223.16
"Communities, Customer & Commercial Services",Sport & Leisure,Supplies & Services,Equipment - Purchase,Rangeball UK LTD,07/10/2022,"1,046.00"
"Communities, Customer & Commercial Services",Sport & Leisure,Supplies & Services,Licences,The Professional Golfers Association,05/10/2022,434.00
"Communities, Customer & Commercial Services",Sport & Leisure,Supplies & Services,Equipment - Purchase,Rangeball UK LTD,19/10/2022,147.75
"Communities, Customer & Commercial Services",Sport & Leisure,Supplies & Services,Equipment - Hire,OAKLEYS LTD,19/10/2022,639.98
"Communities, Customer & Commercial Services",Sport & Leisure,Premises-Related Expenditure,R&M WC Planned,Agrovista UK LTD,24/10/2022,170.00
"Communities, Customer & Commercial Services",Sport & Leisure,Premises-Related Expenditure,R&M WC Planned,Agrovista UK LTD,19/10/2022,"2,561.56"
"Communities, Customer & Commercial Services",Sport & Leisure,Supplies & Services,Protective Clothing,CMW Equipment Holdings Limited,05/10/2022,144.90
"Communities, Customer & Commercial Services",Sport & Leisure,Supplies & Services,Equipment - Purchase,C STORES LTD,17/10/2022,"1,355.00"
"Communities, Customer & Commercial Services",Sport & Leisure,Transport-Related Expenditure,Fuel,Butler Fuels,07/10/2022,"2,014.20"
"Communities, Customer & Commercial Services",Sport & Leisure,Transport-Related Expenditure,Servicing & Repairs V&P,C STORES LTD,17/10/2022,210.89
"Communities, Customer & Commercial Services",Sport & Leisure,Transport-Related Expenditure,Servicing & Repairs V&P,CSTORES LTD,19/10/2022,452.89
"Communities, Customer & Commercial Services",Sport & Leisure,Supplies & Services,Provisions,DO NOT USE FOR ORDERING- DIRECT BILLING ONLY,07/10/2022,154.55
"Communities, Customer & Commercial Services",Sport & Leisure,Supplies & Services,Provisions,DO NOT USE FOR ORDERING- DIRECT BILLING ONLY,07/10/2022,290.39
"Communities, Customer & Commercial Services",Sport & Leisure,Supplies & Services,Provisions,DO NOT USE FOR ORDERING- DIRECT BILLING ONLY,17/10/2022,673.94
"Communities, Customer & Commercial Services",Sport & Leisure,Supplies & Services,Provisions,DO NOT USE FOR ORDERING- DIRECT BILLING ONLY,17/10/2022,304.01
"Communities, Customer & Commercial Services",Sport & Leisure,Supplies & Services,Provisions,DO NOT USE FOR ORDERING- DIRECT BILLING ONLY,17/10/2022,355.19
"Communities, Customer & Commercial Services",Sport & Leisure,Supplies & Services,Provisions,DO NOT USE FOR ORDERING- DIRECT BILLING ONLY,17/10/2022,191.63
"Communities, Customer & Commercial Services",Sport & Leisure,Supplies & Services,Provisions,DO NOT USE FOR ORDERING- DIRECT BILLING ONLY,17/10/2022,262.92
"Communities, Customer & Commercial Services",Sport & Leisure,Supplies & Services,Provisions,Handmade Speciality Products Ltd,31/10/2022,291.68
"Communities, Customer & Commercial Services",Sport & Leisure,Supplies & Services,Provisions,BIKOLD,28/10/2022,202.07
"Communities, Customer & Commercial Services",Sport & Leisure,Supplies & Services,Provisions,BIKOLD,28/10/2022,395.85
"Communities, Customer & Commercial Services",Sport & Leisure,Supplies & Services,Payment Of Income Collected,Telford Tigers Limited,31/10/2022,"4,508.16"
"Communities, Customer & Commercial Services",Sport & Leisure,Supplies & Services,Payment Of Income Collected,Telford Tigers Limited,24/10/2022,"4,931.52"
"Communities, Customer & Commercial Services",Sport & Leisure,Supplies & Services,Payment Of Income Collected,Telford Tigers Limited,31/10/2022,"3,931.68"
"Communities, Customer & Commercial Services",Sport & Leisure,Supplies & Services,Payment Of Income Collected,Telford Tigers Limited,18/10/2022,"5,284.32"
"Communities, Customer & Commercial Services",Sport & Leisure,Supplies & Services,Payment Of Income Collected,Telford Tigers Limited,10/10/2022,"5,632.94"
"Communities, Customer & Commercial Services",Sport & Leisure,Premises-Related Expenditure,R&M Fixed Plant Other,HOOD AIRPORT & ICE LTD,26/10/2022,"4,327.50"
"Communities, Customer & Commercial Services",Sport & Leisure,Premises-Related Expenditure,R&M Fixed Plant Other,HOOD AIRPORT & ICE LTD,26/10/2022,"2,708.00"
"Communities, Customer & Commercial Services",Sport & Leisure,Supplies & Services,Equipment - Hire,SLIDERS SKATE SHOP,07/10/2022,300.00
"Communities, Customer & Commercial Services",Sport & Leisure,Supplies & Services,Equipment - Hire,SLIDERS SKATE SHOP,17/10/2022,300.00
"Communities, Customer & Commercial Services",Sport & Leisure,Supplies & Services,Advertising,THE SIGN SHOP,13/10/2022,"1,787.00"
"Communities, Customer & Commercial Services",Sport & Leisure,Supplies & Services,Financial Services,DEBIT FINANCE COLLECTIONS ,07/10/2022,295.24
"Communities, Customer & Commercial Services",Sport & Leisure,Supplies & Services,Financial Services,DEBIT FINANCE COLLECTIONS ,24/10/2022,278.30
"Communities, Customer & Commercial Services",Sport & Leisure,Supplies & Services,Financial Services,DEBIT FINANCE COLLECTIONS ,07/10/2022,157.84
"Communities, Customer & Commercial Services",Sport & Leisure,Supplies & Services,Financial Services,DEBIT FINANCE COLLECTIONS ,24/10/2022,159.48
"Communities, Customer & Commercial Services",Sport & Leisure,Supplies & Services,Equipment - Purchase,RLSS UK Shop,18/10/2022,230.00
"Communities, Customer & Commercial Services",Sport & Leisure,Supplies & Services,Equipment - Purchase,RLSS UK Shop,18/10/2022,456.00
"Communities, Customer & Commercial Services",Sport & Leisure,Supplies & Services,Equipment - Purchase,RLSS UK Shop,24/10/2022,160.00
"Communities, Customer & Commercial Services",Sport & Leisure,Supplies & Services,Equipment - Purchase,J P L LTD,13/10/2022,106.25
"Communities, Customer & Commercial Services",Sport & Leisure,Supplies & Services,Chemicals/Cleaning Products,BRENNTAG UK LIMITED,17/10/2022,674.88
"Communities, Customer & Commercial Services",Sport & Leisure,Supplies & Services,Carriage/Delivery Charge,BRENNTAG UK LIMITED,17/10/2022,103.00
"Communities, Customer & Commercial Services",Sport & Leisure,Supplies & Services,First Aid,SP SERVICES (UK) LTD,26/10/2022,119.85
"Communities, Customer & Commercial Services",Sport & Leisure,Supplies & Services,Equipment - Purchase,LEISURE INNOVATIONS LTD,04/10/2022,636.00
"Communities, Customer & Commercial Services",Sport & Leisure,Supplies & Services,Sport Equip - Purchase,Hutchison Technologies Ltd.,12/10/2022,"1,088.00"
"Communities, Customer & Commercial Services",Sport & Leisure,Supplies & Services,Sport Equip - Purchase,Jordan Fitness  Ltd,03/10/2022,139.91
"Communities, Customer & Commercial Services",Sport & Leisure,Supplies & Services,Sport Equip - Purchase,Jordan Fitness  Ltd,03/10/2022,174.04
"Communities, Customer & Commercial Services",Sport & Leisure,Supplies & Services,Sport Equip - Purchase,Jordan Fitness  Ltd,03/10/2022,128.70
"Communities, Customer & Commercial Services",Sport & Leisure,Supplies & Services,Sport Equip - Purchase,Jordan Fitness  Ltd,03/10/2022,273.00
"Communities, Customer & Commercial Services",Sport & Leisure,Supplies & Services,Sport Equip - Purchase,Jordan Fitness  Ltd,03/10/2022,273.00
"Communities, Customer & Commercial Services",Sport & Leisure,Supplies & Services,Financial Services,DEBIT FINANCE COLLECTIONS,07/10/2022,531.14
"Communities, Customer & Commercial Services",Sport & Leisure,Supplies & Services,Sport Equip - Purchase,J P LLTD,27/10/2022,115.75
"Communities, Customer & Commercial Services",Sport & Leisure,Supplies & Services,Financial Services,DEBIT FINANCE COLLECTIONS ,24/10/2022,510.78
"Communities, Customer & Commercial Services",Sport & Leisure,Supplies & Services,Financial Services,DEBIT FINANCE COLLECTIONS ,07/10/2022,217.38
"Communities, Customer & Commercial Services",Sport & Leisure,Supplies & Services,Sport Equip - Purchase,RLSS UK Shop,17/10/2022,"1,355.95"
"Communities, Customer & Commercial Services",Sport & Leisure,Supplies & Services,Financial Services,DEBIT FINANCE COLLECTIONS,24/10/2022,218.74
"Communities, Customer & Commercial Services",Sport & Leisure,Supplies & Services,Chemicals/Cleaning Products,BRENNTAG UK LIMITED,05/10/2022,-200.00
"Communities, Customer & Commercial Services",Sport & Leisure,Supplies & Services,Chemicals/Cleaning Products,BRENNTAG UK LIMITED,05/10/2022,"1,265.40"
"Communities, Customer & Commercial Services",Sport & Leisure,Supplies & Services,Chemicals/Cleaning Products,BRENNTAG UK LIMITED,06/10/2022,150.00
"Communities, Customer & Commercial Services",Sport & Leisure,Supplies & Services,Mobile Phones,EE LTD EQUIPMENT,10/10/2022,142.00
"Communities, Customer & Commercial Services",Sport & Leisure,Capital Expenditure,Payments to Contractor,MSM Hire Ltd,13/10/2022,"2,679.08"
"Communities, Customer & Commercial Services",Sport & Leisure,Capital Expenditure,Payments to Contractor,Proteq (Northern) Limited,06/10/2022,"1,611.07"
"Communities, Customer & Commercial Services",Sport & Leisure,Capital Expenditure,Payments to Contractor,Proteq (Northern) Limited,06/10/2022,"-1,611.07"
"Communities, Customer & Commercial Services",Sport & Leisure,Capital Expenditure,Payments to Contractor,JCE & SONS LTD,06/10/2022,"49,912.92"
Corporate Communications,Communications & Marketing,Supplies & Services,Graphic Design Charges,The Curiuous Way,25/10/2022,480.00
Corporate Communications,Communications & Marketing,Supplies & Services,Marketing & Publicity,HUWS GRAY LTD,27/10/2022,"-1,060.00"
Corporate Communications,Communications & Marketing,Capital Expenditure,Other Capital Expenditure,SIGNS EXPRESS ,25/10/2022,325.40
Corporate Communications,Communications & Marketing,Capital Expenditure,Other Capital Expenditure,SIGNS EXPRESS ,25/10/2022,325.40
Corporate Communications,Communications & Marketing,Capital Expenditure,Other Capital Expenditure,SIGNS EXPRESS ,13/10/2022,662.70
Corporate Items,Corporate Codes,Supplies & Services,Other Services,INTERSERVE LTD,12/10/2022,"3,249.88"
Corporate Items,Corporate Codes,Capital Financing Costs,Unitary Charge,PYRAMID SCHOOLS  LTD,21/10/2022,"931,720.82"
Corporate Items,Corporate Codes,Employees,Agency Supply Costs,Matrix SCM,21/10/2022,"32,316.10"
Corporate Items,Corporate Codes,Employees,Agency Supply Costs,Matrix SCM,04/10/2022,"32,320.04"
Corporate Items,Corporate Codes,Employees,Agency Supply Costs,Matrix SCM,04/10/2022,"32,742.05"
Corporate Items,Corporate Codes,Employees,Agency Supply Costs,Matrix SCM,04/10/2022,"39,615.34"
Corporate Items,Corporate Codes,Employees,Agency Supply Costs,Matrix SCM,31/10/2022,"27,379.80"
Corporate Items,Corporate Codes,Employees,Agency Supply Costs,Matrix SCM,06/10/2022,"39,648.87"
Education & Skills,Consultancy & Advisory Services,Supplies & Services,Mobile Phones,EE LTD EQUIPMENT,10/10/2022,142.00
Education & Skills,Consultancy & Advisory Services,Supplies & Services,Mobile Phones,EE LTD EQUIPMENT,10/10/2022,426.00
Education & Skills,Consultancy & Advisory Services,Supplies & Services,Other Services,A.E.W.M.,26/10/2022,130.00
Education & Skills,Consultancy & Advisory Services,Premises-Related Expenditure,Hire Of Rooms,Mercure Telford Centre Hotel,06/10/2022,145.00
Education & Skills,Consultancy & Advisory Services,Premises-Related Expenditure,Hire Of Rooms,Mercure Telford Centre Hotel,15/10/2022,120.83
Education & Skills,Consultancy & Advisory Services,Premises-Related Expenditure,Hire Of Rooms,Mercure Telford Centre Hotel,17/10/2022,120.83
Education & Skills,Consultancy & Advisory Services,Supplies & Services,Training Costs - Participants Recharged,Mercure Telford Centre Hotel,15/10/2022,231.88
Education & Skills,Consultancy & Advisory Services,Supplies & Services,Training Costs - Participants Recharged,Mercure Telford Centre Hotel,17/10/2022,250.43
Education & Skills,Consultancy & Advisory Services,Employees,Staff Training,BEST PRACTICE NETWORK LTD,11/10/2022,"2,250.00"
Education & Skills,Consultancy & Advisory Services,Employees,Staff Training,S B Ltd,05/10/2022,"2,194.20"
Education & Skills,Consultancy & Advisory Services,Employees,Staff Training,I CAN CHARITY,05/10/2022,260.00
Education & Skills,Consultancy & Advisory Services,Premises-Related Expenditure,Hire Of Rooms,MEETING POINT TRUST LTD,21/10/2022,571.42
Education & Skills,Consultancy & Advisory Services,Supplies & Services,Other Grants (Expenses),Twiggys Day Nursery Ltd SUTTON HILL,19/10/2022,125.00
Education & Skills,Education & Skills,Capital Expenditure,Payments to Contractor,STANNAH LIFT SERVICES LTD,28/10/2022,"6,929.90"
Education & Skills,Education & Skills,Capital Expenditure,Payments to Contractor,STANNAH LIFT SERVICES LTD,28/10/2022,"6,784.26"
Education & Skills,Education & Skills,Capital Expenditure,Legal Fees,FREETHS LLP,10/10/2022,"3,227.20"
Education & Skills,Education & Skills,Capital Expenditure,Legal Fees,FREETHS LLP,10/10/2022,606.00
Education & Skills,Education & Skills,Capital Expenditure,Legal Fees,FREETHS LLP,10/10/2022,586.60
Education & Skills,Education & Skills,Capital Expenditure,Legal Fees,FREETHS LLP,10/10/2022,600.60
Education & Skills,Education & Skills,Capital Expenditure,Legal Fees,W H SOLICITORS,25/10/2022,258.40
Education & Skills,Education & Skills,Capital Expenditure,External Professional Fees,W HSOLICITORS,25/10/2022,410.40
Education & Skills,Education & Skills,Capital Expenditure,Legal Fees,W HSOLICITORS,25/10/2022,"1,094.40"
Education & Skills,Education & Skills,Capital Expenditure,Legal Fees,W HSOLICITORS,25/10/2022,474.20
Education & Skills,Education & Skills,Capital Expenditure,Payments to Contractor,WELLINGTON INSULATION CO. LTD,17/10/2022,125.00
Education & Skills,Education & Skills,Capital Expenditure,Payments to Contractor,Services in Design Ltd,28/10/2022,591.00
Education & Skills,Education & Skills,Capital Expenditure,Payments to Contractor,PRYCE LTD,18/10/2022,"38,805.75"
Education & Skills,Education & Skills,Capital Expenditure,Payments to Contractor,PRYCE LTD,18/10/2022,"29,834.52"
Education & Skills,Education & Skills,Capital Expenditure,Payments to Contractor,Security Wise Ltd,25/10/2022,"4,621.00"
Education & Skills,Education & Skills,Capital Expenditure,Payments to Contractor,MORLEY�S OF BICESTER LTD,03/10/2022,579.00
Education & Skills,Education & Skills,Capital Expenditure,Payments to Contractor,M OF BICESTER LTD,18/10/2022,722.95
Education & Skills,Education & Skills,Capital Expenditure,Payments to Contractor,M OF BICESTER LTD,18/10/2022,455.00
Education & Skills,Education & Skills,Capital Expenditure,Payments to Contractor,GRANVILLE CONSTRUCTION & MAINTENANCE LTD,25/10/2022,"5,623.00"
Education & Skills,Education & Skills,Capital Expenditure,Payments to Contractor,GRANVILLE CONSTRUCTION & MAINTENANCE LTD,25/10/2022,"4,200.00"
Education & Skills,Education & Skills,Capital Expenditure,Payments to Contractor,TDR Heating & Ventilation Engineers,07/10/2022,"2,800.55"
Education & Skills,Education & Skills,Capital Expenditure,Payments to Contractor,Strive AV Ltd,31/10/2022,"2,199.00"
Education & Skills,Education & Skills,Capital Expenditure,Payments to Contractor,Strive AV Ltd,31/10/2022,195.00
Education & Skills,Education & Skills,Capital Expenditure,Payments to Contractor,W H SOLICITORS,11/10/2022,395.20
Education & Skills,Education & Skills,Capital Expenditure,Payments to Contractor,W H SOLICITORS,11/10/2022,243.20
Education & Skills,Education & Skills,Capital Expenditure,Payments to Contractor,W H SOLICITORS,11/10/2022,182.40
Education & Skills,Education & Skills,Capital Expenditure,Payments to Contractor,TAYLORS MECHANICAL H & P SERVICES LTD,03/10/2022,"3,950.00"
Education & Skills,Education & Skills,Capital Expenditure,Payments to Contractor,PRYCE LTD,12/10/2022,"32,949.00"
Education & Skills,Education & Skills,Capital Expenditure,Payments to Contractor,PRYCE LTD,18/10/2022,"9,243.77"
Education & Skills,Education & Skills,Capital Expenditure,Payments to Contractor,COOL SERVICES LTD,11/10/2022,"7,544.68"
Education & Skills,Education & Skills,Capital Expenditure,Payments to Contractor,C & W LTD,28/10/2022,"9,938.95"
Education & Skills,Education & Skills,Capital Expenditure,Payments to Contractor,TAYLORS MECHANICAL H & P SERVICES LTD,19/10/2022,"3,460.00"
Education & Skills,Education & Skills,Capital Expenditure,Payments to Contractor,MERCIAN MASTERPLAN LTD,03/10/2022,118.80
Education & Skills,Education & Skills,Capital Expenditure,Payments to Contractor,G I Sykes Ltd,28/10/2022,"35,448.97"
Education & Skills,Education & Skills,Capital Expenditure,Payments to Contractor,TAYLORS MECHANICAL H & P SERVICES LTD,17/10/2022,575.00
Education & Skills,Education & Skills,Capital Expenditure,Payments to Contractor,CCS MEDIA LIMITED,03/10/2022,"-8,740.00"
Education & Skills,Education & Skills,Capital Expenditure,Payments to Contractor,M OF BICESTER LTD,03/10/2022,"3,165.55"
Education & Skills,Education & Skills,Capital Expenditure,Payments to Contractor,W D Construction Ltd,20/10/2022,"715,244.80"
Education & Skills,Education & Skills,Capital Expenditure,Payments to Contractor,CCS MEDIA LIMITED,10/10/2022,"23,487.70"
Education & Skills,Education & Skills,Capital Expenditure,Payments to Contractor,CCS MEDIA LIMITED,10/10/2022,"23,648.49"
Education & Skills,Education & Skills,Capital Expenditure,Payments to Contractor,CCS MEDIA LIMITED,10/10/2022,189.00
Education & Skills,Education & Skills,Capital Expenditure,Payments to Contractor,CCS MEDIA LIMITED,10/10/2022,768.79
Education & Skills,Education & Skills,Capital Expenditure,Payments to Contractor,W H SOLICITORS,04/10/2022,364.80
Education & Skills,Education & Skills,Capital Expenditure,Payments to Contractor,Strive AV Ltd,17/10/2022,"4,375.00"
Education & Skills,Education & Skills,Capital Expenditure,Payments to Contractor,Strive AV Ltd,03/10/2022,"5,148.00"
Education & Skills,Education & Skills,Capital Expenditure,Payments to Contractor,Foundation Furniture Ltd,03/10/2022,"4,890.00"
Education & Skills,Education & Skills,Capital Expenditure,Other Capital Expenditure,DFE (UK) LTD,10/10/2022,"1,780.00"
Education & Skills,Education & Skills,Capital Expenditure,Payments to Contractor,R G S  LTD,18/10/2022,"22,530.00"
Education & Skills,Education & Skills,Capital Expenditure,Payments to Contractor,Red Kite Network Limited,18/10/2022,356.85
Education & Skills,Education & Skills,Capital Expenditure,Payments to Contractor,GRANVILLE CONSTRUCTION & MAINTENANCE LTD,17/10/2022,"2,141.81"
Education & Skills,Education & Skills,Capital Expenditure,Payments to Contractor,Ridge and Partners LLP,11/10/2022,"2,800.00"
Education & Skills,Education & Skills,Capital Expenditure,Payments to Contractor,CKL OFFICE SOLUTIONS LIMITED,25/10/2022,"1,974.00"
Education & Skills,Education & Skills,Capital Expenditure,Payments to Contractor,CKL OFFICE SOLUTIONS LIMITED,28/10/2022,"2,334.00"
Education & Skills,Pupil Support Services,Supplies & Services,Other Grants (Expenses),Wrekin Forest School CIC,12/10/2022,"2,580.00"
Education & Skills,Pupil Support Services,Supplies & Services,Other Grants (Expenses),CAT - Telford Priory School,12/10/2022,"5,767.47"
Education & Skills,Pupil Support Services,Supplies & Services,Other Grants (Expenses),Windmill Primary School Academy,12/10/2022,570.00
Education & Skills,Pupil Support Services,Supplies & Services,Other Grants (Expenses),TWIGGYS DAY NURSERY MADELEY,31/10/2022,395.92
Education & Skills,Pupil Support Services,Supplies & Services,Other Grants (Expenses),C Cordingley Hall,31/10/2022,"4,000.00"
Education & Skills,Pupil Support Services,Supplies & Services,Other Grants (Expenses),Twiggys Day Nursery Ltd SUTTON HILL,31/10/2022,570.92
Education & Skills,Pupil Support Services,Supplies & Services,Other Grants (Expenses),OAKENGATES TOWN COUNCIL,12/10/2022,"2,793.97"
Education & Skills,Pupil Support Services,Supplies & Services,Other Grants (Expenses),STIRCHLEY & BROOKSIDE PARISH COUNCIL ,12/10/2022,"6,317.23"
Education & Skills,Pupil Support Services,Supplies & Services,Equipment - Purchase,Gear4 Music,04/10/2022,235.43
Education & Skills,Pupil Support Services,Supplies & Services,Equipment - Purchase,NORMANS MUSICAL INSTRUMENTS,06/10/2022,350.00
Education & Skills,SEND (0-25),Transport-Related Expenditure,Season Tickets,ARRIVA MIDLANDS LTD ,26/10/2022,159.00
Education & Skills,SEND (0-25),Transport-Related Expenditure,Taxi Costs,Telford and Wrekin Community Enterprise LTD,26/10/2022,960.00
Education & Skills,SEND (0-25),Transport-Related Expenditure,Taxi Costs,Telford Taxi Hire Limited,04/10/2022,"2,090.00"
Education & Skills,SEND (0-25),Transport-Related Expenditure,Taxi Costs,Telford Taxi Hire Limited,20/10/2022,"4,560.00"
Education & Skills,SEND (0-25),Transport-Related Expenditure,Taxi Costs,Telford Taxi Hire Limited,20/10/2022,880.00
Education & Skills,SEND (0-25),Transport-Related Expenditure,Taxi Costs,Telford Taxi Hire Limited,20/10/2022,"4,860.00"
Education & Skills,SEND (0-25),Transport-Related Expenditure,Taxi Costs,Telford Taxi Hire Limited,20/10/2022,"2,880.00"
Education & Skills,SEND (0-25),Transport-Related Expenditure,Taxi Costs,Telford Taxi Hire Limited,20/10/2022,"2,720.00"
Education & Skills,SEND (0-25),Transport-Related Expenditure,Taxi Costs,Telford Taxi Hire Limited,20/10/2022,520.00
Education & Skills,SEND (0-25),Transport-Related Expenditure,Taxi Costs,Telford Taxi Hire Limited,20/10/2022,"3,080.00"
Education & Skills,SEND (0-25),Transport-Related Expenditure,Taxi Costs,Driving Miss Daisy Telford & Wrekin,20/10/2022,"2,058.00"
Education & Skills,SEND (0-25),Transport-Related Expenditure,Taxi Costs,Driving Miss Daisy Telford & Wrekin,20/10/2022,"1,200.00"
Education & Skills,SEND (0-25),Transport-Related Expenditure,Season Tickets,ARRIVA MIDLANDS LTD ,17/10/2022,"1,190.00"
Education & Skills,SEND (0-25),Transport-Related Expenditure,Taxi Costs,A-STAR TRANSPORT MIDLANDS LTD,17/10/2022,"6,175.00"
Education & Skills,SEND (0-25),Transport-Related Expenditure,Taxi Costs,A-STAR TRANSPORT MIDLANDS LTD,17/10/2022,"2,888.00"
Education & Skills,SEND (0-25),Transport-Related Expenditure,Taxi Costs,Telford and Wrekin Community Enterprise LTD,26/10/2022,"2,058.00"
Education & Skills,SEND (0-25),Transport-Related Expenditure,Taxi Costs,Telford and Wrekin Community Enterprise LTD,26/10/2022,"1,200.00"
Education & Skills,SEND (0-25),Supplies & Services,Mobile Phones,EE LTD EQUIPMENT ,03/10/2022,426.00
Education & Skills,SEND (0-25),Premises-Related Expenditure,Hire Of Rooms,Mercure Telford Centre Hotel,28/10/2022,120.83
Education & Skills,SEND (0-25),Premises-Related Expenditure,Hire Of Rooms,Mercure Telford Centre Hotel,15/10/2022,120.83
Education & Skills,SEND (0-25),Premises-Related Expenditure,Hire Of Rooms,Mercure Telford Centre Hotel,15/10/2022,120.83
Education & Skills,SEND (0-25),Premises-Related Expenditure,Hire Of Rooms,Mercure Telford Centre Hotel,19/10/2022,120.83
Education & Skills,SEND (0-25),Premises-Related Expenditure,Hire Of Rooms,Mercure Telford Centre Hotel,21/10/2022,120.83
Education & Skills,SEND (0-25),Supplies & Services,Other Services,EDEN BROWN LTD,11/10/2022,"2,200.00"
Education & Skills,SEND (0-25),Supplies & Services,Other Services,EDEN BROWN LTD,17/10/2022,"2,200.00"
Education & Skills,SEND (0-25),Supplies & Services,Training Costs - Participants Recharged,Mercure Telford Centre Hotel,28/10/2022,185.50
Education & Skills,SEND (0-25),Supplies & Services,Training Costs - Participants Recharged,Mercure Telford Centre Hotel,15/10/2022,213.33
Education & Skills,SEND (0-25),Supplies & Services,Training Costs - Participants Recharged,Mercure Telford Centre Hotel,15/10/2022,222.60
Education & Skills,SEND (0-25),Supplies & Services,Training Costs - Participants Recharged,Mercure Telford Centre Hotel,19/10/2022,194.78
Education & Skills,SEND (0-25),Supplies & Services,Training Costs - Participants Recharged,Mercure Telford Centre Hotel,21/10/2022,194.78
Education & Skills,SEND (0-25),Third Party Payments,Health Funded Services,SHROPSHIRE COMMUNITY HEALTH NHS TRUST,26/10/2022,"8,000.00"
Education & Skills,SEND (0-25),Third Party Payments,Health Funded Services,SHROPSHIRE COMMUNITY HEALTH NHS TRUST,12/10/2022,"4,000.00"
Education & Skills,SEND (0-25),Third Party Payments,DSG - High Needs Block,St Peter�s Bratton C of E Academy,11/10/2022,783.64
Education & Skills,SEND (0-25),Third Party Payments,DSG - High Needs Block,Lawley Village Academy,11/10/2022,609.50
Education & Skills,SEND (0-25),Third Party Payments,DSG - High Needs Block,Grange Park Primary School - Community Academies Trust,17/10/2022,"3,744.05"
Education & Skills,SEND (0-25),Third Party Payments,DSG - High Needs Block,Dawley C of E Primary Academy,17/10/2022,348.28
Education & Skills,SEND (0-25),Third Party Payments,DSG - High Needs Block,Redhill Primary Academy,17/10/2022,"3,918.19"
Education & Skills,SEND (0-25),Third Party Payments,DSG - High Needs Block,Windmill Primary School Academy,17/10/2022,"1,218.99"
Education & Skills,SEND (0-25),Third Party Payments,DSG - High Needs Block,Wrekin View Primary School,17/10/2022,"4,221.62"
Education & Skills,SEND (0-25),Third Party Payments,DSG - High Needs Block,PRIORSLEE ACADEMY,11/10/2022,"1,567.28"
Education & Skills,SEND (0-25),Third Party Payments,DSG - High Needs Block,CAT - Telford Priory School,11/10/2022,"5,746.68"
Education & Skills,SEND (0-25),Third Party Payments,DSG - High Needs Block,MADELEY ACADEMY TRUST LTD,11/10/2022,"4,788.90"
Education & Skills,SEND (0-25),Third Party Payments,DSG - High Needs Block,Telford Park School,11/10/2022,"7,313.95"
Education & Skills,SEND (0-25),Third Party Payments,DSG - High Needs Block,ABRAHAM DARBY ACADEMY ,17/10/2022,"5,746.67"
Education & Skills,SEND (0-25),Third Party Payments,DSG - High Needs Block,Charlton Academy,17/10/2022,"3,221.62"
Education & Skills,SEND (0-25),Third Party Payments,DSG - High Needs Block,Ercall Wood Academy,17/10/2022,"8,881.23"
Education & Skills,SEND (0-25),Third Party Payments,DSG - High Needs Block,Hadley Learning Community Academy,17/10/2022,"1,741.42"
Education & Skills,SEND (0-25),Third Party Payments,DSG - High Needs Block,NEWPORT GIRLS HIGH SCHOOL ACADEMY TRUST,17/10/2022,609.50
Education & Skills,SEND (0-25),Third Party Payments,DSG - High Needs Block,THOMAS TELFORD SCHOOL,11/10/2022,348.28
Education & Skills,SEND (0-25),Third Party Payments,DSG - High Needs Block,The Telford Langley School ,11/10/2022,"5,833.75"
Education & Skills,SEND (0-25),Third Party Payments,DSG - High Needs Block,Queensway HLC,18/10/2022,"69,903.25"
Education & Skills,SEND (0-25),Third Party Payments,DSG - High Needs Block,Queensway HLC,18/10/2022,"65,010.75"
Education & Skills,SEND (0-25),Third Party Payments,DSG - High Needs Block,Warstones Primary School,26/10/2022,"6,324.00"
Education & Skills,SEND (0-25),Third Party Payments,DSG - High Needs Block,Nisai Virtual Academy Limited,12/10/2022,"2,000.00"
Education & Skills,SEND (0-25),Third Party Payments,DSG - High Needs Block,ARAN HALL SCHOOL LTD ,18/10/2022,"76,700.00"
Education & Skills,SEND (0-25),Third Party Payments,DSG - High Needs Block,Options Higford (Options Autism Limited,11/10/2022,"36,109.66"
Education & Skills,SEND (0-25),Third Party Payments,DSG - High Needs Block,St David�s College,11/10/2022,"12,955.00"
Education & Skills,SEND (0-25),Third Party Payments,DSG - High Needs Block,THE EDUCATION DEVELOPMENT SERVICE LTD,11/10/2022,"28,500.00"
Education & Skills,SEND (0-25),Third Party Payments,DSG - High Needs Block,The Priory Group,12/10/2022,"17,098.34"
Education & Skills,SEND (0-25),Third Party Payments,DSG - High Needs Block,The Priory Group,12/10/2022,"17,098.33"
Education & Skills,SEND (0-25),Third Party Payments,DSG - High Needs Block,Shropshire Academy and Learning Trust,31/10/2022,"12,143.10"
Education & Skills,SEND (0-25),Third Party Payments,DSG - High Needs Block,Keys PCE Limited,31/10/2022,"3,400.00"
Education & Skills,SEND (0-25),Third Party Payments,DSG - High Needs Block,Young Foundations Ltd,31/10/2022,"5,080.21"
Education & Skills,SEND (0-25),Third Party Payments,DSG - High Needs Block,Young Foundations Ltd,31/10/2022,"6,032.75"
Education & Skills,SEND (0-25),Third Party Payments,DSG - High Needs Block,Acorn Care & Education Ltd,19/10/2022,"4,883.05"
Education & Skills,SEND (0-25),Third Party Payments,DSG - High Needs Block,Greenhall Little Learners Nursery,26/10/2022,"2,850.56"
Education & Skills,SEND (0-25),Third Party Payments,DSG - High Needs Block,ABC Day Nursery Hadley ,26/10/2022,"2,768.50"
Education & Skills,SEND (0-25),Third Party Payments,DSG - High Needs Block,LITTLE DRAGONS PRE-SCHOOL,26/10/2022,"2,408.88"
Education & Skills,SEND (0-25),Third Party Payments,DSG - High Needs Block,Chipmunks Nursery OSC Ltd ,26/10/2022,"2,434.65"
Education & Skills,SEND (0-25),Third Party Payments,DSG - High Needs Block,Aqueduct Little Learners,26/10/2022,"2,408.88"
Education & Skills,SEND (0-25),Premises-Related Expenditure,Hire Of Rooms,MEETING POINT TRUST LTD,15/10/2022,990.00
Education & Skills,SEND (0-25),Supplies & Services,Equipment - Purchase,CONNEVANS LIMITED,12/10/2022,203.80
Education & Skills,SEND (0-25),Supplies & Services,Equipment - Purchase,CONNEVANS LIMITED,12/10/2022,102.60
Education & Skills,SEND (0-25),Supplies & Services,Comp Software (Purch / Hire),PHOENIX SOFTWARE LTD,13/10/2022,180.00
Education & Skills,SEND (0-25),Supplies & Services,Equipment - Purchase,PURETONE LIMITED,11/10/2022,227.47
Education & Skills,SEND (0-25),Supplies & Services,Photography,JUST PROJECTORS,14/10/2022,339.00
Education & Skills,SEND (0-25),Supplies & Services,Equipment - Purchase,SOUNDBYTE SOLUTIONS (UK) LTD,13/10/2022,195.00
Education & Skills,SEND (0-25),Supplies & Services,Mobile Phones,EE LTD EQUIPMENT ,10/10/2022,142.00
Education & Skills,SEND (0-25),Transport-Related Expenditure,Taxi Costs,STAFFORDSHIRE COUNTY COUNCIL,31/10/2022,"4,529.40"
Education & Skills,SEND (0-25),Third Party Payments,DSG - High Needs Block,HRP Education,11/10/2022,245.00
Education & Skills,SEND (0-25),Third Party Payments,DSG - High Needs Block,HRP Education,11/10/2022,294.00
Education & Skills,SEND (0-25),Third Party Payments,DSG - High Needs Block,THE OLD HALL SCHOOL ,11/10/2022,"4,179.40"
Education & Skills,SEND (0-25),Third Party Payments,DSG - High Needs Block,HRP Education,12/10/2022,735.00
Education & Skills,SEND (0-25),Supplies & Services,Health & Safety Expenses,Direct Healthcare Group Limited,10/10/2022,648.60
Education & Skills,SEND (0-25),Supplies & Services,Health & Safety Expenses,MIDSHIRES MOBILITY GROUP,26/10/2022,"2,481.75"
Education & Skills,SEND (0-25),Supplies & Services,Health & Safety Expenses,Nottingham Rehab Ltd,31/10/2022,"1,311.79"
Education & Skills,SEND (0-25),Third Party Payments,DSG - High Needs Block,MADELEY ACADEMY TRUST LTD,11/10/2022,145.99
Education & Skills,SEND (0-25),Third Party Payments,DSG - High Needs Block,Hadley Learning Community Academy,17/10/2022,176.22
Education & Skills,SEND (0-25),Third Party Payments,DSG - High Needs Block,CROSSBAR COACHING,26/10/2022,"4,875.00"
Education & Skills,SEND (0-25),Third Party Payments,DSG - High Needs Block,CROSSBAR COACHING,26/10/2022,"4,875.00"
Education & Skills,SEND (0-25),Third Party Payments,DSG - High Needs Block,CROSSBAR COACHING,26/10/2022,"4,875.00"
Education & Skills,SEND (0-25),Third Party Payments,DSG - High Needs Block,CROSSBAR COACHING,11/10/2022,"4,875.00"
Education & Skills,SEND (0-25),Third Party Payments,DSG - High Needs Block,CROSSBAR COACHING,11/10/2022,"4,875.00"
Education & Skills,SEND (0-25),Third Party Payments,DSG - High Needs Block,CROSSBAR COACHING,11/10/2022,"4,875.00"
Education & Skills,SEND (0-25),Third Party Payments,DSG - High Needs Block,CROSSBAR COACHING,11/10/2022,"4,000.00"
Education & Skills,SEND (0-25),Third Party Payments,DSG - High Needs Block,CROSSBAR COACHING,11/10/2022,"4,875.00"
Education & Skills,SEND (0-25),Third Party Payments,DSG - High Needs Block,CROSSBAR COACHING,11/10/2022,"4,875.00"
Education & Skills,SEND (0-25),Third Party Payments,DSG - High Needs Block,CROSSBAR COACHING,11/10/2022,"4,875.00"
Education & Skills,SEND (0-25),Third Party Payments,DSG - High Needs Block,Options Higford Limited,11/10/2022,"33,892.60"
Education & Skills,SEND (0-25),Third Party Payments,DSG - High Needs Block,CROSSBAR COACHING,12/10/2022,"4,875.00"
Education & Skills,SEND (0-25),Third Party Payments,DSG - High Needs Block,CROSSBAR COACHING,12/10/2022,"4,875.00"
Education & Skills,SEND (0-25),Third Party Payments,DSG - High Needs Block,Headstart School Limited ,12/10/2022,"15,000.00"
Education & Skills,SEND (0-25),Third Party Payments,DSG - High Needs Block,CROSSBAR COACHING,12/10/2022,"4,875.00"
Education & Skills,SEND (0-25),Third Party Payments,DSG - High Needs Block,CROSSBAR COACHING,12/10/2022,"4,875.00"
Education & Skills,SEND (0-25),Third Party Payments,DSG - High Needs Block,CROSSBAR COACHING,12/10/2022,"4,875.00"
Education & Skills,SEND (0-25),Third Party Payments,DSG - High Needs Block,CROSSBAR COACHING,12/10/2022,"4,875.00"
Education & Skills,SEND (0-25),Third Party Payments,DSG - High Needs Block,CROSSBAR COACHING,12/10/2022,"4,875.00"
Education & Skills,SEND (0-25),Third Party Payments,DSG - High Needs Block,CROSSBAR COACHING,12/10/2022,"4,875.00"
Education & Skills,SEND (0-25),Third Party Payments,DSG - High Needs Block,CROSSBAR COACHING,12/10/2022,"4,875.00"
Education & Skills,SEND (0-25),Third Party Payments,DSG - High Needs Block,CROSSBAR COACHING,12/10/2022,"4,875.00"
Education & Skills,SEND (0-25),Third Party Payments,DSG - High Needs Block,CROSSBAR COACHING,12/10/2022,"4,875.00"
Education & Skills,SEND (0-25),Third Party Payments,DSG - High Needs Block,CROSSBAR COACHING,12/10/2022,"4,875.00"
Education & Skills,SEND (0-25),Third Party Payments,DSG - High Needs Block,CROSSBAR COACHING,12/10/2022,"4,875.00"
Education & Skills,SEND (0-25),Third Party Payments,DSG - High Needs Block,CROSSBAR COACHING,12/10/2022,"4,875.00"
Education & Skills,SEND (0-25),Third Party Payments,DSG - High Needs Block,CROSSBAR COACHING,12/10/2022,"4,875.00"
Education & Skills,SEND (0-25),Third Party Payments,DSG - High Needs Block,CROSSBAR COACHING,12/10/2022,"4,875.00"
Education & Skills,SEND (0-25),Third Party Payments,DSG - High Needs Block,CROSSBAR COACHING,12/10/2022,"4,875.00"
Education & Skills,SEND (0-25),Third Party Payments,DSG - High Needs Block,CROSSBAR COACHING,12/10/2022,"4,875.00"
Education & Skills,SEND (0-25),Third Party Payments,DSG - High Needs Block,CROSSBAR COACHING,12/10/2022,"4,875.00"
Education & Skills,SEND (0-25),Third Party Payments,DSG - High Needs Block,CROSSBAR COACHING,12/10/2022,"4,875.00"
Education & Skills,SEND (0-25),Third Party Payments,DSG - High Needs Block,M T Support Ltd,12/10/2022,"2,285.60"
Education & Skills,SEND (0-25),Third Party Payments,DSG - High Needs Block,CONDOVER COLLEGE LTD,17/10/2022,"9,056.15"
Education & Skills,SEND (0-25),Third Party Payments,DSG - High Needs Block,RED GEORGE RURAL SKILLS PROJECT,31/10/2022,700.00
Education & Skills,SEND (0-25),Third Party Payments,DSG - High Needs Block,PT Academy,31/10/2022,"1,599.00"
Education & Skills,Skills,Employees,Staff Training,THE UNIVERSITY OF BIRMINGHAM,26/10/2022,"3,540.00"
Education & Skills,Skills,Premises-Related Expenditure,Hire Of Rooms,Telford and Wrekin Interfaith Council,26/10/2022,146.00
Education & Skills,Skills,Premises-Related Expenditure,Hire Of Rooms,Brookside Central,26/10/2022,198.00
Education & Skills,Skills,Supplies & Services,Consumable Stores,MHFA England CIC,10/10/2022,110.00
Education & Skills,Skills,Supplies & Services,Consumable Stores,MHFA England CIC,10/10/2022,520.00
Education & Skills,Skills,Supplies & Services,Exam Fees,CITY & GUILDS,26/10/2022,243.75
Education & Skills,Skills,Third Party Payments,Childminders,CHILDCARE SOS,26/10/2022,"1,360.00"
Education & Skills,Skills,Third Party Payments,Childminders,CHILDCARE SOS,26/10/2022,288.00
Education & Skills,Skills,Supplies & Services,Mobile Phones,EE LTD EQUIPMENT ,10/10/2022,142.00
Education & Skills,Skills,Employees,Course Fees,QUALSAFE.COM,10/10/2022,228.55
Education & Skills,Skills,Supplies & Services,Mobile Phones,EE LTD EQUIPMENT ,10/10/2022,142.00
Education & Skills,Skills,Supplies & Services,Mobile Phones,EE LTD EQUIPMENT ,10/10/2022,426.00
Education & Skills,Skills,Supplies & Services,Mobile Phones,EE LTD EQUIPMENT ,10/10/2022,"1,988.00"
Education & Skills,Skills,Transport-Related Expenditure,Bus Tickets,ARRIVA MIDLANDS LTD,26/10/2022,270.00
Education & Skills,Skills,Employees,Staff Training,Always Consult Ltd,05/10/2022,"1,550.00"
Education & Skills,Skills,Supplies & Services,Mobile Phones,EE LTD EQUIPMENT ,10/10/2022,284.00
Education & Skills,Skills,Supplies & Services,Mobile Phones,EE LTD EQUIPMENT ,10/10/2022,284.00
Finance & Human Resources,"Finance Manager (Business, Education & Care)",Employees,Professional Subs,AAT,27/10/2022,175.00
Finance & Human Resources,Finance Manager (Corporate & Capital),Supplies & Services,Subscriptions,FL MEMO LTD,12/10/2022,799.00
Finance & Human Resources,Finance Manager (Corporate & Capital),Supplies & Services,Comp Hardware (Purch / Hire),CCS MEDIA LIMITED,13/10/2022,234.36
Finance & Human Resources,Finance Manager (Corporate & Capital),Supplies & Services,Bank Charges,TALL Security Print Ltd,25/10/2022,104.98
Finance & Human Resources,Human Resources,Employees,Criminal Records Bureau Checks,DISCLOSURE & BARRING SERVICE,03/10/2022,"6,956.00"
Finance & Human Resources,Human Resources,Employees,Criminal Records Bureau Checks,Capita Recruitment Vetting Service ,18/10/2022,439.79
Finance & Human Resources,Human Resources,Employees,Criminal Records Bureau Checks,DISCLOSURE & BARRING SERVICE,18/10/2022,"8,246.00"
Finance & Human Resources,Human Resources,Supplies & Services,Doctors Fees,Ensure Health LTD,28/10/2022,490.00
Finance & Human Resources,Human Resources,Supplies & Services,Doctors Fees,Ensure Health LTD,18/10/2022,490.00
Finance & Human Resources,Human Resources,Supplies & Services,Subscriptions,West Midlands Employers,12/10/2022,"2,200.00"
Finance & Human Resources,Human Resources,Supplies & Services,Doctors Fees,WOODSIDE MEDICAL PRACTICE,24/10/2022,104.00
Finance & Human Resources,Human Resources,Supplies & Services,Doctors Fees,Ensure Health LTD,19/10/2022,380.00
Finance & Human Resources,Human Resources,Employees,Other Employee Costs,SB Sports Injury & Physiotherapy Clinic,03/10/2022,114.00
Finance & Human Resources,Revenues,Supplies & Services,Printing - Other,Minuteman Press,11/10/2022,835.23
Finance & Human Resources,Revenues,Supplies & Services,Stationery,PREMIER PAPER GROUP LTD,11/10/2022,116.80
Finance & Human Resources,Revenues,Supplies & Services,Stationery,Antalis Limited,05/10/2022,373.00
Finance & Human Resources,Revenues,Supplies & Services,Stationery,PREMIER PAPER GROUP LTD,07/10/2022,175.00
Finance & Human Resources,Revenues,Supplies & Services,New Guillotine Blade,DOCU-FINISH SOLUTIONS LTD,19/10/2022,165.00
Finance & Human Resources,Revenues,Supplies & Services,Postages,ROYAL MAIL GROUP PLC ,25/10/2022,147.63
Finance & Human Resources,Revenues,Supplies & Services,Postages,ROYAL MAIL GROUP PLC ,25/10/2022,"1,722.26"
Finance & Human Resources,Revenues,Supplies & Services,Postages,FRANCOTYP-POSTALIA LTD ,25/10/2022,500.00
Finance & Human Resources,Revenues,Supplies & Services,Postages,FREELANCE BUSINESS ASSOCIATES,25/10/2022,378.00
Finance & Human Resources,Revenues,Supplies & Services,Postages,ROYAL MAIL GROUP PLC ,25/10/2022,"3,756.92"
Finance & Human Resources,Revenues,Employees,Staff Training,NEC Software Solutions UK Ltd,14/10/2022,550.00
Finance & Human Resources,Revenues,Supplies & Services,Comp Software (Purch / Hire),PHOENIX SOFTWARE LTD,20/10/2022,514.35
Finance & Human Resources,Revenues,Employees,Off site processing,NEC Software Solutions UK Ltd,21/10/2022,"5,119.95"
Finance & Human Resources,Revenues,Supplies & Services,Printing - Other,Financial Data Management plc,06/10/2022,490.79
Finance & Human Resources,Revenues,Supplies & Services,Printing - Other,Financial Data Management plc,06/10/2022,186.77
Finance & Human Resources,Revenues,Supplies & Services,Postages,Financial Data Management plc,06/10/2022,"1,160.77"
Finance & Human Resources,Revenues,Supplies & Services,Postages,Financial Data Management plc,06/10/2022,736.16
Finance & Human Resources,Revenues,Third Party Payments,Collection Agents,ROSSENDALES LTD,07/10/2022,310.00
Health & Wellbeing,Consultant in Public Health,Premises-Related Expenditure,Hire Of Rooms,MEETING POINT TRUST LTD,26/10/2022,123.75
Health & Wellbeing,Consultant in Public Health,Supplies & Services,Mobile Phones,EE LTD EQUIPMENT ,03/10/2022,142.00
Health & Wellbeing,Consultant in Public Health,Employees,Staff Training,Voice Partnership Ltd,03/10/2022,"3,200.00"
Health & Wellbeing,Consultant in Public Health,Employees,Staff Training,LOUDMOUTH EDUCATION & TRAINING LTD,19/10/2022,"1,400.00"
Health & Wellbeing,Consultant in Public Health,Supplies & Services,Sub Contractors,Richmond Fellowship,28/10/2022,"70,967.67"
Health & Wellbeing,Consultant in Public Health,Supplies & Services,Service Contracts,Recharge CIC ,11/10/2022,"8,125.00"
Health & Wellbeing,Consultant in Public Health,Supplies & Services,Service Contracts,Recharge CIC ,20/10/2022,"5,000.00"
Health & Wellbeing,Consultant in Public Health,Supplies & Services,Service Contracts,Recharge CIC ,20/10/2022,493.58
Health & Wellbeing,Consultant in Public Health,Supplies & Services,Marketing & Publicity,NEWPORT ENGRAVERS,19/10/2022,430.40
Health & Wellbeing,Consultant in Public Health,Supplies & Services,Service Contracts,Midlands Partnership NHS Foundation Trust,31/10/2022,"103,712.00"
Health & Wellbeing,Consultant in Public Health,Supplies & Services,Service Contracts,Recharge CIC ,19/10/2022,"8,125.00"
Health & Wellbeing,Consultant in Public Health,Supplies & Services,Service Contracts,Midlands Partnership NHS Foundation Trust,31/10/2022,"443,557.73"
Health & Wellbeing,Consultant in Public Health,Supplies & Services,Service Contracts,A Better Tomorrow C.I.C.,26/10/2022,"28,000.00"
Health & Wellbeing,Consultant in Public Health,Supplies & Services,Service Contracts,TACT,26/10/2022,"33,750.00"
Health & Wellbeing,Consultant in Public Health,Supplies & Services,Service Contracts,Midlands Partnership NHS Foundation Trust,28/10/2022,"443,557.73"
Health & Wellbeing,Consultant in Public Health,Supplies & Services,Service Contracts,Midlands Partnership NHS Foundation Trust,28/10/2022,"103,712.00"
Health & Wellbeing,Consultant in Public Health,Supplies & Services,Sub Contractors,University Hospitals Birmingham NHS Foundation Trust,21/10/2022,496.00
Health & Wellbeing,Consultant in Public Health,Supplies & Services,Sub Contractors,The Royal Wolverhampton NHS Trust,21/10/2022,105.00
Health & Wellbeing,Consultant in Public Health,Supplies & Services,Sub Contractors,Dudley Group of Hospitals NHS Foundation Trust,21/10/2022,373.00
Health & Wellbeing,Consultant in Public Health,Supplies & Services,Sub Contractors,University Hospitals Birmingham NHS Foundation Trust,21/10/2022,"1,862.00"
Health & Wellbeing,Consultant in Public Health,Supplies & Services,Sub Contractors,Dudley Group of Hospitals NHS Foundation Trust,20/10/2022,449.00
Health & Wellbeing,Consultant in Public Health,Supplies & Services,Sub Contractors,The Royal Wolverhampton NHS Trust,20/10/2022,478.00
Health & Wellbeing,Consultant in Public Health,Supplies & Services,Sub Contractors,Central Health Solutions Ltd,25/10/2022,"1,180.20"
Health & Wellbeing,Consultant in Public Health,Supplies & Services,Sub Contractors,Central Health Solutions Ltd,25/10/2022,"2,262.00"
Health & Wellbeing,Consultant in Public Health,Supplies & Services,Sub Contractors,Central Health Solutions Ltd,25/10/2022,561.60
Health & Wellbeing,Consultant in Public Health,Supplies & Services,Sub Contractors,University Hospitals Birmingham NHS Foundation Trust,25/10/2022,354.00
Health & Wellbeing,Consultant in Public Health,Supplies & Services,Sub Contractors,Central Health Solutions Ltd,25/10/2022,"1,250.00"
Health & Wellbeing,Consultant in Public Health,Supplies & Services,Sub Contractors,SH:24,26/10/2022,223.72
Health & Wellbeing,Consultant in Public Health,Supplies & Services,Sub Contractors,Midlands Partnership NHS Foundation Trust,31/10/2022,"271,802.51"
Health & Wellbeing,Consultant in Public Health,Supplies & Services,Sub Contractors,Chelsea and Westminster Hospital,26/10/2022,440.07
Health & Wellbeing,Consultant in Public Health,Supplies & Services,Sub Contractors,Midlands Partnership NHS Foundation Trust,28/10/2022,"271,802.51"
Health & Wellbeing,Consultant in Public Health,Supplies & Services,Other Services,J U Removals Ltd,04/10/2022,365.00
Health & Wellbeing,Consultant in Public Health,Supplies & Services,Other Services,Jo Upton Removals Ltd,19/10/2022,"1,205.00"
Health & Wellbeing,Consultant in Public Health,Supplies & Services,Other Services,Jo Upton Removals Ltd,27/10/2022,365.00
Health & Wellbeing,Consultant in Public Health,Supplies & Services,Other Services,Jo Upton Removals Ltd,27/10/2022,365.00
Health & Wellbeing,Consultant in Public Health,Supplies & Services,Other Services,SHROPSHIRE COMMUNITY HEALTH NHS TRUST,20/10/2022,"230,333.33"
Health & Wellbeing,Consultant in Public Health,Premises-Related Expenditure,Other,SHREWSBURY & TELFORD HOSPITAL NHS TRUST,20/10/2022,"6,224.29"
